﻿Directorate,Sub Directorate,Accounting Date,COST CENTRE,Supplier Name,Net Amount,Type
DIRECT ENVIRONMENT AND HOUSING,VEHICLES,01-Apr-18,319000,UK Telematics Limited,865.4,Revenue
DIRECT ENVIRONMENT AND HOUSING,VEHICLES,01-Apr-18,319000,UK Telematics Limited,5202.39,Revenue
DIRECT ENVIRONMENT AND HOUSING,VEHICLES,01-Apr-18,319000,UK Telematics Limited,727.35,Revenue
DIRECT SOCIAL SERVICES,GF ADULT SERVICES,03-Apr-18,215489,1st Grade Care Limited,514.78,Revenue
DIRECT SOCIAL SERVICES,GF ADULT SERVICES,03-Apr-18,215489,1st Grade Care Limited,593.18,Revenue
DIRECT SOCIAL SERVICES,GF ADULT SERVICES,03-Apr-18,215489,1st Grade Care Limited,562.8,Revenue
DIRECT SOCIAL SERVICES,GF ADULT SERVICES,03-Apr-18,215489,1st Grade Care Limited,600.6,Revenue
DIRECT SOCIAL SERVICES,GF ADULT SERVICES,03-Apr-18,215489,1st Grade Care Limited,577.05,Revenue
DIRECT SOCIAL SERVICES,GF ADULT SERVICES,03-Apr-18,215489,All Care (South Wales) Limited,636.44,Revenue
DIRECT SOCIAL SERVICES,GF ADULT SERVICES,03-Apr-18,215489,All Care (South Wales) Limited,579.85,Revenue
DIRECT SOCIAL SERVICES,GF ADULT SERVICES,03-Apr-18,215489,All Care (South Wales) Limited,737.34,Revenue
DIRECT SOCIAL SERVICES,GF ADULT SERVICES,03-Apr-18,215489,All Care (South Wales) Limited,815.71,Revenue
DIRECT SOCIAL SERVICES,GF ADULT SERVICES,03-Apr-18,215489,All Care (South Wales) Limited,536.22,Revenue
DIRECT SOCIAL SERVICES,GF ADULT SERVICES,03-Apr-18,215489,All Care (South Wales) Limited,647.58,Revenue
DIRECT SOCIAL SERVICES,GF ADULT SERVICES,03-Apr-18,215489,All Care (South Wales) Limited,636.44,Revenue
DIRECT SOCIAL SERVICES,GF ADULT SERVICES,03-Apr-18,215489,All Care (South Wales) Limited,737.34,Revenue
DIRECT SOCIAL SERVICES,GF ADULT SERVICES,03-Apr-18,215489,All Care (South Wales) Limited,815.71,Revenue
DIRECT SOCIAL SERVICES,GF ADULT SERVICES,03-Apr-18,215489,Annwyl Limited t/a Bluebird Care,633.05,Revenue
DIRECT SOCIAL SERVICES,GF ADULT SERVICES,03-Apr-18,215489,Annwyl Limited t/a Bluebird Care,707.37,Revenue
DIRECT SOCIAL SERVICES,GF ADULT SERVICES,03-Apr-18,215489,Annwyl Limited t/a Bluebird Care,588.14,Revenue
DIRECT SOCIAL SERVICES,GF ADULT SERVICES,03-Apr-18,215489,Annwyl Limited t/a Bluebird Care,633.05,Revenue
DIRECT SOCIAL SERVICES,GF ADULT SERVICES,03-Apr-18,215489,Annwyl Limited t/a Bluebird Care,707.37,Revenue
DIRECT SOCIAL SERVICES,GF ADULT SERVICES,03-Apr-18,215489,Annwyl Limited t/a Bluebird Care,588.14,Revenue
DIRECT SOCIAL SERVICES,GF ADULT SERVICES,03-Apr-18,215489,Hallows Care Limited T/A Hallows Care,682.08,Revenue
DIRECT SOCIAL SERVICES,GF ADULT SERVICES,03-Apr-18,215489,Hallows Care Limited T/A Hallows Care,590.12,Revenue
DIRECT SOCIAL SERVICES,GF ADULT SERVICES,03-Apr-18,215489,Hallows Care Limited T/A Hallows Care,627.2,Revenue
DIRECT SOCIAL SERVICES,GF ADULT SERVICES,03-Apr-18,215489,Hallows Care Limited T/A Hallows Care,600.6,Revenue
DIRECT SOCIAL SERVICES,GF ADULT SERVICES,03-Apr-18,215489,Parkrow Care Limited,668.2,Revenue
DIRECT SOCIAL SERVICES,GF ADULT SERVICES,03-Apr-18,216179,All Care (South Wales) Limited,915.14,Revenue
DIRECT SOCIAL SERVICES,GF ADULT SERVICES,03-Apr-18,216179,All Care (South Wales) Limited,534.38,Revenue
DIRECT SOCIAL SERVICES,GF ADULT SERVICES,03-Apr-18,216179,All Care (South Wales) Limited,762.31,Revenue
DIRECT SOCIAL SERVICES,GF ADULT SERVICES,03-Apr-18,216179,All Care (South Wales) Limited,824.24,Revenue
DIRECT SOCIAL SERVICES,GF ADULT SERVICES,03-Apr-18,216179,Annwyl Limited t/a Bluebird Care,720,Revenue
DIRECT SOCIAL SERVICES,GF ADULT SERVICES,03-Apr-18,216179,Annwyl Limited t/a Bluebird Care,720,Revenue
DIRECT SOCIAL SERVICES,GF ADULT SERVICES,03-Apr-18,216179,Hallows Care Limited T/A Hallows Care,590.16,Revenue
DIRECT SOCIAL SERVICES,GF ADULT SERVICES,03-Apr-18,216179,Heidi Christoforato t/a Churchfields Home Care,525.2,Revenue
DIRECT SOCIAL SERVICES,GF ADULT SERVICES,03-Apr-18,217909,1st Grade Care Limited,653.78,Revenue
DIRECT SOCIAL SERVICES,GF ADULT SERVICES,03-Apr-18,218419,All Care (South Wales) Limited,657.58,Revenue
DIRECT SOCIAL SERVICES,GF ADULT SERVICES,03-Apr-18,218419,Annwyl Limited t/a Bluebird Care,603.88,Revenue
DIRECT SOCIAL SERVICES,GF ADULT SERVICES,03-Apr-18,218419,Annwyl Limited t/a Bluebird Care,625.64,Revenue
DIRECT SOCIAL SERVICES,GF ADULT SERVICES,03-Apr-18,218419,Annwyl Limited t/a Bluebird Care,603.88,Revenue
DIRECT SOCIAL SERVICES,GF ADULT SERVICES,03-Apr-18,218419,Annwyl Limited t/a Bluebird Care,536.26,Revenue
DIRECT SOCIAL SERVICES,GF ADULT SERVICES,03-Apr-18,218419,Parkrow Care Limited,682.6,Revenue
DIRECT MANAGING DIRECTOR AND RESOURCES,GF HUMAN RESOURCES,03-Apr-18,140122,Childcare Vouchers Limited,31568.9,Revenue
DIRECT SOCIAL SERVICES,GF CHILDREN SERVICES,03-Apr-18,209151,Little Inspirations Limited,3168,Revenue
DIRECT SOCIAL SERVICES,GF ADULT SERVICES,03-Apr-18,215489,Grangelodge Residential Home Limited t/a Grangelodge,514.26,Revenue
DIRECT SOCIAL SERVICES,GF ADULT SERVICES,03-Apr-18,217909,Consensus Support Services Limited t/a Ty Machen,2285.13,Revenue
DIRECT SOCIAL SERVICES,GF CHILDREN SERVICES,03-Apr-18,260060,BetterCare Keys Limited,-15721.34,Revenue
DIRECT SOCIAL SERVICES,GF CHILDREN SERVICES,03-Apr-18,260060,BetterCare Keys Limited,-10655.01,Revenue
DIRECT SOCIAL SERVICES,GF CHILDREN SERVICES,03-Apr-18,260060,Foster Care Associates Limited,-4189.5,Revenue
DIRECT ENVIRONMENT AND HOUSING,GF ENV AND VISIBLE,03-Apr-18,325312,Centregreat Limited,4750,Revenue
DIRECT ENVIRONMENT AND HOUSING,GF ENV AND VISIBLE,03-Apr-18,325325,Calibre Contracting Limited,2310.1,Revenue
DIRECT ENVIRONMENT AND HOUSING,GF ENV AND VISIBLE,03-Apr-18,325325,Calibre Contracting Limited,2349.83,Revenue
DIRECT ENVIRONMENT AND HOUSING,GF ENV AND VISIBLE,03-Apr-18,325325,G.P.H.I.T (Integrated Services) Limited,950,Revenue
DIRECT ENVIRONMENT AND HOUSING,GF ENV AND VISIBLE,03-Apr-18,325325,G.P.H.I.T (Integrated Services) Limited,950,Revenue
DIRECT ENVIRONMENT AND HOUSING,GF ENV AND VISIBLE,03-Apr-18,325338,Calibre Contracting Limited,820.08,Revenue
DIRECT ENVIRONMENT AND HOUSING,GF ENV AND VISIBLE,03-Apr-18,325340,Calibre Contracting Limited,929.68,Revenue
DIRECT ENVIRONMENT AND HOUSING,GF ENV AND VISIBLE,03-Apr-18,325340,Calibre Contracting Limited,1128.63,Revenue
DIRECT ENVIRONMENT AND HOUSING,GF ENV AND VISIBLE,03-Apr-18,325340,Calibre Contracting Limited,1948.71,Revenue
DIRECT ENVIRONMENT AND HOUSING,GF ENV AND VISIBLE,03-Apr-18,325340,Calibre Contracting Limited,1411.65,Revenue
DIRECT ENVIRONMENT AND HOUSING,GF ENV AND VISIBLE,03-Apr-18,325340,G.P.H.I.T (Integrated Services) Limited,1300,Revenue
DIRECT ENVIRONMENT AND HOUSING,GF ENV AND VISIBLE,03-Apr-18,325810,Compass Minerals UK Limited,1193.66,Revenue
DIRECT ENVIRONMENT AND HOUSING,GF ENV AND VISIBLE,03-Apr-18,325810,Compass Minerals UK Limited,6093.12,Revenue
DIRECT ENVIRONMENT AND HOUSING,GF ENV AND VISIBLE,03-Apr-18,325810,Compass Minerals UK Limited,1213.08,Revenue
DIRECT ENVIRONMENT AND HOUSING,GF ENV AND VISIBLE,03-Apr-18,325810,Compass Minerals UK Limited,1241.74,Revenue
DIRECT ENVIRONMENT AND HOUSING,GF ENV AND VISIBLE,03-Apr-18,325810,Compass Minerals UK Limited,4843.05,Revenue
DIRECT ENVIRONMENT AND HOUSING,GF ENV AND VISIBLE,03-Apr-18,325851,Calibre Contracting Limited,617.1,Revenue
DIRECT ENVIRONMENT AND HOUSING,GF ENV AND VISIBLE,03-Apr-18,325851,Standard Signs & Traffic Systems Limited,5490.72,Revenue
DIRECT ENVIRONMENT AND HOUSING,GF ENV AND VISIBLE,03-Apr-18,325894,Calibre Contracting Limited,1160.32,Revenue
DIRECT ENVIRONMENT AND HOUSING,REGENERATION & PLANNING,03-Apr-18,356020,Dwr Cymru Cyf,1190.58,Revenue
DIRECT ENVIRONMENT AND HOUSING,GF LEGAL AND DEMOCRATIC,03-Apr-18,400050,Lingotech Limited,1084.61,Revenue
DIRECT ENVIRONMENT AND HOUSING,GF HOUSING SERVICES,03-Apr-18,405301,Gofal A Chymorth Gwalia Cyf,1566.51,Revenue
DIRECT ENVIRONMENT AND HOUSING,GF HOUSING SERVICES,03-Apr-18,405301,Gofal A Chymorth Gwalia Cyf,2799.54,Revenue
DIRECT ENVIRONMENT AND HOUSING,GF HOUSING SERVICES,03-Apr-18,405301,Gofal A Chymorth Gwalia Cyf,1566.51,Revenue
DIRECT ENVIRONMENT AND HOUSING,GF HOUSING SERVICES,03-Apr-18,405301,Gofal A Chymorth Gwalia Cyf,22739.74,Revenue
DIRECT ENVIRONMENT AND HOUSING,GF HOUSING SERVICES,03-Apr-18,405301,Gofal A Chymorth Gwalia Cyf,10731.2,Revenue
DIRECT ENVIRONMENT AND HOUSING,GF HOUSING SERVICES,03-Apr-18,405301,Gofal A Chymorth Gwalia Cyf,7801.36,Revenue
DIRECT ENVIRONMENT AND HOUSING,GF HOUSING SERVICES,03-Apr-18,405301,Llamau Limited,9903.72,Revenue
DIRECT ENVIRONMENT AND HOUSING,GF HOUSING SERVICES,03-Apr-18,405301,Llamau Limited,4248.24,Revenue
DIRECT ENVIRONMENT AND HOUSING,GF HOUSING SERVICES,03-Apr-18,405301,Llamau Limited,9781.98,Revenue
DIRECT ENVIRONMENT AND HOUSING,GF HOUSING SERVICES,03-Apr-18,405301,Llamau Limited,6844.8,Revenue
DIRECT ENVIRONMENT AND HOUSING,GF HOUSING SERVICES,03-Apr-18,405301,Llamau Limited,6844.8,Revenue
DIRECT ENVIRONMENT AND HOUSING,GF HOUSING SERVICES,03-Apr-18,405301,Llamau Limited,10761.42,Revenue
DIRECT ENVIRONMENT AND HOUSING,GF HOUSING SERVICES,03-Apr-18,405301,Pobl Group Limited T/A Reach Supported Living,17764.24,Revenue
DIRECT ENVIRONMENT AND HOUSING,HOUSING,03-Apr-18,407107,Dwr Cymru Cyf,574.09,Revenue
DIRECT ENVIRONMENT AND HOUSING,HOUSING,03-Apr-18,407150,LNC Floor Coverings Limited,850,Revenue
DIRECT ENVIRONMENT AND HOUSING,HOUSING,03-Apr-18,407255,Dwr Cymru Cyf,658.63,Revenue
DIRECT ENVIRONMENT AND HOUSING,HOUSING,03-Apr-18,407255,TV Licensing,518,Revenue
DIRECT ENVIRONMENT AND HOUSING,HOUSING,03-Apr-18,407260,Dwr Cymru Cyf,537.97,Revenue
DIRECT ENVIRONMENT AND HOUSING,HOUSING,03-Apr-18,407501,Marsh Limited,4064.32,Revenue
DIRECT MANAGING DIRECTOR AND RESOURCES,GF RESOURCES,03-Apr-18,420212,MPS Marketing Services Limited,8534.91,Revenue
DIRECT MANAGING DIRECTOR AND RESOURCES,GF RESOURCES,03-Apr-18,421230,Xerox (UK) Limited,736.5,Revenue
DIRECT ENVIRONMENT AND HOUSING,REGENERATION & PLANNING,03-Apr-18,402451,Bridgend County Borough Council,19512.54,Revenue
DIRECT ENVIRONMENT AND HOUSING,GF HOUSING SERVICES,03-Apr-18,405301,Cardiff County Council,5580,Revenue
DIRECT ENVIRONMENT AND HOUSING,GF HOUSING SERVICES,03-Apr-18,405100,Lyndon Mustoe,3590.24,Revenue
DIRECT ENVIRONMENT AND HOUSING,GF HOUSING SERVICES,03-Apr-18,405100,Lyndon Mustoe,563.76,Revenue
DIRECT MANAGING DIRECTOR AND RESOURCES,GF GENERAL EXPENDITURE POLICY,03-Apr-18,471900,James Marwick,8040,Revenue
DIRECT LEARNING AND SKILLS,STRATEGY COMMUNITY LEARNING & RESOURCES,03-Apr-18,100130,Disclosure and Barring Service,1760,Revenue
DIRECT SOCIAL SERVICES,GF ADULT SERVICES,03-Apr-18,215001,Disclosure and Barring Service,665,Revenue
DIRECT SOCIAL SERVICES,GF CHILDREN SERVICES,03-Apr-18,260020,Disclosure and Barring Service,792,Revenue
DIRECT SOCIAL SERVICES,REGIONAL ADOPTION SERVICE,03-Apr-18,260500,Disclosure and Barring Service,836,Revenue
DIRECT ENVIRONMENT AND HOUSING,VISIBLE SERVICES,03-Apr-18,365769,Disclosure and Barring Service,792,Revenue
DIRECT MANAGING DIRECTOR AND RESOURCES,GF RESOURCES,03-Apr-18,422160,University of Salford,1950,Revenue
DIRECT MANAGING DIRECTOR AND RESOURCES,GF HUMAN RESOURCES,03-Apr-18,140119,Acorn Recruitment Limited,1371.7,Revenue
DIRECT MANAGING DIRECTOR AND RESOURCES,GF RESOURCES,03-Apr-18,422160,Anderselite Limited,850,Revenue
DIRECT MANAGING DIRECTOR AND RESOURCES,GF RESOURCES,03-Apr-18,422160,Anderselite Limited,800,Revenue
DIRECT MANAGING DIRECTOR AND RESOURCES,GF RESOURCES,03-Apr-18,422160,Hays Specialist Recruitment Limited,898.28,Revenue
DIRECT MANAGING DIRECTOR AND RESOURCES,GF RESOURCES,03-Apr-18,422160,Hays Specialist Recruitment Limited,929.27,Revenue
DIRECT SOCIAL SERVICES,GF ADULT SERVICES,03-Apr-18,215489,Baltimore Care Limited,635,Revenue
DIRECT SOCIAL SERVICES,GF ADULT SERVICES,03-Apr-18,215489,Baltimore Care Limited,503.15,Revenue
DIRECT SOCIAL SERVICES,GF ADULT SERVICES,03-Apr-18,215489,Baltimore Care Limited,503.15,Revenue
DIRECT SOCIAL SERVICES,GF ADULT SERVICES,03-Apr-18,215489,Baltimore Care Limited,513.15,Revenue
DIRECT SOCIAL SERVICES,GF ADULT SERVICES,03-Apr-18,215489,Bellavista Care (Cardiff) Limited T/A Bellavista Nursing Home Cardiff,513.57,Revenue
DIRECT SOCIAL SERVICES,GF ADULT SERVICES,03-Apr-18,215489,Bellavista Nursing Homes (Wales) Limited t/a Bellavista Care Home,574,Revenue
DIRECT SOCIAL SERVICES,GF ADULT SERVICES,03-Apr-18,215489,Bellavista Nursing Homes (Wales) Limited t/a Bellavista Care Home,685.51,Revenue
DIRECT SOCIAL SERVICES,GF ADULT SERVICES,03-Apr-18,215489,Broadway Care Centre Limited T/A Hazelhurst Nursing Home,503.15,Revenue
DIRECT SOCIAL SERVICES,GF ADULT SERVICES,03-Apr-18,215489,Duffryn Ffrwd Manor Limited,552.14,Revenue
DIRECT SOCIAL SERVICES,GF ADULT SERVICES,03-Apr-18,215489,E & E Homes Limited T/A Cliffhaven Residential Home,635,Revenue
DIRECT SOCIAL SERVICES,GF ADULT SERVICES,03-Apr-18,215489,Forge Care Homes Limited t/a The Forge Care Centre,925,Revenue
DIRECT SOCIAL SERVICES,GF ADULT SERVICES,03-Apr-18,215489,Forge Care Homes Limited t/a The Forge Care Centre,676.33,Revenue
DIRECT SOCIAL SERVICES,GF ADULT SERVICES,03-Apr-18,215489,Harrison Care Enterprises Barry Limited t/a Island View,503.15,Revenue
DIRECT SOCIAL SERVICES,GF ADULT SERVICES,03-Apr-18,215489,Hebron Hall Limited,574,Revenue
DIRECT SOCIAL SERVICES,GF ADULT SERVICES,03-Apr-18,215489,June Zehetmayr t/a Tower Hill Residential Home,538.95,Revenue
DIRECT SOCIAL SERVICES,GF ADULT SERVICES,03-Apr-18,215489,June Zehetmayr t/a Tower Hill Residential Home,503.15,Revenue
DIRECT SOCIAL SERVICES,GF ADULT SERVICES,03-Apr-18,215489,Lakeside Homes Limited T/A Lakeside House,551.98,Revenue
DIRECT SOCIAL SERVICES,GF ADULT SERVICES,03-Apr-18,215489,Llangoedmor Properties Limited T/A Parkside Residential Home,506.15,Revenue
DIRECT SOCIAL SERVICES,GF ADULT SERVICES,03-Apr-18,215489,Llangoedmor Properties Limited T/A Parkside Residential Home,528.94,Revenue
DIRECT SOCIAL SERVICES,GF ADULT SERVICES,03-Apr-18,215489,Llangoedmor Properties Limited T/A Parkside Residential Home,502.55,Revenue
DIRECT SOCIAL SERVICES,GF ADULT SERVICES,03-Apr-18,215489,Llangoedmor Properties Limited T/A Parkside Residential Home,503.15,Revenue
DIRECT SOCIAL SERVICES,GF ADULT SERVICES,03-Apr-18,215489,MHA Care Group t/a Morel Court,518.24,Revenue
DIRECT SOCIAL SERVICES,GF ADULT SERVICES,03-Apr-18,215489,MHA Care Group t/a Ty Gwyn Private Nursing Home,557.25,Revenue
DIRECT SOCIAL SERVICES,GF ADULT SERVICES,03-Apr-18,215489,Middlepatch Limited T/A College Fields Nursing Home,579.07,Revenue
DIRECT SOCIAL SERVICES,GF ADULT SERVICES,03-Apr-18,215489,Middlepatch Limited T/A College Fields Nursing Home,606.25,Revenue
DIRECT SOCIAL SERVICES,GF ADULT SERVICES,03-Apr-18,215489,Middlepatch Limited T/A College Fields Nursing Home,585.62,Revenue
DIRECT SOCIAL SERVICES,GF ADULT SERVICES,03-Apr-18,215489,Middlepatch Limited T/A College Fields Nursing Home,589.85,Revenue
DIRECT SOCIAL SERVICES,GF ADULT SERVICES,03-Apr-18,215489,Middlepatch Limited T/A College Fields Nursing Home,532.31,Revenue
DIRECT SOCIAL SERVICES,GF ADULT SERVICES,03-Apr-18,215489,Middlepatch Limited T/A College Fields Nursing Home,589.85,Revenue
DIRECT SOCIAL SERVICES,GF ADULT SERVICES,03-Apr-18,215489,Middlepatch Limited T/A College Fields Nursing Home,625.33,Revenue
DIRECT SOCIAL SERVICES,GF ADULT SERVICES,03-Apr-18,215489,Middlepatch Limited T/A College Fields Nursing Home,555.15,Revenue
DIRECT SOCIAL SERVICES,GF ADULT SERVICES,03-Apr-18,215489,Middlepatch Limited T/A College Fields Nursing Home,538.81,Revenue
DIRECT SOCIAL SERVICES,GF ADULT SERVICES,03-Apr-18,215489,Middlepatch Limited T/A College Fields Nursing Home,721.7,Revenue
DIRECT SOCIAL SERVICES,GF ADULT SERVICES,03-Apr-18,215489,Middlepatch Limited T/A College Fields Nursing Home,589.85,Revenue
DIRECT SOCIAL SERVICES,GF ADULT SERVICES,03-Apr-18,215489,Middlepatch Limited T/A College Fields Nursing Home,589.85,Revenue
DIRECT SOCIAL SERVICES,GF ADULT SERVICES,03-Apr-18,215489,Middlepatch Limited T/A College Fields Nursing Home,589.85,Revenue
DIRECT SOCIAL SERVICES,GF ADULT SERVICES,03-Apr-18,215489,Northcote Developments Limited,509.51,Revenue
DIRECT SOCIAL SERVICES,GF ADULT SERVICES,03-Apr-18,215489,Northcote Developments Limited,500.49,Revenue
DIRECT SOCIAL SERVICES,GF ADULT SERVICES,03-Apr-18,215489,Northcote Developments Limited,508.15,Revenue
DIRECT SOCIAL SERVICES,GF ADULT SERVICES,03-Apr-18,215489,Northcote Developments Limited,534.15,Revenue
DIRECT SOCIAL SERVICES,GF ADULT SERVICES,03-Apr-18,215489,Northcote Developments Limited,503.14,Revenue
DIRECT SOCIAL SERVICES,GF ADULT SERVICES,03-Apr-18,215489,Oakville Care Limited t/a Romilly Nursing Home,900,Revenue
DIRECT SOCIAL SERVICES,GF ADULT SERVICES,03-Apr-18,215489,Springbank Care Home Limited T/A Springbank Nursing Home,576.95,Revenue
DIRECT SOCIAL SERVICES,GF ADULT SERVICES,03-Apr-18,215489,Springbank Care Home Limited T/A Springbank Nursing Home,614,Revenue
DIRECT SOCIAL SERVICES,GF ADULT SERVICES,03-Apr-18,215489,Springbank Care Home Limited T/A Springbank Nursing Home,543.15,Revenue
DIRECT SOCIAL SERVICES,GF ADULT SERVICES,03-Apr-18,215489,Springbank Care Home Limited T/A Springbank Nursing Home,512.1,Revenue
DIRECT SOCIAL SERVICES,GF ADULT SERVICES,03-Apr-18,215489,The Manor House St Hilary Limited T/A Milsom House,642.99,Revenue
DIRECT SOCIAL SERVICES,GF ADULT SERVICES,03-Apr-18,215489,The Manor House St Hilary Limited T/A Milsom House,523.55,Revenue
DIRECT SOCIAL SERVICES,GF ADULT SERVICES,03-Apr-18,215489,Waverley Care Centre Limited,505.25,Revenue
DIRECT SOCIAL SERVICES,GF ADULT SERVICES,03-Apr-18,215489,Waverley Care Centre Limited,590.32,Revenue
DIRECT SOCIAL SERVICES,GF ADULT SERVICES,03-Apr-18,215489,Waverley Care Centre Limited,558.56,Revenue
DIRECT SOCIAL SERVICES,GF ADULT SERVICES,03-Apr-18,215489,Waverley Care Centre Limited,541.69,Revenue
DIRECT SOCIAL SERVICES,GF ADULT SERVICES,03-Apr-18,215489,Waverley Care Centre Limited,599.15,Revenue
DIRECT SOCIAL SERVICES,GF ADULT SERVICES,03-Apr-18,216179,Accomplish Group Limited t/a Cedar House,1381.33,Revenue
DIRECT SOCIAL SERVICES,GF ADULT SERVICES,03-Apr-18,216179,Amethyst Healthcare Limited t/a Hillstone House,1770.83,Revenue
DIRECT SOCIAL SERVICES,GF ADULT SERVICES,03-Apr-18,216179,Bellavista Nursing Homes (Wales) Limited t/a Bellavista Care Home,536.95,Revenue
DIRECT SOCIAL SERVICES,GF ADULT SERVICES,03-Apr-18,216179,Care 4 U (Neath) Limited,1754.28,Revenue
DIRECT SOCIAL SERVICES,GF ADULT SERVICES,03-Apr-18,216179,Crusader Medical Care Limited T/A St Saviours Nursing Home,551.95,Revenue
DIRECT SOCIAL SERVICES,GF ADULT SERVICES,03-Apr-18,216179,Leonard Cheshire Disability,970.98,Revenue
DIRECT SOCIAL SERVICES,GF ADULT SERVICES,03-Apr-18,216179,Middlepatch Limited T/A College Fields Nursing Home,721.7,Revenue
DIRECT SOCIAL SERVICES,GF ADULT SERVICES,03-Apr-18,216179,Pontcanna Care Limited T/A Ty Llandaff Care Home,795.32,Revenue
DIRECT SOCIAL SERVICES,GF ADULT SERVICES,03-Apr-18,216179,Valebrook Care Homes Limited,1851.95,Revenue
DIRECT SOCIAL SERVICES,GF ADULT SERVICES,03-Apr-18,216179,Voyage 1 Limited t/a Brook Lodge,2528.8,Revenue
DIRECT SOCIAL SERVICES,GF ADULT SERVICES,03-Apr-18,216179,Voyage 1 Limited t/a Falcons Rest & Poachers Cottage,1729.64,Revenue
DIRECT SOCIAL SERVICES,GF ADULT SERVICES,03-Apr-18,217909,Accomplish Group Limited,1822.08,Revenue
DIRECT SOCIAL SERVICES,GF ADULT SERVICES,03-Apr-18,217909,Accomplish Group Limited,2147.07,Revenue
DIRECT SOCIAL SERVICES,GF ADULT SERVICES,03-Apr-18,217909,Accomplish Group Limited t/a Cedar House,1585.35,Revenue
DIRECT SOCIAL SERVICES,GF ADULT SERVICES,03-Apr-18,217909,Amethyst Healthcare Limited t/a Hillstone House,1681.46,Revenue
DIRECT SOCIAL SERVICES,GF ADULT SERVICES,03-Apr-18,217909,Amethyst Healthcare Limited t/a Hillstone House,1462.73,Revenue
DIRECT SOCIAL SERVICES,GF ADULT SERVICES,03-Apr-18,217909,Glasallt Fawr Camphill Centre,999.82,Revenue
DIRECT SOCIAL SERVICES,GF ADULT SERVICES,03-Apr-18,217909,Glasallt Fawr Camphill Centre,1560.05,Revenue
DIRECT SOCIAL SERVICES,GF ADULT SERVICES,03-Apr-18,217909,Heatherleigh Care Limited t/a 106 Splott Road,1562.71,Revenue
DIRECT SOCIAL SERVICES,GF ADULT SERVICES,03-Apr-18,217909,Heatherleigh Care Limited t/a 106 Splott Road,1223.74,Revenue
DIRECT SOCIAL SERVICES,GF ADULT SERVICES,03-Apr-18,217909,Llysywaun Limited t/a Bayview Lodge Nursing Home,1579.54,Revenue
DIRECT SOCIAL SERVICES,GF ADULT SERVICES,03-Apr-18,217909,Ocean Community Services Limited t/a Westminster Court Care Home,1116.87,Revenue
DIRECT SOCIAL SERVICES,GF ADULT SERVICES,03-Apr-18,217909,The Cedars Care Services Limited T/A Ashgrove Care Home,2112.95,Revenue
DIRECT SOCIAL SERVICES,GF ADULT SERVICES,03-Apr-18,217909,The Cedars Care Services Limited T/A Ashgrove Care Home,992.95,Revenue
DIRECT SOCIAL SERVICES,GF ADULT SERVICES,03-Apr-18,217909,The Cedars Care Services Limited T/A Oaklands,1030.95,Revenue
DIRECT SOCIAL SERVICES,GF ADULT SERVICES,03-Apr-18,217909,The Cedars Care Services Limited t/a Sycamore House,2026.95,Revenue
DIRECT SOCIAL SERVICES,GF ADULT SERVICES,03-Apr-18,217909,The Cedars Care Services Limited t/a Sycamore House,1809.95,Revenue
DIRECT SOCIAL SERVICES,GF ADULT SERVICES,03-Apr-18,217909,The Cedars Care Services Limited t/a The Cedars,1576.66,Revenue
DIRECT SOCIAL SERVICES,GF ADULT SERVICES,03-Apr-18,217909,The Cedars Care Services Limited t/a The Cedars,1365.65,Revenue
DIRECT SOCIAL SERVICES,GF ADULT SERVICES,03-Apr-18,217909,Vale Phoenix Limited,1080.33,Revenue
DIRECT SOCIAL SERVICES,GF ADULT SERVICES,03-Apr-18,217909,Vale Phoenix Limited,1117.54,Revenue
DIRECT SOCIAL SERVICES,GF ADULT SERVICES,03-Apr-18,217909,Valebrook Care Homes Limited,1657.04,Revenue
DIRECT SOCIAL SERVICES,GF ADULT SERVICES,03-Apr-18,217909,Valebrook Care Homes Limited,2000.1,Revenue
DIRECT SOCIAL SERVICES,GF ADULT SERVICES,03-Apr-18,217909,Valebrook Care Homes Limited,1421.34,Revenue
DIRECT SOCIAL SERVICES,GF ADULT SERVICES,03-Apr-18,217909,Valebrook Care Homes Limited,1765.95,Revenue
DIRECT SOCIAL SERVICES,GF ADULT SERVICES,03-Apr-18,217909,Valebrook Care Homes Limited,1861.95,Revenue
DIRECT SOCIAL SERVICES,GF ADULT SERVICES,03-Apr-18,217909,Valebrook Care Homes Limited,1390.84,Revenue
DIRECT SOCIAL SERVICES,GF ADULT SERVICES,03-Apr-18,218321,Adriana Limited T/A The Priory Nursing Home,536,Revenue
DIRECT SOCIAL SERVICES,GF ADULT SERVICES,03-Apr-18,218321,Broadway Care Centre Limited T/A Hazelhurst Nursing Home,708.67,Revenue
DIRECT SOCIAL SERVICES,GF ADULT SERVICES,03-Apr-18,218321,Hafod Care Association Limited,619.96,Revenue
DIRECT SOCIAL SERVICES,GF ADULT SERVICES,03-Apr-18,218321,Harrison Care Enterprises Barry Limited t/a Island View,508.27,Revenue
DIRECT SOCIAL SERVICES,GF ADULT SERVICES,03-Apr-18,218321,Isman & Kinze Nessa T/A Haven House,503.15,Revenue
DIRECT SOCIAL SERVICES,GF ADULT SERVICES,03-Apr-18,218321,J and P Residential Homes Limited T/A Monkstone House,578,Revenue
DIRECT SOCIAL SERVICES,GF ADULT SERVICES,03-Apr-18,218321,Sanda Mitchel & Ptn t/a Canola House Residential Home,578,Revenue
DIRECT SOCIAL SERVICES,GF ADULT SERVICES,03-Apr-18,218321,Waverley Care Centre Limited,909.98,Revenue
DIRECT SOCIAL SERVICES,GF ADULT SERVICES,03-Apr-18,218419,Anwen Care Limited t/a Anwen Care Home,664,Revenue
DIRECT SOCIAL SERVICES,GF ADULT SERVICES,03-Apr-18,218419,Baltimore Care Limited,500.06,Revenue
DIRECT SOCIAL SERVICES,GF ADULT SERVICES,03-Apr-18,218419,Baltimore Care Limited,514.15,Revenue
DIRECT SOCIAL SERVICES,GF ADULT SERVICES,03-Apr-18,218419,Barchester Healthcare Homes Limited T/A Bushey House Beaumont,1400,Revenue
DIRECT SOCIAL SERVICES,GF ADULT SERVICES,03-Apr-18,218419,Bellavista Care (Cardiff) Limited T/A Bellavista Nursing Home Cardiff,697.45,Revenue
DIRECT SOCIAL SERVICES,GF ADULT SERVICES,03-Apr-18,218419,Bellavista Care (Cardiff) Limited T/A Bellavista Nursing Home Cardiff,670.14,Revenue
DIRECT SOCIAL SERVICES,GF ADULT SERVICES,03-Apr-18,218419,Bellavista Nursing Homes (Wales) Limited t/a Bellavista Care Home,1305.01,Revenue
DIRECT SOCIAL SERVICES,GF ADULT SERVICES,03-Apr-18,218419,Broadway Care Centre Limited T/A Hazelhurst Nursing Home,503.15,Revenue
DIRECT SOCIAL SERVICES,GF ADULT SERVICES,03-Apr-18,218419,David Austin t/a Silverdale,669.15,Revenue
DIRECT SOCIAL SERVICES,GF ADULT SERVICES,03-Apr-18,218419,E & E Homes Limited T/A Cliffhaven Residential Home,502.85,Revenue
DIRECT SOCIAL SERVICES,GF ADULT SERVICES,03-Apr-18,218419,E & E Homes Limited T/A Cliffhaven Residential Home,503.15,Revenue
DIRECT SOCIAL SERVICES,GF ADULT SERVICES,03-Apr-18,218419,Forge Care Homes Limited t/a The Forge Care Centre,703.44,Revenue
DIRECT SOCIAL SERVICES,GF ADULT SERVICES,03-Apr-18,218419,Hallmark Care Homes (Bute Town) Limited t/a Shire Hall Care Home,1218.15,Revenue
DIRECT SOCIAL SERVICES,GF ADULT SERVICES,03-Apr-18,218419,Harrison Care Enterprises Barry Limited t/a Island View,503.15,Revenue
DIRECT SOCIAL SERVICES,GF ADULT SERVICES,03-Apr-18,218419,Harrison Care Enterprises Barry Limited t/a Island View,635,Revenue
DIRECT SOCIAL SERVICES,GF ADULT SERVICES,03-Apr-18,218419,Harrison Care Enterprises Barry Limited t/a Island View,502.53,Revenue
DIRECT SOCIAL SERVICES,GF ADULT SERVICES,03-Apr-18,218419,Harrison Care Enterprises Barry Limited t/a Island View,530.99,Revenue
DIRECT SOCIAL SERVICES,GF ADULT SERVICES,03-Apr-18,218419,Harrison Care Enterprises Barry Limited t/a Island View,503.15,Revenue
DIRECT SOCIAL SERVICES,GF ADULT SERVICES,03-Apr-18,218419,Harrison Care Enterprises Barry Limited t/a Island View,503.15,Revenue
DIRECT SOCIAL SERVICES,GF ADULT SERVICES,03-Apr-18,218419,Harrison Care Enterprises Barry Limited t/a Island View,503.15,Revenue
DIRECT SOCIAL SERVICES,GF ADULT SERVICES,03-Apr-18,218419,Harrison Care Enterprises Barry Limited t/a Island View,503.15,Revenue
DIRECT SOCIAL SERVICES,GF ADULT SERVICES,03-Apr-18,218419,June Zehetmayr t/a Tower Hill Residential Home,635,Revenue
DIRECT SOCIAL SERVICES,GF ADULT SERVICES,03-Apr-18,218419,June Zehetmayr t/a Tower Hill Residential Home,503.15,Revenue
DIRECT SOCIAL SERVICES,GF ADULT SERVICES,03-Apr-18,218419,Llangoedmor Properties Limited T/A Parkside Residential Home,562.14,Revenue
DIRECT SOCIAL SERVICES,GF ADULT SERVICES,03-Apr-18,218419,Llangoedmor Properties Limited T/A Parkside Residential Home,635,Revenue
DIRECT SOCIAL SERVICES,GF ADULT SERVICES,03-Apr-18,218419,Middlepatch Limited T/A College Fields Nursing Home,505,Revenue
DIRECT SOCIAL SERVICES,GF ADULT SERVICES,03-Apr-18,218419,Shirwan Al-Mufti & Ptn t/a Pontcanna House,600,Revenue
DIRECT SOCIAL SERVICES,GF ADULT SERVICES,03-Apr-18,218419,The Manor House St Hilary Limited T/A Milsom House,506.14,Revenue
DIRECT SOCIAL SERVICES,GF ADULT SERVICES,03-Apr-18,218419,Waverley Care Centre Limited,631.25,Revenue
DIRECT SOCIAL SERVICES,GF ADULT SERVICES,03-Apr-18,218419,Waverley Care Centre Limited,578.22,Revenue
DIRECT SOCIAL SERVICES,GF ADULT SERVICES,03-Apr-18,218419,Waverley Care Centre Limited,672.09,Revenue
DIRECT ENVIRONMENT AND HOUSING,GF HOUSING SERVICES,03-Apr-18,405301,Hafod Care Association Limited,3024.88,Revenue
DIRECT ENVIRONMENT AND HOUSING,GF HOUSING SERVICES,03-Apr-18,405301,Hafod Care Association Limited,5028,Revenue
DIRECT ENVIRONMENT AND HOUSING,GF HOUSING SERVICES,03-Apr-18,405301,Hafod Care Association Limited,5583.9,Revenue
DIRECT ENVIRONMENT AND HOUSING,GF HOUSING SERVICES,03-Apr-18,405301,Atal Y Fro,7032.6,Revenue
DIRECT ENVIRONMENT AND HOUSING,GF HOUSING SERVICES,03-Apr-18,405301,Atal Y Fro,7292.75,Revenue
DIRECT ENVIRONMENT AND HOUSING,GF HOUSING SERVICES,03-Apr-18,405301,Atal Y Fro,6080.5,Revenue
DIRECT ENVIRONMENT AND HOUSING,GF HOUSING SERVICES,03-Apr-18,405301,Gofal Cymru,3946.72,Revenue
DIRECT ENVIRONMENT AND HOUSING,GF HOUSING SERVICES,03-Apr-18,405301,Gofal Cymru,3052.85,Revenue
DIRECT ENVIRONMENT AND HOUSING,GF HOUSING SERVICES,03-Apr-18,405301,Gofal Cymru,2808.6,Revenue
DIRECT ENVIRONMENT AND HOUSING,GF HOUSING SERVICES,03-Apr-18,405301,Gofal Cymru,4381.6,Revenue
DIRECT ENVIRONMENT AND HOUSING,GF HOUSING SERVICES,03-Apr-18,405301,Gofal Cymru,4871.25,Revenue
DIRECT ENVIRONMENT AND HOUSING,GF HOUSING SERVICES,03-Apr-18,405301,Taff Housing Association,4933.65,Revenue
DIRECT ENVIRONMENT AND HOUSING,GF HOUSING SERVICES,03-Apr-18,405301,Taff Housing Association,11580.1,Revenue
DIRECT ENVIRONMENT AND HOUSING,GF HOUSING SERVICES,03-Apr-18,405301,Taff Housing Association,2550.4,Revenue
DIRECT LEARNING AND SKILLS,SCHOOLS DELEGATED,04-Apr-18,101173,The Learning Partnership (Wales) Limited,1642.5,Revenue
DIRECT LEARNING AND SKILLS,SCHOOLS DELEGATED,04-Apr-18,101221,Business Gas Limited / Electricity,868.84,Revenue
DIRECT LEARNING AND SKILLS,ACHIEVEMENT FOR ALL,04-Apr-18,102652,Associated Community Training Limited,28000,Revenue
DIRECT LEARNING AND SKILLS,STRATEGY COMMUNITY LEARNING & RESOURCES,04-Apr-18,130041,Edson Print (Services) Limited,742,Revenue
DIRECT LEARNING AND SKILLS,ACHIEVEMENT FOR ALL,04-Apr-18,130247,Lyreco UK Limited,506.67,Revenue
DIRECT LEARNING AND SKILLS,ACHIEVEMENT FOR ALL,04-Apr-18,130280,Lyreco UK Limited,1390.17,Revenue
DIRECT LEARNING AND SKILLS,CATERING,04-Apr-18,150690,Nationwide Retail Systems Limited,3065,Revenue
DIRECT LEARNING AND SKILLS,GF CATERING,04-Apr-18,154401,ABM Catering for Leisure Limited,747.19,Revenue
DIRECT LEARNING AND SKILLS,GF CATERING,04-Apr-18,154401,DairyLink UK Limited,17547.61,Revenue
DIRECT SOCIAL SERVICES,GF CHILDREN SERVICES,04-Apr-18,209151,Gibbonsdown Childrens Centre Limited,11088,Revenue
DIRECT SOCIAL SERVICES,GF CHILDREN SERVICES,04-Apr-18,209151,Gibbonsdown Childrens Centre Limited,1260,Revenue
DIRECT SOCIAL SERVICES,GF ADULT SERVICES,04-Apr-18,212731,PHS Group Plc,1940.99,Revenue
DIRECT SOCIAL SERVICES,GF ADULT SERVICES,04-Apr-18,215489,Cardiff Homecare Limited,708.18,Revenue
DIRECT SOCIAL SERVICES,GF ADULT SERVICES,04-Apr-18,215489,Healthcare Assistants Limited,561.56,Revenue
DIRECT SOCIAL SERVICES,GF ADULT SERVICES,04-Apr-18,215489,Healthcare Assistants Limited,561.56,Revenue
DIRECT SOCIAL SERVICES,GF ADULT SERVICES,04-Apr-18,216179,Healthcare Assistants Limited,1254.42,Revenue
DIRECT SOCIAL SERVICES,GF ADULT SERVICES,04-Apr-18,216179,Healthcare Assistants Limited,1254.42,Revenue
DIRECT SOCIAL SERVICES,GF ADULT SERVICES,04-Apr-18,217909,Everycare (Cardiff) Limited,813.96,Revenue
DIRECT SOCIAL SERVICES,GF ADULT SERVICES,04-Apr-18,217909,Everycare (Cardiff) Limited,665.22,Revenue
DIRECT ENVIRONMENT AND HOUSING,GF ENV AND VISIBLE,04-Apr-18,300640,Stanford Marsh Limited t/a Cadspec,683.8,Revenue
DIRECT ENVIRONMENT AND HOUSING,GF ENV AND VISIBLE,04-Apr-18,323670,Drainforce Limited,1300,Revenue
DIRECT ENVIRONMENT AND HOUSING,GF ENV AND VISIBLE,04-Apr-18,325325,Tarmac Trading Limited,1968.75,Revenue
DIRECT ENVIRONMENT AND HOUSING,GF ENV AND VISIBLE,04-Apr-18,325340,Garth Plant Hire Limited,1080,Revenue
DIRECT ENVIRONMENT AND HOUSING,GF ENV AND VISIBLE,04-Apr-18,325340,Garth Plant Hire Limited,885,Revenue
DIRECT ENVIRONMENT AND HOUSING,GF ENV AND VISIBLE,04-Apr-18,325340,Garth Plant Hire Limited,885,Revenue
DIRECT ENVIRONMENT AND HOUSING,GF ENV AND VISIBLE,04-Apr-18,325892,Centregreat Limited,1621.95,Revenue
DIRECT ENVIRONMENT AND HOUSING,GF PARKS AND GROUNDS,04-Apr-18,333010,Redwood Environmental Services Limited,642.4,Revenue
DIRECT ENVIRONMENT AND HOUSING,GF PARKS AND GROUNDS,04-Apr-18,333011,Total Ground Care Limited,795,Revenue
DIRECT ENVIRONMENT AND HOUSING,GF PARKS AND GROUNDS,04-Apr-18,333015,Jam Creative Studios Limited,16130,Revenue
DIRECT ENVIRONMENT AND HOUSING,REGENERATION & PLANNING,04-Apr-18,352730,Hexion UK Limited,4251.85,Revenue
DIRECT ENVIRONMENT AND HOUSING,REGENERATION & PLANNING,04-Apr-18,354037,Schools Publishing Limited,1000,Revenue
DIRECT ENVIRONMENT AND HOUSING,VISIBLE SERVICES,04-Apr-18,359355,Newitt & Co Limited,1099.05,Revenue
DIRECT ENVIRONMENT AND HOUSING,REGENERATION & PLANNING,04-Apr-18,365763,The Glamorgan-Gwent Archaeological Trust Limited,11532.36,Revenue
DIRECT ENVIRONMENT AND HOUSING,VISIBLE SERVICES,04-Apr-18,365786,Cardiff City Transport Services Limited,97455.57,Revenue
DIRECT ENVIRONMENT AND HOUSING,VISIBLE SERVICES,04-Apr-18,365786,New Adventure Travel Limited,18639.53,Revenue
DIRECT ENVIRONMENT AND HOUSING,VISIBLE SERVICES,04-Apr-18,365787,New Adventure Travel Limited,25093.5,Revenue
DIRECT ENVIRONMENT AND HOUSING,VISIBLE SERVICES,04-Apr-18,365791,New Adventure Travel Limited,11281,Revenue
DIRECT ENVIRONMENT AND HOUSING,VISIBLE SERVICES,04-Apr-18,365791,New Adventure Travel Limited,14675,Revenue
DIRECT ENVIRONMENT AND HOUSING,VISIBLE SERVICES,04-Apr-18,365796,New Adventure Travel Limited,24911,Revenue
DIRECT ENVIRONMENT AND HOUSING,VISIBLE SERVICES,04-Apr-18,365796,New Adventure Travel Limited,12205,Revenue
DIRECT ENVIRONMENT AND HOUSING,VISIBLE SERVICES,04-Apr-18,365803,A2B (South Wales) Limited,2160,Revenue
DIRECT ENVIRONMENT AND HOUSING,GF LEGAL AND DEMOCRATIC,04-Apr-18,400051,Computacenter (UK) Limited,4500.22,Revenue
DIRECT ENVIRONMENT AND HOUSING,GF LEGAL AND DEMOCRATIC,04-Apr-18,400063,Virgin Media Business Limited,806.18,Revenue
DIRECT ENVIRONMENT AND HOUSING,GF LEGAL AND DEMOCRATIC,04-Apr-18,400063,Virgin Media Business Limited,796.07,Revenue
DIRECT ENVIRONMENT AND HOUSING,GF LEGAL AND DEMOCRATIC,04-Apr-18,400500,UK Laser Supplies Limited,645.81,Revenue
DIRECT ENVIRONMENT AND HOUSING,GF HOUSING SERVICES,04-Apr-18,405108,Pegasus Maintenance Services Limited,1585,Revenue
DIRECT MANAGING DIRECTOR AND RESOURCES,GF RESOURCES,04-Apr-18,420212,Open Text UK Limited,19226.63,Revenue
DIRECT MANAGING DIRECTOR AND RESOURCES,GF RESOURCES,04-Apr-18,420220,Lavat Consulting Limited T/A PSTAX,2065,Revenue
DIRECT MANAGING DIRECTOR AND RESOURCES,GF RESOURCES,04-Apr-18,421230,Xerox (UK) Limited,33716.81,Revenue
DIRECT MANAGING DIRECTOR AND RESOURCES,GF RESOURCES,04-Apr-18,422003,ARC Electrical Engineering Solutions Limited,690,Revenue
DIRECT MANAGING DIRECTOR AND RESOURCES,GF CORPORATE AND CUSTOMER SERVICES,04-Apr-18,440032,Mountain Tops Limited t/a Cresta Caterers,1984.4,Revenue
DIRECT MANAGING DIRECTOR AND RESOURCES,GF CORPORATE AND CUSTOMER SERVICES,04-Apr-18,440520,Zengenti Limited,8814.5,Revenue
DIRECT MANAGING DIRECTOR AND RESOURCES,GF MISCELLANEOUS POLICY,04-Apr-18,479050,Claims Connexion (UK) Limited,680,Revenue
DIRECT MANAGING DIRECTOR AND RESOURCES,GF MISCELLANEOUS POLICY,04-Apr-18,479050,Marsh Limited,1400,Revenue
DIRECT MANAGING DIRECTOR AND RESOURCES,GF MISCELLANEOUS POLICY,04-Apr-18,479050,Marsh Limited,12229.01,Revenue
DIRECT MANAGING DIRECTOR AND RESOURCES,GF MISCELLANEOUS POLICY,04-Apr-18,479050,Marsh Limited,15120,Revenue
DIRECT MANAGING DIRECTOR AND RESOURCES,GF MISCELLANEOUS POLICY,04-Apr-18,479050,Marsh Limited,350001.59,Revenue
DIRECT MANAGING DIRECTOR AND RESOURCES,GF MISCELLANEOUS POLICY,04-Apr-18,479050,Marsh Limited,23459.09,Revenue
DIRECT MANAGING DIRECTOR AND RESOURCES,GF MISCELLANEOUS POLICY,04-Apr-18,479050,Motor Accident Protection Services Limited,1969.68,Revenue
DIRECT MANAGING DIRECTOR AND RESOURCES,GF MISCELLANEOUS POLICY,04-Apr-18,479050,Pinit Building & Civil Engineering Limited,1824.5,Revenue
DIRECT MANAGING DIRECTOR AND RESOURCES,GF MISCELLANEOUS POLICY,04-Apr-18,479050,Zurich Insurance Plc t/a Zurich Municipal,783.09,Revenue
DIRECT MANAGING DIRECTOR AND RESOURCES,GF MISCELLANEOUS POLICY,04-Apr-18,479050,Zurich Insurance Plc t/a Zurich Municipal,100000,Revenue
DIRECT CAPITAL LEARN AND SKILLS,CAPITAL SCHOOLS,04-Apr-18,810067,Corona Energy Retail 4 Limited,2925.16,Capital
DIRECT CAPITAL LEARN AND SKILLS,CAPITAL SCHOOLS,04-Apr-18,810067,Corona Energy Retail 4 Limited,12769.76,Capital
DIRECT CAPITAL LEARN AND SKILLS,CAPITAL SCHOOLS,04-Apr-18,810067,Corona Energy Retail 4 Limited,15018.06,Capital
DIRECT CAPITAL LEARN AND SKILLS,CAPITAL SCHOOLS,04-Apr-18,810067,Corona Energy Retail 4 Limited,-852.19,Capital
DIRECT CAPITAL LEARN AND SKILLS,CAPITAL SCHOOLS,04-Apr-18,810067,Corona Energy Retail 4 Limited,-971.81,Capital
DIRECT CAPITAL LEARN AND SKILLS,CAPITAL SCHOOLS,04-Apr-18,810067,Corona Energy Retail 4 Limited,-869.8,Capital
DIRECT CAPITAL LEARN AND SKILLS,CAPITAL SCHOOLS,04-Apr-18,810067,Corona Energy Retail 4 Limited,-798.52,Capital
DIRECT CAPITAL LEARN AND SKILLS,CAPITAL SCHOOLS,04-Apr-18,810067,Corona Energy Retail 4 Limited,511.38,Capital
DIRECT CAPITAL LEARN AND SKILLS,CAPITAL SCHOOLS,04-Apr-18,810067,Corona Energy Retail 4 Limited,4848.14,Capital
DIRECT CAPITAL LEARN AND SKILLS,CAPITAL SCHOOLS,04-Apr-18,810067,Corona Energy Retail 4 Limited,6602.27,Capital
DIRECT CAPITAL LEARN AND SKILLS,CAPITAL SCHOOLS,04-Apr-18,810114,Corona Energy Retail 4 Limited,1884.21,Capital
DIRECT CAPITAL LEARN AND SKILLS,CAPITAL SCHOOLS,04-Apr-18,810114,Corona Energy Retail 4 Limited,1863.02,Capital
DIRECT CAPITAL LEARN AND SKILLS,CAPITAL SCHOOLS,04-Apr-18,810114,Corona Energy Retail 4 Limited,1489.28,Capital
DIRECT CAPITAL SOCIAL SERVICES,CAPITAL COMM CARE & HEALTH AR,04-Apr-18,821535,Webroster Limited,1128,Capital
DIRECT CAPITAL VISIBLE AND HOUSING SERVICES,AR CAPITAL ENGINEER,04-Apr-18,831216,Alpine Land Surveyors Limited,600,Capital
DIRECT CAPITAL VISIBLE AND HOUSING SERVICES,CAPITAL HIGHWAYS,04-Apr-18,831548,Centregreat Limited,6150,Capital
DIRECT CAPITAL DEVELOPMENT,CAPITAL ECO DEV,04-Apr-18,834221,Springboard Research Limited,850,Capital
DIRECT CAPITAL VISIBLE AND HOUSING SERVICES,CAPITAL HRA,04-Apr-18,842145,Curtins Consulting Limited,1200,Capital
DIRECT CAPITAL VISIBLE AND HOUSING SERVICES,CAPITAL HRA,04-Apr-18,842179,Casa Contractors Limited,5755.78,Capital
DIRECT CAPITAL VISIBLE AND HOUSING SERVICES,CAPITAL HRA,04-Apr-18,842180,Tugbury Electrical Services Limited,3407,Capital
DIRECT CAPITAL VISIBLE AND HOUSING SERVICES,CAPITAL HRA,04-Apr-18,842180,Tugbury Electrical Services Limited,2430,Capital
DIRECT CAPITAL VISIBLE AND HOUSING SERVICES,CAPITAL HRA,04-Apr-18,842180,Tugbury Electrical Services Limited,630,Capital
DIRECT CAPITAL DEVELOPMENT,CAPITAL PRIV HSG,04-Apr-18,845003,Acorn Mobility Services Limited t/a Acorn Stairlifts,1495,Capital
DIRECT CAPITAL DEVELOPMENT,CAPITAL PRIV HSG,04-Apr-18,845003,Acorn Mobility Services Limited t/a Acorn Stairlifts,4930,Capital
DIRECT CAPITAL DEVELOPMENT,CAPITAL PRIV HSG,04-Apr-18,845003,Handicare Accessibility Limited,4755.8,Capital
DIRECT CAPITAL DEVELOPMENT,CAPITAL PRIV HSG,04-Apr-18,845003,R & M Williams Limited,1078.44,Capital
DIRECT CAPITAL POLICY,CAPITAL POLICY,04-Apr-18,852255,D & M Mechanical Engineers Limited,17599.72,Capital
DIRECT CAPITAL POLICY,CAPITAL POLICY,04-Apr-18,852513,John Weaver (Contractors) Limited,94093.88,Capital
DIRECT ENVIRONMENT AND HOUSING,VISIBLE SERVICES,04-Apr-18,365802,Cardiff & Vale College,32683.6,Revenue
DIRECT ENVIRONMENT AND HOUSING,GF LEGAL AND DEMOCRATIC,04-Apr-18,400500,Penarth Town Council,1120,Revenue
DIRECT SOCIAL SERVICES,GF ADULT SERVICES,04-Apr-18,212731,Glyn Mcguire & Partners T/A G K The Flooring Specialists,1960,Revenue
DIRECT ENVIRONMENT AND HOUSING,GF ENV AND VISIBLE,04-Apr-18,325502,Western Power Distribution LLP,624.15,Revenue
DIRECT ENVIRONMENT AND HOUSING,GF ENV AND VISIBLE,04-Apr-18,325960,Western Power Distribution LLP,1317.99,Revenue
DIRECT CAPITAL VISIBLE AND HOUSING SERVICES,AR CAPITAL ENGINEER,04-Apr-18,831216,Western Power Distribution LLP,624.15,Capital
DIRECT ENVIRONMENT AND HOUSING,REGENERATION & PLANNING,04-Apr-18,365780,Christopher Hyatt t/a Chris Hyatt Partnership,3450,Revenue
DIRECT MANAGING DIRECTOR AND RESOURCES,GF RESOURCES,04-Apr-18,420220,Chartered Institute of Public Finance & Accountancy - CIPFA,1750,Revenue
DIRECT ENVIRONMENT AND HOUSING,GF ENV AND VISIBLE,04-Apr-18,323686,Hays Specialist Recruitment Limited,671.2,Revenue
DIRECT ENVIRONMENT AND HOUSING,GF ENV AND VISIBLE,04-Apr-18,325681,Hays Specialist Recruitment Limited,1345.86,Revenue
DIRECT ENVIRONMENT AND HOUSING,HOUSING,04-Apr-18,407119,Hays Specialist Recruitment Limited,1494.46,Revenue
DIRECT ENVIRONMENT AND HOUSING,HOUSING,04-Apr-18,407119,Hays Specialist Recruitment Limited,1118.23,Revenue
DIRECT LEARNING AND SKILLS,SCHOOLS DELEGATED,04-Apr-18,101305,Marc Griffiths t/a Stiwdiobox,1200,Revenue
DIRECT ENVIRONMENT AND HOUSING,GF PARKS AND GROUNDS,04-Apr-18,333011,Jeffrey Ball T/A Gates 'N' Railings,9280,Revenue
DIRECT ENVIRONMENT AND HOUSING,VISIBLE SERVICES,04-Apr-18,365803,Wayne Davies t/a Denway Travel,1000,Revenue
DIRECT ENVIRONMENT AND HOUSING,VISIBLE SERVICES,04-Apr-18,359324,Re-Create,4000,Revenue
DIRECT MANAGING DIRECTOR AND RESOURCES,GF GRANTS,04-Apr-18,465200,Glamorgan Voluntary Services,47765,Revenue
DIRECT SOCIAL SERVICES,GF ADULT SERVICES,05-Apr-18,215489,Hallows Care Limited T/A Hallows Care,777.24,Revenue
DIRECT SOCIAL SERVICES,GF ADULT SERVICES,05-Apr-18,215489,Hallows Care Limited T/A Hallows Care,673.54,Revenue
DIRECT SOCIAL SERVICES,GF ADULT SERVICES,05-Apr-18,215489,Hallows Care Limited T/A Hallows Care,716.8,Revenue
DIRECT SOCIAL SERVICES,GF ADULT SERVICES,05-Apr-18,215489,Hallows Care Limited T/A Hallows Care,684.02,Revenue
DIRECT SOCIAL SERVICES,GF ADULT SERVICES,05-Apr-18,216179,Hallows Care Limited T/A Hallows Care,673.58,Revenue
DIRECT LEARNING AND SKILLS,SCHOOLS DELEGATED,05-Apr-18,101013,Groupcall Limited,518,Revenue
DIRECT LEARNING AND SKILLS,SCHOOLS DELEGATED,05-Apr-18,101013,Prime Principle Limited T/A Classroom Monitor,850,Revenue
DIRECT LEARNING AND SKILLS,SCHOOLS DELEGATED,05-Apr-18,101300,Toshiba TEC UK Imaging Systems Limited,859.43,Revenue
DIRECT LEARNING AND SKILLS,SCHOOLS DELEGATED,05-Apr-18,102593,Academia Limited,2833.05,Revenue
DIRECT LEARNING AND SKILLS,SCHOOLS DELEGATED,05-Apr-18,102593,BOF Group Limited T/A BOF,6849.5,Revenue
DIRECT LEARNING AND SKILLS,SCHOOLS DELEGATED,05-Apr-18,102593,Garden Games Limited t/a Big Game Hunters,7120,Revenue
DIRECT LEARNING AND SKILLS,SCHOOLS DELEGATED,05-Apr-18,102593,Oxford Cambridge & RSA Examinations,954.9,Revenue
DIRECT LEARNING AND SKILLS,SCHOOLS DELEGATED,05-Apr-18,102593,Penarth Autocare Limited,1474.78,Revenue
DIRECT LEARNING AND SKILLS,SCHOOLS DELEGATED,05-Apr-18,102593,Reed Specialist Recruitment Limited,700,Revenue
DIRECT LEARNING AND SKILLS,SCHOOLS DELEGATED,05-Apr-18,102593,WJEC CBAC Limited,1187.08,Revenue
DIRECT LEARNING AND SKILLS,CATERING,05-Apr-18,150401,Brake Bros Limited,7327.77,Revenue
DIRECT LEARNING AND SKILLS,CATERING,05-Apr-18,150401,Castell Howell Foods Limited,12245.51,Revenue
DIRECT LEARNING AND SKILLS,CATERING,05-Apr-18,150671,Brake Bros Limited,3414.2,Revenue
DIRECT LEARNING AND SKILLS,CATERING,05-Apr-18,150671,Castell Howell Foods Limited,2867.89,Revenue
DIRECT LEARNING AND SKILLS,CATERING,05-Apr-18,150671,Chapple & Jenkins Limited,1762.89,Revenue
DIRECT LEARNING AND SKILLS,CATERING,05-Apr-18,150671,The Real Wrap Co. Limited,1333.19,Revenue
DIRECT SOCIAL SERVICES,GF ADULT SERVICES,05-Apr-18,217909,Everycare (Cardiff) Limited,813.96,Revenue
DIRECT SOCIAL SERVICES,GF ADULT SERVICES,05-Apr-18,217909,Everycare (Cardiff) Limited,651.18,Revenue
DIRECT SOCIAL SERVICES,GF ADULT SERVICES,05-Apr-18,217909,Merricks Private Transport Contractors Limited,806.6,Revenue
DIRECT SOCIAL SERVICES,GF BUSINESS MANAGEMENT & INOVATION,05-Apr-18,239015,Quanta Training Limited,23155,Revenue
DIRECT ENVIRONMENT AND HOUSING,GF ENV AND VISIBLE,05-Apr-18,300644,Cardiff Lock and Safe Co Limited,2504.84,Revenue
DIRECT ENVIRONMENT AND HOUSING,BUILDING SERVICES,05-Apr-18,303950,ADC Fire Systems Limited,-1008,Revenue
DIRECT ENVIRONMENT AND HOUSING,GF ENV AND VISIBLE,05-Apr-18,325560,Centregreat Limited,69880.55,Revenue
DIRECT ENVIRONMENT AND HOUSING,GF ENV AND VISIBLE,05-Apr-18,325644,Centregreat Limited,27786.3,Revenue
DIRECT ENVIRONMENT AND HOUSING,GF PARKS AND GROUNDS,05-Apr-18,333154,The Firewood Company (UK) Limited T/A Esa Tree Care,1600,Revenue
DIRECT ENVIRONMENT AND HOUSING,GF ENV AND VISIBLE,05-Apr-18,341154,4imprint Direct Limited,1345,Revenue
DIRECT ENVIRONMENT AND HOUSING,GF ENV AND VISIBLE,05-Apr-18,341182,LJ Developments (Atlantic) Limited,25718.69,Revenue
DIRECT ENVIRONMENT AND HOUSING,REGENERATION & PLANNING,05-Apr-18,357101,RIBA Enterprises Limited,810,Revenue
DIRECT ENVIRONMENT AND HOUSING,GF HOUSING SERVICES,05-Apr-18,405100,ACTL Limited,1436.07,Revenue
DIRECT ENVIRONMENT AND HOUSING,GF HOUSING SERVICES,05-Apr-18,405103,Nina Estate Agents Limited,550,Revenue
DIRECT ENVIRONMENT AND HOUSING,GF HOUSING SERVICES,05-Apr-18,405113,Interlet Residential Limited,650,Revenue
DIRECT ENVIRONMENT AND HOUSING,GF HOUSING SERVICES,05-Apr-18,405113,Knights Lettings Limited T/A Knights Estate Agents,585,Revenue
DIRECT ENVIRONMENT AND HOUSING,GF HOUSING SERVICES,05-Apr-18,405113,Knights Lettings Limited T/A Knights Estate Agents,675,Revenue
DIRECT ENVIRONMENT AND HOUSING,GF HOUSING SERVICES,05-Apr-18,405113,Knights Lettings Limited T/A Knights Estate Agents,750,Revenue
DIRECT CAPITAL VISIBLE AND HOUSING SERVICES,CAPITAL HRA,05-Apr-18,842177,Ian Williams Limited,170120.43,Capital
DIRECT LEARNING AND SKILLS,SCHOOLS DELEGATED,05-Apr-18,102593,Cardiff & Vale College,1993.8,Revenue
DIRECT LEARNING AND SKILLS,SCHOOLS DELEGATED,05-Apr-18,102593,Cardiff & Vale University Local Health Board,13161.57,Revenue
DIRECT LEARNING AND SKILLS,SCHOOLS DELEGATED,05-Apr-18,102593,Cardiff & Vale University Local Health Board,11845.28,Revenue
DIRECT SOCIAL SERVICES,GF CHILDREN SERVICES,05-Apr-18,209151,City and County of Swansea,1000.5,Revenue
DIRECT ENVIRONMENT AND HOUSING,REGULATORY SHARED SERVICES,05-Apr-18,403207,Tameside Metropolitan Borough Council,525,Revenue
DIRECT ENVIRONMENT AND HOUSING,REGULATORY SHARED SERVICES,05-Apr-18,403228,Tameside Metropolitan Borough Council,525,Revenue
DIRECT MANAGING DIRECTOR AND RESOURCES,GF RESOURCES,05-Apr-18,420221,Bridgend County Borough Council,736,Revenue
DIRECT MANAGING DIRECTOR AND RESOURCES,GF GENERAL EXPENDITURE POLICY,05-Apr-18,471900,Rhondda Cynon Taff County Borough Council,1592.05,Revenue
DIRECT MANAGING DIRECTOR AND RESOURCES,GF GENERAL EXPENDITURE POLICY,05-Apr-18,471900,Rhondda Cynon Taff County Borough Council,1591.5,Revenue
DIRECT ENVIRONMENT AND HOUSING,GF HOUSING SERVICES,05-Apr-18,405113,Ian & Jackie Rogers,675,Revenue
DIRECT ENVIRONMENT AND HOUSING,GF ENV AND VISIBLE,05-Apr-18,325681,Welsh Government,5104.44,Revenue
DIRECT LEARNING AND SKILLS,SCHOOLS DELEGATED,05-Apr-18,102593,Teaching Personnel Limited,540,Revenue
DIRECT MANAGING DIRECTOR AND RESOURCES,GF RESOURCES,05-Apr-18,422160,Hays Specialist Recruitment Limited,768.18,Revenue
DIRECT LEARNING AND SKILLS,CATERING,05-Apr-18,150401,Russel Bishop t/a WR Bishop & Co,2424.77,Revenue
DIRECT SOCIAL SERVICES,GF ADULT SERVICES,06-Apr-18,215489,Caring Companions Limited,750.68,Revenue
DIRECT SOCIAL SERVICES,GF ADULT SERVICES,06-Apr-18,215489,Caring Companions Limited,544.18,Revenue
DIRECT SOCIAL SERVICES,GF ADULT SERVICES,06-Apr-18,215489,Caring Companions Limited,660.94,Revenue
DIRECT SOCIAL SERVICES,GF ADULT SERVICES,06-Apr-18,215489,GJ Care & Training Limited,601.71,Revenue
DIRECT SOCIAL SERVICES,GF ADULT SERVICES,06-Apr-18,215489,GJ Care & Training Limited,746.46,Revenue
DIRECT SOCIAL SERVICES,GF ADULT SERVICES,06-Apr-18,215489,Heidi Christoforato t/a Churchfields Home Care,501.88,Revenue
DIRECT SOCIAL SERVICES,GF ADULT SERVICES,06-Apr-18,215489,Heidi Christoforato t/a Churchfields Home Care,552.16,Revenue
DIRECT SOCIAL SERVICES,GF ADULT SERVICES,06-Apr-18,215489,Nestor Primecare Services Limited t/a Allied Healthcare,555.72,Revenue
DIRECT SOCIAL SERVICES,GF ADULT SERVICES,06-Apr-18,215489,Nestor Primecare Services Limited t/a Allied Healthcare,517.4,Revenue
DIRECT SOCIAL SERVICES,GF ADULT SERVICES,06-Apr-18,215489,Nestor Primecare Services Limited t/a Allied Healthcare,564.61,Revenue
DIRECT SOCIAL SERVICES,GF ADULT SERVICES,06-Apr-18,215489,Nestor Primecare Services Limited t/a Allied Healthcare,569.52,Revenue
DIRECT SOCIAL SERVICES,GF ADULT SERVICES,06-Apr-18,215489,Nestor Primecare Services Limited t/a Allied Healthcare,514.03,Revenue
DIRECT SOCIAL SERVICES,GF ADULT SERVICES,06-Apr-18,215489,Susan Barrett t/a All Saints Domiciliary Care Agency,704.5,Revenue
DIRECT SOCIAL SERVICES,GF ADULT SERVICES,06-Apr-18,215489,Susan Barrett t/a All Saints Domiciliary Care Agency,781.4,Revenue
DIRECT SOCIAL SERVICES,GF ADULT SERVICES,06-Apr-18,215489,Susan Barrett t/a All Saints Domiciliary Care Agency,688.55,Revenue
DIRECT SOCIAL SERVICES,GF ADULT SERVICES,06-Apr-18,215489,Susan Barrett t/a All Saints Domiciliary Care Agency,646.1,Revenue
DIRECT SOCIAL SERVICES,GF ADULT SERVICES,06-Apr-18,215489,Susan Barrett t/a All Saints Domiciliary Care Agency,723.85,Revenue
DIRECT SOCIAL SERVICES,GF ADULT SERVICES,06-Apr-18,216179,Heidi Christoforato t/a Churchfields Home Care,595.13,Revenue
DIRECT SOCIAL SERVICES,GF ADULT SERVICES,06-Apr-18,216179,Nestor Primecare Services Limited t/a Allied Healthcare,699.33,Revenue
DIRECT SOCIAL SERVICES,GF ADULT SERVICES,06-Apr-18,216179,Susan Barrett t/a All Saints Domiciliary Care Agency,517.3,Revenue
DIRECT SOCIAL SERVICES,GF ADULT SERVICES,06-Apr-18,217909,GJ Care & Training Limited,761.08,Revenue
DIRECT SOCIAL SERVICES,GF ADULT SERVICES,06-Apr-18,218321,GJ Care & Training Limited,630.08,Revenue
DIRECT LEARNING AND SKILLS,SCHOOLS DELEGATED,06-Apr-18,101032,Twinkl Limited,546.67,Revenue
DIRECT LEARNING AND SKILLS,SCHOOLS DELEGATED,06-Apr-18,101065,Siemens Financial Services Limited,674.01,Revenue
DIRECT LEARNING AND SKILLS,SCHOOLS DELEGATED,06-Apr-18,102593,Brotour Limited,680,Revenue
DIRECT LEARNING AND SKILLS,SCHOOLS DELEGATED,06-Apr-18,102593,Complete Business Solutions Group Limited,5988.2,Revenue
DIRECT LEARNING AND SKILLS,SCHOOLS DELEGATED,06-Apr-18,102593,XMA Limited,3297.97,Revenue
DIRECT LEARNING AND SKILLS,SCHOOLS DELEGATED,06-Apr-18,102593,XMA Limited,5050.36,Revenue
DIRECT SOCIAL SERVICES,GF ADULT SERVICES,06-Apr-18,217909,A2B (South Wales) Limited,622.33,Revenue
DIRECT SOCIAL SERVICES,GF ADULT SERVICES,06-Apr-18,217909,A2B (South Wales) Limited,736.93,Revenue
DIRECT SOCIAL SERVICES,GF ADULT SERVICES,06-Apr-18,217909,A2B (South Wales) Limited,924.07,Revenue
DIRECT SOCIAL SERVICES,GF ADULT SERVICES,06-Apr-18,218302,Training In Mind Limited,4778.45,Revenue
DIRECT SOCIAL SERVICES,GF ADULT SERVICES,06-Apr-18,218302,Training In Mind Limited,2146.5,Revenue
DIRECT ENVIRONMENT AND HOUSING,GF ENV AND VISIBLE,06-Apr-18,325097,G.P.H.I.T (Integrated Services) Limited,2040,Revenue
DIRECT ENVIRONMENT AND HOUSING,GF ENV AND VISIBLE,06-Apr-18,325097,Neal Soil Suppliers Limited,3853,Revenue
DIRECT ENVIRONMENT AND HOUSING,GF ENV AND VISIBLE,06-Apr-18,325097,Neal Soil Suppliers Limited,3620,Revenue
DIRECT ENVIRONMENT AND HOUSING,GF ENV AND VISIBLE,06-Apr-18,325097,Neal Soil Suppliers Limited,5102,Revenue
DIRECT ENVIRONMENT AND HOUSING,GF ENV AND VISIBLE,06-Apr-18,325312,Network Rail Infrastructure Limited,1840.86,Revenue
DIRECT ENVIRONMENT AND HOUSING,GF ENV AND VISIBLE,06-Apr-18,325790,Calibre Contracting Limited,1143.25,Revenue
DIRECT ENVIRONMENT AND HOUSING,GF ENV AND VISIBLE,06-Apr-18,325811,Calibre Contracting Limited,689.7,Revenue
DIRECT ENVIRONMENT AND HOUSING,GF PARKS AND GROUNDS,06-Apr-18,333037,GB Sport & Leisure UK Limited,640,Revenue
DIRECT ENVIRONMENT AND HOUSING,REGENERATION & PLANNING,06-Apr-18,356020,The Abbey Cleaning Services Limited,572.01,Revenue
DIRECT ENVIRONMENT AND HOUSING,VISIBLE SERVICES,06-Apr-18,365790,Watts Coaches Limited,600,Revenue
DIRECT ENVIRONMENT AND HOUSING,VISIBLE SERVICES,06-Apr-18,365803,K-Tax Limited,5073,Revenue
DIRECT MANAGING DIRECTOR AND RESOURCES,GF RESOURCES,06-Apr-18,421230,Socitm Limited,500,Revenue
DIRECT MANAGING DIRECTOR AND RESOURCES,GF CORPORATE AND CUSTOMER SERVICES,06-Apr-18,440530,Northgate Public Services (UK) Limited,921.67,Revenue
DIRECT CAPITAL VISIBLE AND HOUSING SERVICES,AR CAPITAL ENGINEER,06-Apr-18,831210,Westcotec Limited,7900,Capital
DIRECT CAPITAL VISIBLE AND HOUSING SERVICES,CAPITAL HRA,06-Apr-18,842068,Gracia Consult Limited,4107.5,Capital
DIRECT ENVIRONMENT AND HOUSING,GF ENV AND VISIBLE,06-Apr-18,300606,Rhondda Cynon Taff County Borough Council,1300,Revenue
DIRECT ENVIRONMENT AND HOUSING,GF ENV AND VISIBLE,06-Apr-18,341153,Cardiff County Council,32000,Revenue
DIRECT ENVIRONMENT AND HOUSING,REGULATORY SHARED SERVICES,06-Apr-18,403206,Bridgend County Borough Council,3648,Revenue
DIRECT CAPITAL VISIBLE AND HOUSING SERVICES,CAPITAL HIGHWAYS,06-Apr-18,831549,Western Power Distribution LLP,6743.7,Capital
DIRECT CAPITAL DEVELOPMENT,CAPITAL PLANNING,06-Apr-18,837115,Western Power Distribution LLP,4130.49,Capital
DIRECT ENVIRONMENT AND HOUSING,GF HOUSING SERVICES,06-Apr-18,405113,Sharon Metson,650,Revenue
DIRECT ENVIRONMENT AND HOUSING,REGULATORY SHARED SERVICES,06-Apr-18,403135,Disclosure and Barring Service,1012,Revenue
DIRECT ENVIRONMENT AND HOUSING,REGULATORY SHARED SERVICES,06-Apr-18,403221,Chartered Trading Standards Institute,793,Revenue
DIRECT SOCIAL SERVICES,GF ADULT SERVICES,09-Apr-18,215489,Nestor Primecare Services Limited t/a Allied Healthcare,564.61,Revenue
DIRECT SOCIAL SERVICES,GF ADULT SERVICES,09-Apr-18,215489,Nestor Primecare Services Limited t/a Allied Healthcare,569.52,Revenue
DIRECT SOCIAL SERVICES,GF ADULT SERVICES,09-Apr-18,215489,Nestor Primecare Services Limited t/a Allied Healthcare,549.27,Revenue
DIRECT SOCIAL SERVICES,GF ADULT SERVICES,09-Apr-18,215489,Nestor Primecare Services Limited t/a Allied Healthcare,517.4,Revenue
DIRECT SOCIAL SERVICES,GF ADULT SERVICES,09-Apr-18,215489,Nestor Primecare Services Limited t/a Allied Healthcare,564.61,Revenue
DIRECT SOCIAL SERVICES,GF ADULT SERVICES,09-Apr-18,215489,Nestor Primecare Services Limited t/a Allied Healthcare,569.52,Revenue
DIRECT SOCIAL SERVICES,GF ADULT SERVICES,09-Apr-18,215489,Nestor Primecare Services Limited t/a Allied Healthcare,619.4,Revenue
DIRECT SOCIAL SERVICES,GF ADULT SERVICES,09-Apr-18,215489,Nestor Primecare Services Limited t/a Allied Healthcare,569.52,Revenue
DIRECT SOCIAL SERVICES,GF ADULT SERVICES,09-Apr-18,215489,Nestor Primecare Services Limited t/a Allied Healthcare,549.27,Revenue
DIRECT SOCIAL SERVICES,GF ADULT SERVICES,09-Apr-18,215489,Nestor Primecare Services Limited t/a Allied Healthcare,517.4,Revenue
DIRECT SOCIAL SERVICES,GF ADULT SERVICES,09-Apr-18,215489,Nestor Primecare Services Limited t/a Allied Healthcare,564.61,Revenue
DIRECT SOCIAL SERVICES,GF ADULT SERVICES,09-Apr-18,215489,Nestor Primecare Services Limited t/a Allied Healthcare,569.52,Revenue
DIRECT SOCIAL SERVICES,GF ADULT SERVICES,09-Apr-18,215489,Nestor Primecare Services Limited t/a Allied Healthcare,619.4,Revenue
DIRECT SOCIAL SERVICES,GF ADULT SERVICES,09-Apr-18,215489,Nestor Primecare Services Limited t/a Allied Healthcare,569.52,Revenue
DIRECT LEARNING AND SKILLS,SCHOOLS DELEGATED,09-Apr-18,101315,Apogee Corporation Limited,822.41,Revenue
DIRECT LEARNING AND SKILLS,SCHOOLS DELEGATED,09-Apr-18,101315,The Learning Partnership (Wales) Limited,801.3,Revenue
DIRECT LEARNING AND SKILLS,ACHIEVEMENT FOR ALL,09-Apr-18,130266,Barn Media Limited,5000,Revenue
DIRECT LEARNING AND SKILLS,GF CATERING,09-Apr-18,157800,Castell Howell Foods Limited,1543.94,Revenue
DIRECT LEARNING AND SKILLS,GF CATERING,09-Apr-18,157800,DairyLink UK Limited,669.87,Revenue
DIRECT SOCIAL SERVICES,GF ADULT SERVICES,09-Apr-18,212741,Dwr Cymru Cyf,3235.82,Revenue
DIRECT SOCIAL SERVICES,GF ADULT SERVICES,09-Apr-18,212781,Bunzle Retail & Healthcare Suppliers Limited T/A Care Shop,822,Revenue
DIRECT SOCIAL SERVICES,GF ADULT SERVICES,09-Apr-18,212781,Castell Howell Foods Limited,705.27,Revenue
DIRECT SOCIAL SERVICES,GF ADULT SERVICES,09-Apr-18,212781,PHS Group Plc,1899.9,Revenue
DIRECT SOCIAL SERVICES,REGIONAL ADOPTION SERVICE,09-Apr-18,260500,Complete Business Solutions Group Limited,1010.35,Revenue
DIRECT ENVIRONMENT AND HOUSING,GF ENV AND VISIBLE,09-Apr-18,300640,Yotta Limited,3803.63,Revenue
DIRECT ENVIRONMENT AND HOUSING,GF ENV AND VISIBLE,09-Apr-18,325649,Centregreat Limited,3982.88,Revenue
DIRECT ENVIRONMENT AND HOUSING,GF ENV AND VISIBLE,09-Apr-18,325681,Yotta Limited,13230,Revenue
DIRECT ENVIRONMENT AND HOUSING,REGENERATION & PLANNING,09-Apr-18,352730,Fire and Safety Services (UK) Limited,510,Revenue
DIRECT ENVIRONMENT AND HOUSING,REGENERATION & PLANNING,09-Apr-18,359457,British Academy of Film and Television Arts Cymru,5000,Revenue
DIRECT ENVIRONMENT AND HOUSING,REGENERATION & PLANNING,09-Apr-18,359750,Kingfisher Media Limited,2600,Revenue
DIRECT ENVIRONMENT AND HOUSING,GF LEGAL AND DEMOCRATIC,09-Apr-18,400043,11kbw Limited,550,Revenue
DIRECT ENVIRONMENT AND HOUSING,GF LEGAL AND DEMOCRATIC,09-Apr-18,400050,Glamorgan Gem Limited,507,Revenue
DIRECT ENVIRONMENT AND HOUSING,GF LEGAL AND DEMOCRATIC,09-Apr-18,400063,Sky UK Limited,2314,Revenue
DIRECT ENVIRONMENT AND HOUSING,REGULATORY SHARED SERVICES,09-Apr-18,403206,Bond Solon Training Limited,16000,Revenue
DIRECT ENVIRONMENT AND HOUSING,HOUSING,09-Apr-18,407100,Lyreco UK Limited,711.03,Revenue
DIRECT MANAGING DIRECTOR AND RESOURCES,GF RESOURCES,09-Apr-18,420212,11kbw Limited,550,Revenue
DIRECT MANAGING DIRECTOR AND RESOURCES,GF RESOURCES,09-Apr-18,420212,Capita Business Services Limited,1840,Revenue
DIRECT MANAGING DIRECTOR AND RESOURCES,GF RESOURCES,09-Apr-18,420212,Trinity Mirror Publishing Limited,1934.93,Revenue
DIRECT MANAGING DIRECTOR AND RESOURCES,GF RESOURCES,09-Apr-18,421230,Fujitsu Services Limited,6111.32,Revenue
DIRECT CAPITAL VISIBLE AND HOUSING SERVICES,CAPITAL HRA,09-Apr-18,842169,Ingram Evans Care Limited,600,Capital
DIRECT SOCIAL SERVICES,GF ADULT SERVICES,09-Apr-18,215489,Cardiff & Vale University Local Health Board,9522.66,Revenue
DIRECT SOCIAL SERVICES,GF ADULT SERVICES,09-Apr-18,215489,Cardiff & Vale University Local Health Board,1690.87,Revenue
DIRECT SOCIAL SERVICES,GF ADULT SERVICES,09-Apr-18,217909,Cardiff & Vale University Local Health Board,11646.1,Revenue
DIRECT SOCIAL SERVICES,GF ADULT SERVICES,09-Apr-18,218419,Cardiff & Vale University Local Health Board,13009.23,Revenue
DIRECT ENVIRONMENT AND HOUSING,REGULATORY SHARED SERVICES,09-Apr-18,403211,Bridgend County Borough Council,3956.66,Revenue
DIRECT SOCIAL SERVICES,GF ADULT SERVICES,09-Apr-18,218321,John Vincent O'Connell,1348.5,Revenue
DIRECT ENVIRONMENT AND HOUSING,REGENERATION & PLANNING,09-Apr-18,359457,Jason Barker t/a Elemental Force,3000,Revenue
DIRECT LEARNING AND SKILLS,SCHOOLS DELEGATED,09-Apr-18,102593,The National Autistic Society,-1350,Revenue
DIRECT ENVIRONMENT AND HOUSING,REGULATORY SHARED SERVICES,09-Apr-18,403214,Chartered Institute of Environmental Health Wales Directorate,750,Revenue
DIRECT ENVIRONMENT AND HOUSING,REGULATORY SHARED SERVICES,09-Apr-18,403215,Chartered Institute of Environmental Health Wales Directorate,750,Revenue
DIRECT SOCIAL SERVICES,GF ADULT SERVICES,10-Apr-18,215489,Cherish Cymru Limited,665.68,Revenue
DIRECT SOCIAL SERVICES,GF ADULT SERVICES,10-Apr-18,215489,Cherish Cymru Limited,664.49,Revenue
DIRECT SOCIAL SERVICES,GF ADULT SERVICES,10-Apr-18,215489,Cherish Cymru Limited,508.96,Revenue
DIRECT SOCIAL SERVICES,GF ADULT SERVICES,10-Apr-18,215489,Cherish Cymru Limited,590.42,Revenue
DIRECT SOCIAL SERVICES,GF ADULT SERVICES,10-Apr-18,215489,Cherish Cymru Limited,587.98,Revenue
DIRECT LEARNING AND SKILLS,STRATEGY COMMUNITY LEARNING & RESOURCES,10-Apr-18,100130,Partnerships In Care Limited T/A Care First,570,Revenue
DIRECT LEARNING AND SKILLS,SCHOOLS DELEGATED,10-Apr-18,101007,EDF Energy Plc,-1055.34,Revenue
DIRECT LEARNING AND SKILLS,SCHOOLS DELEGATED,10-Apr-18,101007,EDF Energy Plc,1008.54,Revenue
DIRECT LEARNING AND SKILLS,SCHOOLS DELEGATED,10-Apr-18,101007,EDF Energy Plc,-526.25,Revenue
DIRECT LEARNING AND SKILLS,SCHOOLS DELEGATED,10-Apr-18,101007,EDF Energy Plc,502.81,Revenue
DIRECT LEARNING AND SKILLS,SCHOOLS DELEGATED,10-Apr-18,101007,EDF Energy Plc,-572.54,Revenue
DIRECT LEARNING AND SKILLS,SCHOOLS DELEGATED,10-Apr-18,101007,EDF Energy Plc,547.01,Revenue
DIRECT LEARNING AND SKILLS,SCHOOLS DELEGATED,10-Apr-18,101007,EDF Energy Plc,-604.83,Revenue
DIRECT LEARNING AND SKILLS,SCHOOLS DELEGATED,10-Apr-18,101007,EDF Energy Plc,577.86,Revenue
DIRECT LEARNING AND SKILLS,SCHOOLS DELEGATED,10-Apr-18,101007,EDF Energy Plc,-672.18,Revenue
DIRECT LEARNING AND SKILLS,SCHOOLS DELEGATED,10-Apr-18,101007,EDF Energy Plc,642.18,Revenue
DIRECT LEARNING AND SKILLS,SCHOOLS DELEGATED,10-Apr-18,101025,EDF Energy Plc,845.41,Revenue
DIRECT LEARNING AND SKILLS,SCHOOLS DELEGATED,10-Apr-18,101195,EDF Energy Plc,977.76,Revenue
DIRECT LEARNING AND SKILLS,SCHOOLS DELEGATED,10-Apr-18,101202,Konica Minolta Business Solutions Limited,878.94,Revenue
DIRECT LEARNING AND SKILLS,SCHOOLS DELEGATED,10-Apr-18,101202,Legacy Leisure Limited,2970,Revenue
DIRECT LEARNING AND SKILLS,SCHOOLS DELEGATED,10-Apr-18,101308,EDF Energy Plc,1252.25,Revenue
DIRECT LEARNING AND SKILLS,SCHOOLS DELEGATED,10-Apr-18,101315,EDF Energy Plc,958.38,Revenue
DIRECT LEARNING AND SKILLS,SCHOOLS DELEGATED,10-Apr-18,101315,EDF Energy Plc,-834.49,Revenue
DIRECT LEARNING AND SKILLS,SCHOOLS DELEGATED,10-Apr-18,101315,EDF Energy Plc,857.4,Revenue
DIRECT LEARNING AND SKILLS,ACHIEVEMENT FOR ALL,10-Apr-18,102636,Associated Community Training Limited,18000,Revenue
DIRECT LEARNING AND SKILLS,ACHIEVEMENT FOR ALL,10-Apr-18,102636,Associated Community Training Limited,7700,Revenue
DIRECT LEARNING AND SKILLS,ACHIEVEMENT FOR ALL,10-Apr-18,102636,Merricks Private Transport Contractors Limited,3226,Revenue
DIRECT LEARNING AND SKILLS,ACHIEVEMENT FOR ALL,10-Apr-18,102801,Pivotal Education Limited,26650,Revenue
DIRECT LEARNING AND SKILLS,SCHOOLS NON DELEGATED,10-Apr-18,103412,Supply Desk Limited,680,Revenue
DIRECT LEARNING AND SKILLS,CATERING,10-Apr-18,150401,Brake Bros Limited,567.66,Revenue
DIRECT LEARNING AND SKILLS,CATERING,10-Apr-18,150401,Castell Howell Foods Limited,1657.62,Revenue
DIRECT LEARNING AND SKILLS,CATERING,10-Apr-18,150671,The Real Wrap Co. Limited,796.41,Revenue
DIRECT SOCIAL SERVICES,GF ADULT SERVICES,10-Apr-18,212741,EDF Energy Plc,909.8,Revenue
DIRECT SOCIAL SERVICES,GF ADULT SERVICES,10-Apr-18,212781,EDF Energy Plc,850.23,Revenue
DIRECT SOCIAL SERVICES,GF ADULT SERVICES,10-Apr-18,212791,EDF Energy Plc,993.5,Revenue
DIRECT SOCIAL SERVICES,GF ADULT SERVICES,10-Apr-18,215489,Cartref Limited,565,Revenue
DIRECT SOCIAL SERVICES,GF ADULT SERVICES,10-Apr-18,215489,Grangelodge Residential Home Limited t/a Grangelodge,513.66,Revenue
DIRECT SOCIAL SERVICES,GF ADULT SERVICES,10-Apr-18,217909,Consensus Support Services Limited t/a Ty Machen,2163.85,Revenue
DIRECT SOCIAL SERVICES,GF BUSINESS MANAGEMENT & INOVATION,10-Apr-18,239043,Jane Moore Associates Limited,5435.2,Revenue
DIRECT SOCIAL SERVICES,GF BUSINESS MANAGEMENT & INOVATION,10-Apr-18,239043,Practice Solutions Limited,5066,Revenue
DIRECT SOCIAL SERVICES,GF BUSINESS MANAGEMENT & INOVATION,10-Apr-18,239101,Computacenter (UK) Limited,1667.18,Revenue
DIRECT SOCIAL SERVICES,GF CHILDREN SERVICES,10-Apr-18,260180,ABL Training and Consultancy Limited,650.3,Revenue
DIRECT ENVIRONMENT AND HOUSING,GF ENV AND VISIBLE,10-Apr-18,300645,EDF Energy Plc,62163,Revenue
DIRECT ENVIRONMENT AND HOUSING,GF ENV AND VISIBLE,10-Apr-18,300645,EDF Energy Plc,-66824.72,Revenue
DIRECT ENVIRONMENT AND HOUSING,GF ENV AND VISIBLE,10-Apr-18,300645,EDF Energy Plc,66824.72,Revenue
DIRECT ENVIRONMENT AND HOUSING,VEHICLES,10-Apr-18,319010,C & K Supplies (UK) Limited,539.79,Revenue
DIRECT ENVIRONMENT AND HOUSING,VEHICLES,10-Apr-18,319010,C & K Supplies (UK) Limited,868.32,Revenue
DIRECT ENVIRONMENT AND HOUSING,GF ENV AND VISIBLE,10-Apr-18,325097,G.P.H.I.T (Integrated Services) Limited,1560,Revenue
DIRECT ENVIRONMENT AND HOUSING,GF ENV AND VISIBLE,10-Apr-18,325097,Neal Soil Suppliers Limited,4566,Revenue
DIRECT ENVIRONMENT AND HOUSING,GF ENV AND VISIBLE,10-Apr-18,325097,Neal Soil Suppliers Limited,1432,Revenue
DIRECT ENVIRONMENT AND HOUSING,GF ENV AND VISIBLE,10-Apr-18,325097,Neal Soil Suppliers Limited,4010,Revenue
DIRECT ENVIRONMENT AND HOUSING,GF ENV AND VISIBLE,10-Apr-18,325207,Consortio Security Limited,3218.88,Revenue
DIRECT ENVIRONMENT AND HOUSING,GF ENV AND VISIBLE,10-Apr-18,325810,Compass Minerals UK Limited,1215.85,Revenue
DIRECT ENVIRONMENT AND HOUSING,GF ENV AND VISIBLE,10-Apr-18,325851,Rennicks (UK) Limited,1864.24,Revenue
DIRECT ENVIRONMENT AND HOUSING,GF ENV AND VISIBLE,10-Apr-18,325892,Centregreat Limited,4346.31,Revenue
DIRECT ENVIRONMENT AND HOUSING,GF ENV AND VISIBLE,10-Apr-18,341260,EDF Energy Plc,4919.06,Revenue
DIRECT ENVIRONMENT AND HOUSING,REGENERATION & PLANNING,10-Apr-18,352718,EDF Energy Plc,920.03,Revenue
DIRECT ENVIRONMENT AND HOUSING,REGENERATION & PLANNING,10-Apr-18,359750,Solar Sunshades Limited,1116.78,Revenue
DIRECT ENVIRONMENT AND HOUSING,VISIBLE SERVICES,10-Apr-18,365786,Easyway Minicoach Hire Limited,5589.62,Revenue
DIRECT ENVIRONMENT AND HOUSING,GF LEGAL AND DEMOCRATIC,10-Apr-18,400063,British Telecommunications Plc,22116.37,Revenue
DIRECT ENVIRONMENT AND HOUSING,GF HOUSING SERVICES,10-Apr-18,402421,EDF Energy Plc,531.07,Revenue
DIRECT ENVIRONMENT AND HOUSING,REGULATORY SHARED SERVICES,10-Apr-18,403214,Computacenter (UK) Limited,833.59,Revenue
DIRECT ENVIRONMENT AND HOUSING,REGULATORY SHARED SERVICES,10-Apr-18,403215,Computacenter (UK) Limited,833.59,Revenue
DIRECT ENVIRONMENT AND HOUSING,HOUSING,10-Apr-18,407100,Northgate Public Services (UK) Limited,41258.3,Revenue
DIRECT ENVIRONMENT AND HOUSING,HOUSING,10-Apr-18,407111,LCB Construction Limited,11675.51,Revenue
DIRECT ENVIRONMENT AND HOUSING,HOUSING,10-Apr-18,407118,Integral Geotechnique (Wales) Limited,600,Revenue
DIRECT MANAGING DIRECTOR AND RESOURCES,GF RESOURCES,10-Apr-18,420212,Capita Business Services Limited,10631,Revenue
DIRECT MANAGING DIRECTOR AND RESOURCES,GF RESOURCES,10-Apr-18,420212,Capita Business Services Limited,68513.05,Revenue
DIRECT MANAGING DIRECTOR AND RESOURCES,GF RESOURCES,10-Apr-18,422100,EDF Energy Plc,7845.18,Revenue
DIRECT MANAGING DIRECTOR AND RESOURCES,GF RESOURCES,10-Apr-18,422130,EDF Energy Plc,9297.72,Revenue
DIRECT MANAGING DIRECTOR AND RESOURCES,GF RESOURCES,10-Apr-18,422201,EDF Energy Plc,2975.46,Revenue
DIRECT CAPITAL VISIBLE AND HOUSING SERVICES,CAPITAL HIGHWAYS,10-Apr-18,831534,Capita Property and Infrastructure Limited,6118.6,Capital
DIRECT CAPITAL VISIBLE AND HOUSING SERVICES,CAPITAL HRA,10-Apr-18,842066,Heatforce (Wales) Limited,5379.42,Capital
DIRECT LEARNING AND SKILLS,SCHOOLS NON DELEGATED,10-Apr-18,100680,Neath & Port Talbot County Borough Council,2971.65,Revenue
DIRECT LEARNING AND SKILLS,SCHOOLS NON DELEGATED,10-Apr-18,100926,Cardiff County Council,20000,Revenue
DIRECT SOCIAL SERVICES,GF BUSINESS MANAGEMENT & INOVATION,10-Apr-18,239043,Rhondda Cynon Taff County Borough Council,7827.65,Revenue
DIRECT CAPITAL LEARN AND SKILLS,CAPITAL SCHOOLS,10-Apr-18,810067,St Cyres Comprehensive School,25000,Capital
DIRECT SOCIAL SERVICES,GF BUSINESS MANAGEMENT & INOVATION,10-Apr-18,239043,Welsh Local Government Association,7500,Revenue
DIRECT MANAGING DIRECTOR AND RESOURCES,GF GENERAL EXPENDITURE POLICY,10-Apr-18,471901,South Wales Fire and Rescue Service,500513,Revenue
DIRECT LEARNING AND SKILLS,SCHOOLS DELEGATED,10-Apr-18,101202,Valley Education Services Limited,610.38,Revenue
DIRECT LEARNING AND SKILLS,SCHOOLS DELEGATED,10-Apr-18,101202,Valley Education Services Limited,610.38,Revenue
DIRECT LEARNING AND SKILLS,SCHOOLS NON DELEGATED,10-Apr-18,103006,Bay Resourcing Limited,632.5,Revenue
DIRECT LEARNING AND SKILLS,SCHOOLS NON DELEGATED,10-Apr-18,103412,Apollo Teaching Services Limited,520,Revenue
DIRECT LEARNING AND SKILLS,SCHOOLS NON DELEGATED,10-Apr-18,103412,Apollo Teaching Services Limited,520,Revenue
DIRECT LEARNING AND SKILLS,SCHOOLS NON DELEGATED,10-Apr-18,103412,Prospero Recruitment Limited,685,Revenue
DIRECT ENVIRONMENT AND HOUSING,GF ENV AND VISIBLE,10-Apr-18,323686,Hays Specialist Recruitment Limited,680.68,Revenue
DIRECT MANAGING DIRECTOR AND RESOURCES,GF RESOURCES,10-Apr-18,422160,Anderselite Limited,825,Revenue
DIRECT MANAGING DIRECTOR AND RESOURCES,GF RESOURCES,10-Apr-18,422160,Anderselite Limited,662.5,Revenue
DIRECT SOCIAL SERVICES,GF ADULT SERVICES,10-Apr-18,215486,Springbank Care Home Limited T/A Springbank Nursing Home,662.82,Revenue
DIRECT SOCIAL SERVICES,GF ADULT SERVICES,10-Apr-18,215489,Baltimore Care Limited,650.88,Revenue
DIRECT SOCIAL SERVICES,GF ADULT SERVICES,10-Apr-18,215489,Baltimore Care Limited,516.38,Revenue
DIRECT SOCIAL SERVICES,GF ADULT SERVICES,10-Apr-18,215489,Baltimore Care Limited,516.38,Revenue
DIRECT SOCIAL SERVICES,GF ADULT SERVICES,10-Apr-18,215489,Baltimore Care Limited,526.38,Revenue
DIRECT SOCIAL SERVICES,GF ADULT SERVICES,10-Apr-18,215489,Bellavista Care (Cardiff) Limited T/A Bellavista Nursing Home Cardiff,506.04,Revenue
DIRECT SOCIAL SERVICES,GF ADULT SERVICES,10-Apr-18,215489,Bellavista Nursing Homes (Wales) Limited t/a Bellavista Care Home,645.84,Revenue
DIRECT SOCIAL SERVICES,GF ADULT SERVICES,10-Apr-18,215489,Broadway Care Centre Limited T/A Hazelhurst Nursing Home,516.38,Revenue
DIRECT SOCIAL SERVICES,GF ADULT SERVICES,10-Apr-18,215489,Duffryn Ffrwd Manor Limited,549.49,Revenue
DIRECT SOCIAL SERVICES,GF ADULT SERVICES,10-Apr-18,215489,E & E Homes Limited T/A Cliffhaven Residential Home,503.08,Revenue
DIRECT SOCIAL SERVICES,GF ADULT SERVICES,10-Apr-18,215489,Forge Care Homes Limited t/a The Forge Care Centre,925,Revenue
DIRECT SOCIAL SERVICES,GF ADULT SERVICES,10-Apr-18,215489,Forge Care Homes Limited t/a The Forge Care Centre,671.32,Revenue
DIRECT SOCIAL SERVICES,GF ADULT SERVICES,10-Apr-18,215489,Harrison Care Enterprises Barry Limited t/a Island View,516.38,Revenue
DIRECT SOCIAL SERVICES,GF ADULT SERVICES,10-Apr-18,215489,Hebron Hall Limited,574,Revenue
DIRECT SOCIAL SERVICES,GF ADULT SERVICES,10-Apr-18,215489,June Zehetmayr t/a Tower Hill Residential Home,528.12,Revenue
DIRECT SOCIAL SERVICES,GF ADULT SERVICES,10-Apr-18,215489,Lakeside Homes Limited T/A Lakeside House,518.82,Revenue
DIRECT SOCIAL SERVICES,GF ADULT SERVICES,10-Apr-18,215489,Llangoedmor Properties Limited T/A Parkside Residential Home,500.5,Revenue
DIRECT SOCIAL SERVICES,GF ADULT SERVICES,10-Apr-18,215489,MHA Care Group t/a Morel Court,531.09,Revenue
DIRECT SOCIAL SERVICES,GF ADULT SERVICES,10-Apr-18,215489,MHA Care Group t/a Ty Gwyn Private Nursing Home,599.54,Revenue
DIRECT SOCIAL SERVICES,GF ADULT SERVICES,10-Apr-18,215489,MHA Care Group t/a Ty Gwyn Private Nursing Home,552.58,Revenue
DIRECT SOCIAL SERVICES,GF ADULT SERVICES,10-Apr-18,215489,Middlepatch Limited T/A College Fields Nursing Home,574.12,Revenue
DIRECT SOCIAL SERVICES,GF ADULT SERVICES,10-Apr-18,215489,Middlepatch Limited T/A College Fields Nursing Home,590.99,Revenue
DIRECT SOCIAL SERVICES,GF ADULT SERVICES,10-Apr-18,215489,Middlepatch Limited T/A College Fields Nursing Home,572.59,Revenue
DIRECT SOCIAL SERVICES,GF ADULT SERVICES,10-Apr-18,215489,Middlepatch Limited T/A College Fields Nursing Home,576.54,Revenue
DIRECT SOCIAL SERVICES,GF ADULT SERVICES,10-Apr-18,215489,Middlepatch Limited T/A College Fields Nursing Home,514.35,Revenue
DIRECT SOCIAL SERVICES,GF ADULT SERVICES,10-Apr-18,215489,Middlepatch Limited T/A College Fields Nursing Home,567.84,Revenue
DIRECT SOCIAL SERVICES,GF ADULT SERVICES,10-Apr-18,215489,Middlepatch Limited T/A College Fields Nursing Home,612.02,Revenue
DIRECT SOCIAL SERVICES,GF ADULT SERVICES,10-Apr-18,215489,Middlepatch Limited T/A College Fields Nursing Home,512.87,Revenue
DIRECT SOCIAL SERVICES,GF ADULT SERVICES,10-Apr-18,215489,Middlepatch Limited T/A College Fields Nursing Home,614.52,Revenue
DIRECT SOCIAL SERVICES,GF ADULT SERVICES,10-Apr-18,215489,Middlepatch Limited T/A College Fields Nursing Home,559.95,Revenue
DIRECT SOCIAL SERVICES,GF ADULT SERVICES,10-Apr-18,215489,Middlepatch Limited T/A College Fields Nursing Home,567.84,Revenue
DIRECT SOCIAL SERVICES,GF ADULT SERVICES,10-Apr-18,215489,Middlepatch Limited T/A College Fields Nursing Home,589.85,Revenue
DIRECT SOCIAL SERVICES,GF ADULT SERVICES,10-Apr-18,215489,Northcote Developments Limited,513.38,Revenue
DIRECT SOCIAL SERVICES,GF ADULT SERVICES,10-Apr-18,215489,Northcote Developments Limited,508.15,Revenue
DIRECT SOCIAL SERVICES,GF ADULT SERVICES,10-Apr-18,215489,Northcote Developments Limited,515.73,Revenue
DIRECT SOCIAL SERVICES,GF ADULT SERVICES,10-Apr-18,215489,Oakville Care Limited t/a Romilly Nursing Home,900,Revenue
DIRECT SOCIAL SERVICES,GF ADULT SERVICES,10-Apr-18,215489,Springbank Care Home Limited T/A Springbank Nursing Home,563.34,Revenue
DIRECT SOCIAL SERVICES,GF ADULT SERVICES,10-Apr-18,215489,Springbank Care Home Limited T/A Springbank Nursing Home,612.02,Revenue
DIRECT SOCIAL SERVICES,GF ADULT SERVICES,10-Apr-18,215489,Springbank Care Home Limited T/A Springbank Nursing Home,575.79,Revenue
DIRECT SOCIAL SERVICES,GF ADULT SERVICES,10-Apr-18,215489,Springbank Care Home Limited T/A Springbank Nursing Home,1478.75,Revenue
DIRECT SOCIAL SERVICES,GF ADULT SERVICES,10-Apr-18,215489,Springbank Care Home Limited T/A Springbank Nursing Home,603.34,Revenue
DIRECT SOCIAL SERVICES,GF ADULT SERVICES,10-Apr-18,215489,Springbank Care Home Limited T/A Springbank Nursing Home,509.85,Revenue
DIRECT SOCIAL SERVICES,GF ADULT SERVICES,10-Apr-18,215489,The Manor House St Hilary Limited T/A Milsom House,642.99,Revenue
DIRECT SOCIAL SERVICES,GF ADULT SERVICES,10-Apr-18,215489,The Manor House St Hilary Limited T/A Milsom House,504.17,Revenue
DIRECT SOCIAL SERVICES,GF ADULT SERVICES,10-Apr-18,215489,Waverley Care Centre Limited,500.74,Revenue
DIRECT SOCIAL SERVICES,GF ADULT SERVICES,10-Apr-18,215489,Waverley Care Centre Limited,585.1,Revenue
DIRECT SOCIAL SERVICES,GF ADULT SERVICES,10-Apr-18,215489,Waverley Care Centre Limited,533.61,Revenue
DIRECT SOCIAL SERVICES,GF ADULT SERVICES,10-Apr-18,215489,Waverley Care Centre Limited,596.49,Revenue
DIRECT SOCIAL SERVICES,GF ADULT SERVICES,10-Apr-18,216179,Accomplish Group Limited t/a Cedar House,1380.73,Revenue
DIRECT SOCIAL SERVICES,GF ADULT SERVICES,10-Apr-18,216179,Amethyst Healthcare Limited t/a Hillstone House,1770.23,Revenue
DIRECT SOCIAL SERVICES,GF ADULT SERVICES,10-Apr-18,216179,Bellavista Nursing Homes (Wales) Limited t/a Bellavista Care Home,552.23,Revenue
DIRECT SOCIAL SERVICES,GF ADULT SERVICES,10-Apr-18,216179,Care 4 U (Neath) Limited,1754.28,Revenue
DIRECT SOCIAL SERVICES,GF ADULT SERVICES,10-Apr-18,216179,Crusader Medical Care Limited T/A St Saviours Nursing Home,551.35,Revenue
DIRECT SOCIAL SERVICES,GF ADULT SERVICES,10-Apr-18,216179,Leonard Cheshire Disability,970.38,Revenue
DIRECT SOCIAL SERVICES,GF ADULT SERVICES,10-Apr-18,216179,Middlepatch Limited T/A College Fields Nursing Home,618.34,Revenue
DIRECT SOCIAL SERVICES,GF ADULT SERVICES,10-Apr-18,216179,Pontcanna Care Limited T/A Ty Llandaff Care Home,795.32,Revenue
DIRECT SOCIAL SERVICES,GF ADULT SERVICES,10-Apr-18,216179,Springbank Care Home Limited T/A Springbank Nursing Home,572.38,Revenue
DIRECT SOCIAL SERVICES,GF ADULT SERVICES,10-Apr-18,216179,Valebrook Care Homes Limited,1851.35,Revenue
DIRECT SOCIAL SERVICES,GF ADULT SERVICES,10-Apr-18,216179,Voyage 1 Limited t/a Brook Lodge,22429.55,Revenue
DIRECT SOCIAL SERVICES,GF ADULT SERVICES,10-Apr-18,216179,Voyage 1 Limited t/a Falcons Rest & Poachers Cottage,1729.64,Revenue
DIRECT SOCIAL SERVICES,GF ADULT SERVICES,10-Apr-18,217909,Accomplish Group Limited,1821.48,Revenue
DIRECT SOCIAL SERVICES,GF ADULT SERVICES,10-Apr-18,217909,Accomplish Group Limited,2146.47,Revenue
DIRECT SOCIAL SERVICES,GF ADULT SERVICES,10-Apr-18,217909,Accomplish Group Limited t/a Cedar House,1582.7,Revenue
DIRECT SOCIAL SERVICES,GF ADULT SERVICES,10-Apr-18,217909,Amethyst Healthcare Limited t/a Hillstone House,1680.86,Revenue
DIRECT SOCIAL SERVICES,GF ADULT SERVICES,10-Apr-18,217909,Amethyst Healthcare Limited t/a Hillstone House,1462.13,Revenue
DIRECT SOCIAL SERVICES,GF ADULT SERVICES,10-Apr-18,217909,Glasallt Fawr Camphill Centre,995.72,Revenue
DIRECT SOCIAL SERVICES,GF ADULT SERVICES,10-Apr-18,217909,Glasallt Fawr Camphill Centre,1544.9,Revenue
DIRECT SOCIAL SERVICES,GF ADULT SERVICES,10-Apr-18,217909,Heatherleigh Care Limited t/a 106 Splott Road,1563.71,Revenue
DIRECT SOCIAL SERVICES,GF ADULT SERVICES,10-Apr-18,217909,Heatherleigh Care Limited t/a 106 Splott Road,1223.14,Revenue
DIRECT SOCIAL SERVICES,GF ADULT SERVICES,10-Apr-18,217909,Llysywaun Limited t/a Bayview Lodge Nursing Home,1724.9,Revenue
DIRECT SOCIAL SERVICES,GF ADULT SERVICES,10-Apr-18,217909,Ocean Community Services Limited t/a Westminster Court Care Home,1116.27,Revenue
DIRECT SOCIAL SERVICES,GF ADULT SERVICES,10-Apr-18,217909,The Cedars Care Services Limited T/A Ashgrove Care Home,2112.35,Revenue
DIRECT SOCIAL SERVICES,GF ADULT SERVICES,10-Apr-18,217909,The Cedars Care Services Limited T/A Ashgrove Care Home,995.35,Revenue
DIRECT SOCIAL SERVICES,GF ADULT SERVICES,10-Apr-18,217909,The Cedars Care Services Limited T/A Oaklands,1030.35,Revenue
DIRECT SOCIAL SERVICES,GF ADULT SERVICES,10-Apr-18,217909,The Cedars Care Services Limited t/a Sycamore House,2026.35,Revenue
DIRECT SOCIAL SERVICES,GF ADULT SERVICES,10-Apr-18,217909,The Cedars Care Services Limited t/a Sycamore House,1809.35,Revenue
DIRECT SOCIAL SERVICES,GF ADULT SERVICES,10-Apr-18,217909,The Cedars Care Services Limited t/a The Cedars,1576.06,Revenue
DIRECT SOCIAL SERVICES,GF ADULT SERVICES,10-Apr-18,217909,The Cedars Care Services Limited t/a The Cedars,1365.05,Revenue
DIRECT SOCIAL SERVICES,GF ADULT SERVICES,10-Apr-18,217909,Vale Phoenix Limited,1079.73,Revenue
DIRECT SOCIAL SERVICES,GF ADULT SERVICES,10-Apr-18,217909,Vale Phoenix Limited,1116.94,Revenue
DIRECT SOCIAL SERVICES,GF ADULT SERVICES,10-Apr-18,217909,Valebrook Care Homes Limited,1654.39,Revenue
DIRECT SOCIAL SERVICES,GF ADULT SERVICES,10-Apr-18,217909,Valebrook Care Homes Limited,1999.5,Revenue
DIRECT SOCIAL SERVICES,GF ADULT SERVICES,10-Apr-18,217909,Valebrook Care Homes Limited,1420.24,Revenue
DIRECT SOCIAL SERVICES,GF ADULT SERVICES,10-Apr-18,217909,Valebrook Care Homes Limited,1767.35,Revenue
DIRECT SOCIAL SERVICES,GF ADULT SERVICES,10-Apr-18,217909,Valebrook Care Homes Limited,1861.95,Revenue
DIRECT SOCIAL SERVICES,GF ADULT SERVICES,10-Apr-18,217909,Valebrook Care Homes Limited,1390.24,Revenue
DIRECT SOCIAL SERVICES,GF ADULT SERVICES,10-Apr-18,218321,Adriana Limited T/A The Priory Nursing Home,536,Revenue
DIRECT SOCIAL SERVICES,GF ADULT SERVICES,10-Apr-18,218321,Hafod Care Association Limited,619.96,Revenue
DIRECT SOCIAL SERVICES,GF ADULT SERVICES,10-Apr-18,218321,Harrison Care Enterprises Barry Limited t/a Island View,520.91,Revenue
DIRECT SOCIAL SERVICES,GF ADULT SERVICES,10-Apr-18,218321,Isman & Kinze Nessa T/A Haven House,516.38,Revenue
DIRECT SOCIAL SERVICES,GF ADULT SERVICES,10-Apr-18,218321,J and P Residential Homes Limited T/A Monkstone House,578,Revenue
DIRECT SOCIAL SERVICES,GF ADULT SERVICES,10-Apr-18,218321,Northcote Developments Limited,559,Revenue
DIRECT SOCIAL SERVICES,GF ADULT SERVICES,10-Apr-18,218321,Sanda Mitchel & Ptn t/a Canola House Residential Home,578,Revenue
DIRECT SOCIAL SERVICES,GF ADULT SERVICES,10-Apr-18,218321,Waverley Care Centre Limited,909.98,Revenue
DIRECT SOCIAL SERVICES,GF ADULT SERVICES,10-Apr-18,218416,Bellavista Nursing Homes (Wales) Limited t/a Bellavista Care Home,9071.82,Revenue
DIRECT SOCIAL SERVICES,GF ADULT SERVICES,10-Apr-18,218419,Anwen Care Limited t/a Anwen Care Home,664,Revenue
DIRECT SOCIAL SERVICES,GF ADULT SERVICES,10-Apr-18,218419,Baltimore Care Limited,527.38,Revenue
DIRECT SOCIAL SERVICES,GF ADULT SERVICES,10-Apr-18,218419,Barchester Healthcare Homes Limited T/A Bushey House Beaumont,1400,Revenue
DIRECT SOCIAL SERVICES,GF ADULT SERVICES,10-Apr-18,218419,Bellavista Care (Cardiff) Limited T/A Bellavista Nursing Home Cardiff,696.38,Revenue
DIRECT SOCIAL SERVICES,GF ADULT SERVICES,10-Apr-18,218419,Bellavista Care (Cardiff) Limited T/A Bellavista Nursing Home Cardiff,516.38,Revenue
DIRECT SOCIAL SERVICES,GF ADULT SERVICES,10-Apr-18,218419,Bellavista Nursing Homes (Wales) Limited t/a Bellavista Care Home,503.15,Revenue
DIRECT SOCIAL SERVICES,GF ADULT SERVICES,10-Apr-18,218419,Bellavista Nursing Homes (Wales) Limited t/a Bellavista Care Home,2800.97,Revenue
DIRECT SOCIAL SERVICES,GF ADULT SERVICES,10-Apr-18,218419,David Austin t/a Silverdale,663.68,Revenue
DIRECT SOCIAL SERVICES,GF ADULT SERVICES,10-Apr-18,218419,E & E Homes Limited T/A Cliffhaven Residential Home,501.05,Revenue
DIRECT SOCIAL SERVICES,GF ADULT SERVICES,10-Apr-18,218419,E & E Homes Limited T/A Cliffhaven Residential Home,516.38,Revenue
DIRECT SOCIAL SERVICES,GF ADULT SERVICES,10-Apr-18,218419,E & E Homes Limited T/A Cliffhaven Residential Home,503.15,Revenue
DIRECT SOCIAL SERVICES,GF ADULT SERVICES,10-Apr-18,218419,E & E Homes Limited T/A Cliffhaven Residential Home,505.2,Revenue
DIRECT SOCIAL SERVICES,GF ADULT SERVICES,10-Apr-18,218419,Forge Care Homes Limited t/a The Forge Care Centre,699.25,Revenue
DIRECT SOCIAL SERVICES,GF ADULT SERVICES,10-Apr-18,218419,Hallmark Care Homes (Bute Town) Limited t/a Shire Hall Care Home,1215.5,Revenue
DIRECT SOCIAL SERVICES,GF ADULT SERVICES,10-Apr-18,218419,Harrison Care Enterprises Barry Limited t/a Island View,516.38,Revenue
DIRECT SOCIAL SERVICES,GF ADULT SERVICES,10-Apr-18,218419,Harrison Care Enterprises Barry Limited t/a Island View,501.96,Revenue
DIRECT SOCIAL SERVICES,GF ADULT SERVICES,10-Apr-18,218419,Harrison Care Enterprises Barry Limited t/a Island View,618,Revenue
DIRECT SOCIAL SERVICES,GF ADULT SERVICES,10-Apr-18,218419,Harrison Care Enterprises Barry Limited t/a Island View,514.75,Revenue
DIRECT SOCIAL SERVICES,GF ADULT SERVICES,10-Apr-18,218419,Harrison Care Enterprises Barry Limited t/a Island View,544.81,Revenue
DIRECT SOCIAL SERVICES,GF ADULT SERVICES,10-Apr-18,218419,Harrison Care Enterprises Barry Limited t/a Island View,516.38,Revenue
DIRECT SOCIAL SERVICES,GF ADULT SERVICES,10-Apr-18,218419,Harrison Care Enterprises Barry Limited t/a Island View,516.38,Revenue
DIRECT SOCIAL SERVICES,GF ADULT SERVICES,10-Apr-18,218419,Harrison Care Enterprises Barry Limited t/a Island View,503.11,Revenue
DIRECT SOCIAL SERVICES,GF ADULT SERVICES,10-Apr-18,218419,Harrison Care Enterprises Barry Limited t/a Island View,516.38,Revenue
DIRECT SOCIAL SERVICES,GF ADULT SERVICES,10-Apr-18,218419,June Zehetmayr t/a Tower Hill Residential Home,650.88,Revenue
DIRECT SOCIAL SERVICES,GF ADULT SERVICES,10-Apr-18,218419,June Zehetmayr t/a Tower Hill Residential Home,508.38,Revenue
DIRECT SOCIAL SERVICES,GF ADULT SERVICES,10-Apr-18,218419,Llangoedmor Properties Limited T/A Parkside Residential Home,533.19,Revenue
DIRECT SOCIAL SERVICES,GF ADULT SERVICES,10-Apr-18,218419,Llangoedmor Properties Limited T/A Parkside Residential Home,618,Revenue
DIRECT SOCIAL SERVICES,GF ADULT SERVICES,10-Apr-18,218419,Northcote Developments Limited,6094.31,Revenue
DIRECT SOCIAL SERVICES,GF ADULT SERVICES,10-Apr-18,218419,Shirwan Al-Mufti & Ptn t/a Pontcanna House,600,Revenue
DIRECT SOCIAL SERVICES,GF ADULT SERVICES,10-Apr-18,218419,Waverley Care Centre Limited,629.59,Revenue
DIRECT SOCIAL SERVICES,GF ADULT SERVICES,10-Apr-18,218419,Waverley Care Centre Limited,574,Revenue
DIRECT SOCIAL SERVICES,GF ADULT SERVICES,10-Apr-18,218419,Waverley Care Centre Limited,576.56,Revenue
DIRECT SOCIAL SERVICES,GF ADULT SERVICES,10-Apr-18,218419,Waverley Care Centre Limited,672.09,Revenue
DIRECT SOCIAL SERVICES,GF ADULT SERVICES,10-Apr-18,218419,Waverley Care Centre Limited,514.18,Revenue
DIRECT SOCIAL SERVICES,GF ADULT SERVICES,10-Apr-18,218419,Waverley Care Centre Limited,909.86,Revenue
DIRECT SOCIAL SERVICES,GF ADULT SERVICES,10-Apr-18,218419,Waverley Care Centre Limited,897.66,Revenue
DIRECT ENVIRONMENT AND HOUSING,GF HOUSING SERVICES,10-Apr-18,405108,Hafod Care Association Limited,4439.24,Revenue
DIRECT LEARNING AND SKILLS,STRATEGY COMMUNITY LEARNING & RESOURCES,10-Apr-18,130041,Catherine Harrison t/a The Dance Centre & Freedom Dance Co,787.5,Revenue
DIRECT ENVIRONMENT AND HOUSING,VEHICLES,10-Apr-18,319010,Ceri Williams t/a Mobile Tyre Services,2221.27,Revenue
DIRECT ENVIRONMENT AND HOUSING,VEHICLES,10-Apr-18,319010,Paul R Curtis t/a PRC Plant Cleaning,740,Revenue
DIRECT ENVIRONMENT AND HOUSING,VEHICLES,10-Apr-18,319010,Paul R Curtis t/a PRC Plant Cleaning,720,Revenue
DIRECT ENVIRONMENT AND HOUSING,VISIBLE SERVICES,10-Apr-18,365769,Wayne Davies t/a Denway Travel,1700,Revenue
DIRECT LEARNING AND SKILLS,STRATEGY COMMUNITY LEARNING & RESOURCES,11-Apr-18,120080,Bolinda UK Limited,2000,Revenue
DIRECT LEARNING AND SKILLS,STRATEGY COMMUNITY LEARNING & RESOURCES,11-Apr-18,120080,Bolinda UK Limited,870.82,Revenue
DIRECT SOCIAL SERVICES,GF CHILDREN SERVICES,11-Apr-18,260050,E4Law Limited t/a Lextox,574.75,Revenue
DIRECT SOCIAL SERVICES,GF CHILDREN SERVICES,11-Apr-18,260050,E4Law Limited t/a Lextox,1217,Revenue
DIRECT SOCIAL SERVICES,GF CHILDREN SERVICES,11-Apr-18,260050,E4Law Limited t/a Lextox,893,Revenue
DIRECT SOCIAL SERVICES,GF CHILDREN SERVICES,11-Apr-18,260050,E4Law Limited t/a Lextox,893,Revenue
DIRECT SOCIAL SERVICES,GF CHILDREN SERVICES,11-Apr-18,260050,TJ Assessment and Consultancy Limited,2077.29,Revenue
DIRECT SOCIAL SERVICES,GF CHILDREN SERVICES,11-Apr-18,260050,TJ Assessment and Consultancy Limited,2561.8,Revenue
DIRECT SOCIAL SERVICES,GF CHILDREN SERVICES,11-Apr-18,260120,Llamau Limited,6479.9,Revenue
DIRECT SOCIAL SERVICES,GF CHILDREN SERVICES,11-Apr-18,260130,Llamau Limited,1142.68,Revenue
DIRECT SOCIAL SERVICES,GF CHILDREN SERVICES,11-Apr-18,260130,Llamau Limited,1142.68,Revenue
DIRECT SOCIAL SERVICES,GF CHILDREN SERVICES,11-Apr-18,260130,Llamau Limited,1142.68,Revenue
DIRECT SOCIAL SERVICES,GF CHILDREN SERVICES,11-Apr-18,260140,Llamau Limited,1105.16,Revenue
DIRECT ENVIRONMENT AND HOUSING,VEHICLES,11-Apr-18,319010,Gullivers Truck Hire Limited,885,Revenue
DIRECT ENVIRONMENT AND HOUSING,VEHICLES,11-Apr-18,319010,Leeds Commercial Limited T/A LC Vehicle Hire,3300,Revenue
DIRECT ENVIRONMENT AND HOUSING,VEHICLES,11-Apr-18,319010,Riverside Truck Rental LImited,4070,Revenue
DIRECT ENVIRONMENT AND HOUSING,VEHICLES,11-Apr-18,319010,SHB Hire Limited,848.58,Revenue
DIRECT ENVIRONMENT AND HOUSING,GF ENV AND VISIBLE,11-Apr-18,325312,Kabin Hire Limited,814.51,Revenue
DIRECT ENVIRONMENT AND HOUSING,GF ENV AND VISIBLE,11-Apr-18,325325,Calibre Contracting Limited,1640.16,Revenue
DIRECT ENVIRONMENT AND HOUSING,GF ENV AND VISIBLE,11-Apr-18,325325,Garth Plant Hire Limited,885,Revenue
DIRECT ENVIRONMENT AND HOUSING,GF ENV AND VISIBLE,11-Apr-18,325325,Garth Plant Hire Limited,919.5,Revenue
DIRECT ENVIRONMENT AND HOUSING,GF ENV AND VISIBLE,11-Apr-18,325325,Green Circle Sustainable Development Limited,987.5,Revenue
DIRECT ENVIRONMENT AND HOUSING,GF ENV AND VISIBLE,11-Apr-18,325325,Green Circle Sustainable Development Limited,1146.25,Revenue
DIRECT ENVIRONMENT AND HOUSING,GF ENV AND VISIBLE,11-Apr-18,325325,Green Circle Sustainable Development Limited,872.5,Revenue
DIRECT ENVIRONMENT AND HOUSING,GF ENV AND VISIBLE,11-Apr-18,325325,Ran Hire and Sales Limited,675.21,Revenue
DIRECT ENVIRONMENT AND HOUSING,GF ENV AND VISIBLE,11-Apr-18,325325,Ran Hire and Sales Limited,899.3,Revenue
DIRECT ENVIRONMENT AND HOUSING,GF ENV AND VISIBLE,11-Apr-18,325325,Ran Hire and Sales Limited,734.2,Revenue
DIRECT ENVIRONMENT AND HOUSING,GF ENV AND VISIBLE,11-Apr-18,325325,Tarmac Trading Limited,522.76,Revenue
DIRECT ENVIRONMENT AND HOUSING,GF ENV AND VISIBLE,11-Apr-18,325325,Wolseley UK Limited,526.56,Revenue
DIRECT ENVIRONMENT AND HOUSING,GF ENV AND VISIBLE,11-Apr-18,325340,Calibre Contracting Limited,1437.18,Revenue
DIRECT ENVIRONMENT AND HOUSING,GF ENV AND VISIBLE,11-Apr-18,325340,Calibre Contracting Limited,1538.67,Revenue
DIRECT ENVIRONMENT AND HOUSING,GF ENV AND VISIBLE,11-Apr-18,325340,Calibre Contracting Limited,1234.2,Revenue
DIRECT ENVIRONMENT AND HOUSING,GF ENV AND VISIBLE,11-Apr-18,325340,Garth Plant Hire Limited,885,Revenue
DIRECT ENVIRONMENT AND HOUSING,GF ENV AND VISIBLE,11-Apr-18,325340,Green Circle Sustainable Development Limited,898.75,Revenue
DIRECT ENVIRONMENT AND HOUSING,GF ENV AND VISIBLE,11-Apr-18,325340,Green Circle Sustainable Development Limited,3386.25,Revenue
DIRECT ENVIRONMENT AND HOUSING,GF ENV AND VISIBLE,11-Apr-18,325340,Green Circle Sustainable Development Limited,740,Revenue
DIRECT ENVIRONMENT AND HOUSING,GF ENV AND VISIBLE,11-Apr-18,325340,R.E. Plant Hire Limited,521.63,Revenue
DIRECT ENVIRONMENT AND HOUSING,GF ENV AND VISIBLE,11-Apr-18,325340,R.E. Plant Hire Limited,504,Revenue
DIRECT ENVIRONMENT AND HOUSING,GF ENV AND VISIBLE,11-Apr-18,325790,Calibre Contracting Limited,800.28,Revenue
DIRECT ENVIRONMENT AND HOUSING,GF ENV AND VISIBLE,11-Apr-18,325851,Calibre Contracting Limited,1234.2,Revenue
DIRECT ENVIRONMENT AND HOUSING,GF ENV AND VISIBLE,11-Apr-18,325894,Calibre Contracting Limited,961.95,Revenue
DIRECT ENVIRONMENT AND HOUSING,GF ENV AND VISIBLE,11-Apr-18,325894,Tarmac Trading Limited,805.69,Revenue
DIRECT ENVIRONMENT AND HOUSING,GF PARKS AND GROUNDS,11-Apr-18,333013,Ace Site Services (UK) Limited,3255,Revenue
DIRECT ENVIRONMENT AND HOUSING,GF PARKS AND GROUNDS,11-Apr-18,333015,Treework Services Limited t/a Treework Environmental Practice,600,Revenue
DIRECT ENVIRONMENT AND HOUSING,GF PARKS AND GROUNDS,11-Apr-18,333037,HAGS-SMP Limited,623,Revenue
DIRECT ENVIRONMENT AND HOUSING,GF PARKS AND GROUNDS,11-Apr-18,333154,The Firewood Company (UK) Limited T/A Esa Tree Care,1600,Revenue
DIRECT ENVIRONMENT AND HOUSING,REGULATORY SHARED SERVICES,11-Apr-18,403222,TR Davies Limited,832.08,Revenue
DIRECT ENVIRONMENT AND HOUSING,HOUSING,11-Apr-18,407100,Northgate Public Services (UK) Limited,2000,Revenue
DIRECT MANAGING DIRECTOR AND RESOURCES,GF RESOURCES,11-Apr-18,420212,Royal Mail Group Limited,1201.23,Revenue
DIRECT CAPITAL DEVELOPMENT,CAPITAL ECO DEV,11-Apr-18,834254,Pinit Building & Civil Engineering Limited,20000,Capital
DIRECT CAPITAL DEVELOPMENT,CAPITAL PRIV HSG,11-Apr-18,845003,Arnold Building & Carpentry Limited,2718.62,Capital
DIRECT CAPITAL DEVELOPMENT,CAPITAL PRIV HSG,11-Apr-18,845003,Steddy Limited,4777.91,Capital
DIRECT ENVIRONMENT AND HOUSING,REGULATORY SHARED SERVICES,11-Apr-18,403211,Cardiff County Council,44912.41,Revenue
DIRECT ENVIRONMENT AND HOUSING,REGULATORY SHARED SERVICES,11-Apr-18,403363,Blaenau Gwent County Borough Council,2000,Revenue
DIRECT ENVIRONMENT AND HOUSING,GF ENV AND VISIBLE,11-Apr-18,325700,Robert Gay & Ptns t/a Bob Gay Plant Hire,778,Revenue
DIRECT SOCIAL SERVICES,GF CHILDREN SERVICES,11-Apr-18,260050,Anna Moelwyn-Williams,540,Revenue
DIRECT SOCIAL SERVICES,GF CHILDREN SERVICES,11-Apr-18,260050,Kayleigh Simmons,1440,Revenue
DIRECT SOCIAL SERVICES,GF CHILDREN SERVICES,11-Apr-18,260210,Helena Jones,540,Revenue
DIRECT SOCIAL SERVICES,GF CHILDREN SERVICES,11-Apr-18,260210,Helena Jones,540,Revenue
DIRECT LEARNING AND SKILLS,SCHOOLS NON DELEGATED,11-Apr-18,103003,New Directions (Education) Limited,504,Revenue
DIRECT LEARNING AND SKILLS,SCHOOLS NON DELEGATED,11-Apr-18,103233,Hays Specialist Recruitment Limited,561.66,Revenue
DIRECT SOCIAL SERVICES,GF CHILDREN SERVICES,11-Apr-18,260140,Sanctuary Personnel Limited,1104,Revenue
DIRECT SOCIAL SERVICES,GF CHILDREN SERVICES,11-Apr-18,260150,Sanctuary Personnel Limited,1276.5,Revenue
DIRECT ENVIRONMENT AND HOUSING,HOUSING,11-Apr-18,407119,Hays Specialist Recruitment Limited,1528.3,Revenue
DIRECT ENVIRONMENT AND HOUSING,HOUSING,11-Apr-18,407119,Hays Specialist Recruitment Limited,1030.52,Revenue
DIRECT SOCIAL SERVICES,GF ADULT SERVICES,11-Apr-18,215012,Action for Children,659.1,Revenue
DIRECT SOCIAL SERVICES,GF ADULT SERVICES,11-Apr-18,215012,Action for Children,880.85,Revenue
DIRECT SOCIAL SERVICES,GF ADULT SERVICES,11-Apr-18,215012,Action for Children,587.1,Revenue
DIRECT SOCIAL SERVICES,GF ADULT SERVICES,11-Apr-18,215012,Action for Children,10001.7,Revenue
DIRECT SOCIAL SERVICES,GF ADULT SERVICES,11-Apr-18,215012,Action for Children,587.1,Revenue
DIRECT SOCIAL SERVICES,GF ADULT SERVICES,11-Apr-18,215012,Action for Children,1467.75,Revenue
DIRECT SOCIAL SERVICES,GF BUSINESS MANAGEMENT & INOVATION,11-Apr-18,239021,Age Concern Cardiff & Vale of Glamorgan t/a Age Connects Cardiff and the Vale,10928.75,Revenue
DIRECT SOCIAL SERVICES,GF BUSINESS MANAGEMENT & INOVATION,11-Apr-18,239031,Age Concern Cardiff & Vale of Glamorgan t/a Age Connects Cardiff and the Vale,6672.25,Revenue
DIRECT ENVIRONMENT AND HOUSING,REGULATORY SHARED SERVICES,11-Apr-18,403370,Hope Rescue Centre Limited,906.84,Revenue
DIRECT SOCIAL SERVICES,GF ADULT SERVICES,12-Apr-18,215489,1st Grade Care Limited,588.32,Revenue
DIRECT SOCIAL SERVICES,GF ADULT SERVICES,12-Apr-18,215489,1st Grade Care Limited,677.92,Revenue
DIRECT SOCIAL SERVICES,GF ADULT SERVICES,12-Apr-18,215489,1st Grade Care Limited,643.2,Revenue
DIRECT SOCIAL SERVICES,GF ADULT SERVICES,12-Apr-18,215489,1st Grade Care Limited,686.4,Revenue
DIRECT SOCIAL SERVICES,GF ADULT SERVICES,12-Apr-18,215489,1st Grade Care Limited,657.45,Revenue
DIRECT SOCIAL SERVICES,GF ADULT SERVICES,12-Apr-18,217909,1st Grade Care Limited,783.82,Revenue
DIRECT LEARNING AND SKILLS,STRATEGY COMMUNITY LEARNING & RESOURCES,12-Apr-18,100121,Phoenix Software Limited,1125,Revenue
DIRECT LEARNING AND SKILLS,STRATEGY COMMUNITY LEARNING & RESOURCES,12-Apr-18,100121,Silversands Limited,4090,Revenue
DIRECT LEARNING AND SKILLS,STRATEGY COMMUNITY LEARNING & RESOURCES,12-Apr-18,100121,eBuyer UK Limited,690,Revenue
DIRECT LEARNING AND SKILLS,STRATEGY COMMUNITY LEARNING & RESOURCES,12-Apr-18,120080,S.I.A Security and Facilities Management Limited t/a SFM Training Wales,998,Revenue
DIRECT ENVIRONMENT AND HOUSING,REGENERATION & PLANNING,12-Apr-18,130511,ARC Electrical Engineering Solutions Limited,756,Revenue
DIRECT SOCIAL SERVICES,GF ADULT SERVICES,12-Apr-18,212731,EDF Energy Plc,722.24,Revenue
DIRECT SOCIAL SERVICES,GF ADULT SERVICES,12-Apr-18,212731,EDF Energy Plc,1255.23,Revenue
DIRECT SOCIAL SERVICES,GF ADULT SERVICES,12-Apr-18,212731,EDF Energy Plc,1111.94,Revenue
DIRECT SOCIAL SERVICES,GF ADULT SERVICES,12-Apr-18,212731,EDF Energy Plc,1120.18,Revenue
DIRECT SOCIAL SERVICES,GF ADULT SERVICES,12-Apr-18,212731,EDF Energy Plc,974.27,Revenue
DIRECT SOCIAL SERVICES,GF ADULT SERVICES,12-Apr-18,212731,EDF Energy Plc,1006.71,Revenue
DIRECT SOCIAL SERVICES,GF ADULT SERVICES,12-Apr-18,212731,EDF Energy Plc,1067.4,Revenue
DIRECT SOCIAL SERVICES,GF ADULT SERVICES,12-Apr-18,212731,EDF Energy Plc,1145.73,Revenue
DIRECT SOCIAL SERVICES,GF ADULT SERVICES,12-Apr-18,212731,EDF Energy Plc,1241.32,Revenue
DIRECT SOCIAL SERVICES,GF ADULT SERVICES,12-Apr-18,212781,Dwr Cymru Cyf,4464.99,Revenue
DIRECT SOCIAL SERVICES,GF ADULT SERVICES,12-Apr-18,215489,Cardiff Homecare Limited,708.18,Revenue
DIRECT ENVIRONMENT AND HOUSING,GF ENV AND VISIBLE,12-Apr-18,325325,Wolseley UK Limited,1244,Revenue
DIRECT ENVIRONMENT AND HOUSING,GF ENV AND VISIBLE,12-Apr-18,325338,Calibre Contracting Limited,1640.16,Revenue
DIRECT ENVIRONMENT AND HOUSING,GF ENV AND VISIBLE,12-Apr-18,325338,Calibre Contracting Limited,583.27,Revenue
DIRECT ENVIRONMENT AND HOUSING,GF ENV AND VISIBLE,12-Apr-18,325340,Calibre Contracting Limited,1335.69,Revenue
DIRECT ENVIRONMENT AND HOUSING,GF ENV AND VISIBLE,12-Apr-18,325340,Calibre Contracting Limited,1538.67,Revenue
DIRECT ENVIRONMENT AND HOUSING,GF ENV AND VISIBLE,12-Apr-18,325340,Calibre Contracting Limited,1437.18,Revenue
DIRECT ENVIRONMENT AND HOUSING,GF ENV AND VISIBLE,12-Apr-18,325340,Calibre Contracting Limited,583.27,Revenue
DIRECT ENVIRONMENT AND HOUSING,GF ENV AND VISIBLE,12-Apr-18,325750,Calibre Contracting Limited,617.1,Revenue
DIRECT ENVIRONMENT AND HOUSING,GF ENV AND VISIBLE,12-Apr-18,325810,MeteoGroup UK Limited,1031.43,Revenue
DIRECT ENVIRONMENT AND HOUSING,GF PARKS AND GROUNDS,12-Apr-18,333218,Technical Surfaces Limited,830,Revenue
DIRECT ENVIRONMENT AND HOUSING,VISIBLE SERVICES,12-Apr-18,359341,TVM Cheltenham Limited,1845,Revenue
DIRECT ENVIRONMENT AND HOUSING,VISIBLE SERVICES,12-Apr-18,365789,The Edge (Systems) Limited,1001.1,Revenue
DIRECT ENVIRONMENT AND HOUSING,REGULATORY SHARED SERVICES,12-Apr-18,403218,Minton Treharne & Davies Limited,2591,Revenue
DIRECT ENVIRONMENT AND HOUSING,GF HOUSING SERVICES,12-Apr-18,405300,Illy Systems Limited,10433,Revenue
DIRECT ENVIRONMENT AND HOUSING,HOUSING,12-Apr-18,407120,AFT Group (Wales) Limited T/A Advanced Fire Technologies Limited,2486,Revenue
DIRECT MANAGING DIRECTOR AND RESOURCES,GF RESOURCES,12-Apr-18,420212,Associated Consultants Limited,600,Revenue
DIRECT MANAGING DIRECTOR AND RESOURCES,GF RESOURCES,12-Apr-18,422100,Princes Gate Cool Water Limited,826.56,Revenue
DIRECT MANAGING DIRECTOR AND RESOURCES,GF RESOURCES,12-Apr-18,422101,Chubb Fire & Security Limited,575.26,Revenue
DIRECT MANAGING DIRECTOR AND RESOURCES,GF PROPERTY,12-Apr-18,467100,Door Maintenance Co Limited,740,Revenue
DIRECT MANAGING DIRECTOR AND RESOURCES,GF PROPERTY,12-Apr-18,467401,Dwr Cymru Cyf,1313.19,Revenue
DIRECT CAPITAL LEARN AND SKILLS,AR CAPITAL SCHOOLS,12-Apr-18,812251,Thornlink Limited T/A Vale Consultancy,1195,Capital
DIRECT CAPITAL DEVELOPMENT,CAPITAL ECO DEV,12-Apr-18,834230,Jones Lang Lasalle Limited,1010,Capital
DIRECT CAPITAL POLICY,CAPITAL POLICY,12-Apr-18,852512,Pinit Building & Civil Engineering Limited,12025,Capital
DIRECT ENVIRONMENT AND HOUSING,VISIBLE SERVICES,12-Apr-18,365803,Andrew Maker,1470,Revenue
DIRECT ENVIRONMENT AND HOUSING,GF LEGAL AND DEMOCRATIC,12-Apr-18,400050,Matthew Barry,8000,Revenue
DIRECT ENVIRONMENT AND HOUSING,GF ENV AND VISIBLE,12-Apr-18,300607,Association for Public Service Excellence (APSE),3370.4,Revenue
DIRECT ENVIRONMENT AND HOUSING,REGULATORY SHARED SERVICES,12-Apr-18,403207,Chartered Trading Standards Institute,833,Revenue
DIRECT ENVIRONMENT AND HOUSING,REGULATORY SHARED SERVICES,12-Apr-18,403207,Chartered Trading Standards Institute,833,Revenue
DIRECT ENVIRONMENT AND HOUSING,REGULATORY SHARED SERVICES,12-Apr-18,403207,Chartered Trading Standards Institute,833,Revenue
DIRECT ENVIRONMENT AND HOUSING,REGULATORY SHARED SERVICES,12-Apr-18,403208,The Birmingham Assay Office,1028.1,Revenue
DIRECT SOCIAL SERVICES,GF ADULT SERVICES,12-Apr-18,215489,Willowmere Home Care Agency Limited,527.52,Revenue
DIRECT SOCIAL SERVICES,GF ADULT SERVICES,12-Apr-18,215489,Willowmere Home Care Agency Limited,732.15,Revenue
DIRECT SOCIAL SERVICES,GF ADULT SERVICES,12-Apr-18,215489,Willowmere Home Care Agency Limited,824.95,Revenue
DIRECT SOCIAL SERVICES,GF ADULT SERVICES,12-Apr-18,215489,Willowmere Home Care Agency Limited,690.4,Revenue
DIRECT SOCIAL SERVICES,GF ADULT SERVICES,12-Apr-18,215489,Willowmere Home Care Agency Limited,523.89,Revenue
DIRECT SOCIAL SERVICES,GF ADULT SERVICES,12-Apr-18,215489,Willowmere Home Care Agency Limited,603.12,Revenue
DIRECT SOCIAL SERVICES,GF ADULT SERVICES,12-Apr-18,215489,Willowmere Home Care Agency Limited,727.84,Revenue
DIRECT SOCIAL SERVICES,GF ADULT SERVICES,12-Apr-18,215489,Willowmere Home Care Agency Limited,638.87,Revenue
DIRECT SOCIAL SERVICES,GF ADULT SERVICES,12-Apr-18,215489,Willowmere Home Care Agency Limited,771.12,Revenue
DIRECT SOCIAL SERVICES,GF ADULT SERVICES,12-Apr-18,215489,Willowmere Home Care Agency Limited,537.15,Revenue
DIRECT SOCIAL SERVICES,GF ADULT SERVICES,12-Apr-18,215489,Willowmere Home Care Agency Limited,651.52,Revenue
DIRECT SOCIAL SERVICES,GF ADULT SERVICES,12-Apr-18,215489,Willowmere Home Care Agency Limited,690.4,Revenue
DIRECT SOCIAL SERVICES,GF ADULT SERVICES,12-Apr-18,215489,Willowmere Home Care Agency Limited,742.79,Revenue
DIRECT SOCIAL SERVICES,GF ADULT SERVICES,12-Apr-18,215489,Willowmere Home Care Agency Limited,522.87,Revenue
DIRECT SOCIAL SERVICES,GF ADULT SERVICES,12-Apr-18,215489,Willowmere Home Care Agency Limited,795.05,Revenue
DIRECT SOCIAL SERVICES,GF ADULT SERVICES,12-Apr-18,215489,Willowmere Home Care Agency Limited,796.45,Revenue
DIRECT ENVIRONMENT AND HOUSING,REGENERATION & PLANNING,12-Apr-18,130511,Paul Kelly t/a Vanman Express,545,Revenue
DIRECT ENVIRONMENT AND HOUSING,REGENERATION & PLANNING,12-Apr-18,356600,Keith Walden t/a Keith Walden Master Thatcher,8300,Revenue
DIRECT CAPITAL LEARN AND SKILLS,AR CAPITAL SCHOOLS,12-Apr-18,812194,Elwyn J Kerslake t/a Woodland Electrical,2834,Capital
DIRECT SOCIAL SERVICES,GF ADULT SERVICES,13-Apr-18,215489,Nestor Primecare Services Limited t/a Allied Healthcare,555.72,Revenue
DIRECT SOCIAL SERVICES,GF ADULT SERVICES,13-Apr-18,215489,Nestor Primecare Services Limited t/a Allied Healthcare,529.37,Revenue
DIRECT SOCIAL SERVICES,GF ADULT SERVICES,13-Apr-18,215489,Nestor Primecare Services Limited t/a Allied Healthcare,546.46,Revenue
DIRECT SOCIAL SERVICES,GF ADULT SERVICES,13-Apr-18,215489,Nestor Primecare Services Limited t/a Allied Healthcare,531.65,Revenue
DIRECT SOCIAL SERVICES,GF ADULT SERVICES,13-Apr-18,215489,Nestor Primecare Services Limited t/a Allied Healthcare,649.84,Revenue
DIRECT SOCIAL SERVICES,GF ADULT SERVICES,13-Apr-18,215489,Nestor Primecare Services Limited t/a Allied Healthcare,589.76,Revenue
DIRECT SOCIAL SERVICES,GF ADULT SERVICES,13-Apr-18,215489,Nestor Primecare Services Limited t/a Allied Healthcare,635.09,Revenue
DIRECT SOCIAL SERVICES,GF ADULT SERVICES,13-Apr-18,215489,Nestor Primecare Services Limited t/a Allied Healthcare,650.88,Revenue
DIRECT SOCIAL SERVICES,GF ADULT SERVICES,13-Apr-18,215489,Nestor Primecare Services Limited t/a Allied Healthcare,621.63,Revenue
DIRECT SOCIAL SERVICES,GF ADULT SERVICES,13-Apr-18,215489,Nestor Primecare Services Limited t/a Allied Healthcare,521.37,Revenue
DIRECT SOCIAL SERVICES,GF ADULT SERVICES,13-Apr-18,216179,Nestor Primecare Services Limited t/a Allied Healthcare,655.49,Revenue
DIRECT SOCIAL SERVICES,GF ADULT SERVICES,13-Apr-18,216179,Nestor Primecare Services Limited t/a Allied Healthcare,787.02,Revenue
DIRECT LEARNING AND SKILLS,STRATEGY COMMUNITY LEARNING & RESOURCES,13-Apr-18,100121,Phoenix Software Limited,675,Revenue
DIRECT LEARNING AND SKILLS,SCHOOLS DELEGATED,13-Apr-18,101094,4imprint Direct Limited,604.35,Revenue
DIRECT LEARNING AND SKILLS,SCHOOLS DELEGATED,13-Apr-18,101094,Academics Limited,662.5,Revenue
DIRECT LEARNING AND SKILLS,SCHOOLS DELEGATED,13-Apr-18,101094,Academics Limited,662.5,Revenue
DIRECT LEARNING AND SKILLS,SCHOOLS DELEGATED,13-Apr-18,101094,Sealyham Activity Centre Limited,5150,Revenue
DIRECT LEARNING AND SKILLS,SCHOOLS DELEGATED,13-Apr-18,101094,iTeach Limited,2750,Revenue
DIRECT MANAGING DIRECTOR AND RESOURCES,GF HUMAN RESOURCES,13-Apr-18,140100,Golley Slater Group Limited,4655,Revenue
DIRECT SOCIAL SERVICES,GF ADULT SERVICES,13-Apr-18,212731,Tremorfa Limited,1465.41,Revenue
DIRECT SOCIAL SERVICES,GF ADULT SERVICES,13-Apr-18,212731,Tremorfa Limited,1463.06,Revenue
DIRECT SOCIAL SERVICES,GF BUSINESS MANAGEMENT & INOVATION,13-Apr-18,239101,Infographics Limited,787,Revenue
DIRECT ENVIRONMENT AND HOUSING,BUILDING SERVICES,13-Apr-18,301062,Biffa Waste Services Limited,3302.75,Revenue
DIRECT ENVIRONMENT AND HOUSING,BUILDING SERVICES,13-Apr-18,303900,Metro Rod Limited,650,Revenue
DIRECT ENVIRONMENT AND HOUSING,BUILDING SERVICES,13-Apr-18,303900,WWS 1987 Limited T/A Welsh Window Systems,1060,Revenue
DIRECT ENVIRONMENT AND HOUSING,BUILDING SERVICES,13-Apr-18,303905,Heatforce (Wales) Limited,2009.47,Revenue
DIRECT ENVIRONMENT AND HOUSING,BUILDING SERVICES,13-Apr-18,303905,Heatforce (Wales) Limited,13884.22,Revenue
DIRECT ENVIRONMENT AND HOUSING,BUILDING SERVICES,13-Apr-18,303905,Heatforce (Wales) Limited,15916.25,Revenue
DIRECT ENVIRONMENT AND HOUSING,BUILDING SERVICES,13-Apr-18,303910,SMK Building & Maintenance Limited,3369.27,Revenue
DIRECT ENVIRONMENT AND HOUSING,BUILDING SERVICES,13-Apr-18,303930,City Electrical Factors Limited,603,Revenue
DIRECT ENVIRONMENT AND HOUSING,BUILDING SERVICES,13-Apr-18,303950,ADC Fire Systems Limited,723.48,Revenue
DIRECT ENVIRONMENT AND HOUSING,BUILDING SERVICES,13-Apr-18,303950,ADC Fire Systems Limited,863.2,Revenue
DIRECT ENVIRONMENT AND HOUSING,BUILDING SERVICES,13-Apr-18,303950,ADC Fire Systems Limited,898.8,Revenue
DIRECT ENVIRONMENT AND HOUSING,BUILDING SERVICES,13-Apr-18,303950,Enquin Environmental Limited,708.5,Revenue
DIRECT ENVIRONMENT AND HOUSING,BUILDING SERVICES,13-Apr-18,303950,Enquin Environmental Limited,533.5,Revenue
DIRECT ENVIRONMENT AND HOUSING,BUILDING SERVICES,13-Apr-18,304103,SMK Building & Maintenance Limited,3364.05,Revenue
DIRECT ENVIRONMENT AND HOUSING,BUILDING SERVICES,13-Apr-18,304103,SMK Building & Maintenance Limited,525.53,Revenue
DIRECT ENVIRONMENT AND HOUSING,BUILDING SERVICES,13-Apr-18,304103,SMK Building & Maintenance Limited,1984.23,Revenue
DIRECT ENVIRONMENT AND HOUSING,BUILDING SERVICES,13-Apr-18,304103,SMK Building & Maintenance Limited,711.88,Revenue
DIRECT ENVIRONMENT AND HOUSING,BUILDING SERVICES,13-Apr-18,304103,SMK Building & Maintenance Limited,576.91,Revenue
DIRECT ENVIRONMENT AND HOUSING,BUILDING SERVICES,13-Apr-18,305687,Taylor Decorating Limited,2685,Revenue
DIRECT ENVIRONMENT AND HOUSING,GF PARKS AND GROUNDS,13-Apr-18,333015,Datastox Limited,6300,Revenue
DIRECT ENVIRONMENT AND HOUSING,GF PARKS AND GROUNDS,13-Apr-18,333015,Rigby Taylor Limited,2128,Revenue
DIRECT ENVIRONMENT AND HOUSING,GF HOUSING SERVICES,13-Apr-18,405001,Nina Estate Agents Limited,595,Revenue
DIRECT MANAGING DIRECTOR AND RESOURCES,GF RESOURCES,13-Apr-18,421230,Astun Technology Limited,11325,Revenue
DIRECT MANAGING DIRECTOR AND RESOURCES,GF RESOURCES,13-Apr-18,422100,Triangle Lift Services Limited,1309.5,Revenue
DIRECT MANAGING DIRECTOR AND RESOURCES,GF RESOURCES,13-Apr-18,422100,Triangle Lift Services Limited,566,Revenue
DIRECT CAPITAL DEVELOPMENT,AR CAPITAL LEISURE,13-Apr-18,835374,Sutcliffe Play (South West) Limited,556.05,Capital
DIRECT CAPITAL DEVELOPMENT,AR CAPITAL LEISURE,13-Apr-18,835375,AFT Group (Wales) Limited T/A Advanced Fire Technologies Limited,980,Capital
DIRECT CAPITAL DEVELOPMENT,AR CAPITAL LEISURE,13-Apr-18,835382,ARC Electrical Engineering Solutions Limited,35625,Capital
DIRECT ENVIRONMENT AND HOUSING,GF ENV AND VISIBLE,13-Apr-18,341001,Cardiff County Council,-540,Revenue
DIRECT ENVIRONMENT AND HOUSING,BUILDING SERVICES,13-Apr-18,303931,Michael Bryl & Ptn T/A CW Facilities Management,1198.75,Revenue
DIRECT ENVIRONMENT AND HOUSING,BUILDING SERVICES,13-Apr-18,303931,Michael Bryl & Ptn T/A CW Facilities Management,504,Revenue
DIRECT MANAGING DIRECTOR AND RESOURCES,GF HUMAN RESOURCES,13-Apr-18,140131,Randstad Solutions Limited,105287.02,Revenue
DIRECT SOCIAL SERVICES,GF ADULT SERVICES,13-Apr-18,215011,Cardiff & Vale Parents Federation,6600,Revenue
DIRECT SOCIAL SERVICES,GF ADULT SERVICES,13-Apr-18,215011,Care & Repair Cardiff and the Vale,3508.25,Revenue
DIRECT SOCIAL SERVICES,GF ADULT SERVICES,13-Apr-18,215011,Carers Trust South East Wales,18480,Revenue
DIRECT SOCIAL SERVICES,GF ADULT SERVICES,13-Apr-18,215011,Carers Trust South East Wales,11096.25,Revenue
DIRECT SOCIAL SERVICES,GF ADULT SERVICES,13-Apr-18,215012,Hafal,751.27,Revenue
DIRECT SOCIAL SERVICES,GF ADULT SERVICES,13-Apr-18,215012,Ty Hapus,1960,Revenue
DIRECT SOCIAL SERVICES,GF ADULT SERVICES,13-Apr-18,217909,Freeways Trust,2992,Revenue
DIRECT LEARNING AND SKILLS,SCHOOLS DELEGATED,16-Apr-18,101007,Corona Energy Retail 4 Limited,632.01,Revenue
DIRECT LEARNING AND SKILLS,SCHOOLS DELEGATED,16-Apr-18,101025,Corona Energy Retail 4 Limited,786.98,Revenue
DIRECT LEARNING AND SKILLS,SCHOOLS DELEGATED,16-Apr-18,101031,Corona Energy Retail 4 Limited,738.97,Revenue
DIRECT LEARNING AND SKILLS,SCHOOLS DELEGATED,16-Apr-18,101032,Corona Energy Retail 4 Limited,1081.64,Revenue
DIRECT LEARNING AND SKILLS,SCHOOLS DELEGATED,16-Apr-18,101047,Corona Energy Retail 4 Limited,619.7,Revenue
DIRECT LEARNING AND SKILLS,SCHOOLS DELEGATED,16-Apr-18,101137,Corona Energy Retail 4 Limited,625.47,Revenue
DIRECT LEARNING AND SKILLS,SCHOOLS DELEGATED,16-Apr-18,101171,Corona Energy Retail 4 Limited,759.29,Revenue
DIRECT LEARNING AND SKILLS,SCHOOLS DELEGATED,16-Apr-18,101195,Corona Energy Retail 4 Limited,1053.24,Revenue
DIRECT LEARNING AND SKILLS,SCHOOLS DELEGATED,16-Apr-18,101285,Corona Energy Retail 4 Limited,875.03,Revenue
DIRECT LEARNING AND SKILLS,SCHOOLS DELEGATED,16-Apr-18,101300,Corona Energy Retail 4 Limited,603.63,Revenue
DIRECT LEARNING AND SKILLS,SCHOOLS DELEGATED,16-Apr-18,101308,Corona Energy Retail 4 Limited,738.59,Revenue
DIRECT LEARNING AND SKILLS,SCHOOLS DELEGATED,16-Apr-18,101315,Corona Energy Retail 4 Limited,955.85,Revenue
DIRECT MANAGING DIRECTOR AND RESOURCES,GF HUMAN RESOURCES,16-Apr-18,140117,Partnerships In Care Limited T/A Care First,665.93,Revenue
DIRECT SOCIAL SERVICES,GF ADULT SERVICES,16-Apr-18,212731,Corona Energy Retail 4 Limited,989.84,Revenue
DIRECT SOCIAL SERVICES,GF ADULT SERVICES,16-Apr-18,212741,Corona Energy Retail 4 Limited,701.39,Revenue
DIRECT SOCIAL SERVICES,GF ADULT SERVICES,16-Apr-18,212781,Corona Energy Retail 4 Limited,1433.53,Revenue
DIRECT SOCIAL SERVICES,GF ADULT SERVICES,16-Apr-18,212791,Corona Energy Retail 4 Limited,1078.62,Revenue
DIRECT SOCIAL SERVICES,GF ADULT SERVICES,16-Apr-18,215803,Corona Energy Retail 4 Limited,817.7,Revenue
DIRECT SOCIAL SERVICES,GF YOS,16-Apr-18,221341,Big Wheelers (South Wales) Limited,625,Revenue
DIRECT SOCIAL SERVICES,GF YOS,16-Apr-18,221371,Legacy Leisure Limited,1004.4,Revenue
DIRECT ENVIRONMENT AND HOUSING,VEHICLES,16-Apr-18,319010,Ted Hopkins Limited,634.65,Revenue
DIRECT ENVIRONMENT AND HOUSING,VEHICLES,16-Apr-18,319010,Watts Truck & Van (Cardiff) Limited,1250,Revenue
DIRECT ENVIRONMENT AND HOUSING,GF PARKS AND GROUNDS,16-Apr-18,333013,Complete Weed Control (South Wales) Limited,695,Revenue
DIRECT ENVIRONMENT AND HOUSING,GF PARKS AND GROUNDS,16-Apr-18,333154,The Firewood Company (UK) Limited T/A Esa Tree Care,2100,Revenue
DIRECT ENVIRONMENT AND HOUSING,GF LEGAL AND DEMOCRATIC,16-Apr-18,400050,Glamorgan Gem Limited,702,Revenue
DIRECT ENVIRONMENT AND HOUSING,REGULATORY SHARED SERVICES,16-Apr-18,403202,ALS Environmental Limited,1456.91,Revenue
DIRECT ENVIRONMENT AND HOUSING,HOUSING,16-Apr-18,407101,Biffa Waste Services Limited,727.75,Revenue
DIRECT ENVIRONMENT AND HOUSING,HOUSING,16-Apr-18,407102,Richard Jones Carpets (Barry) Limited,540.11,Revenue
DIRECT ENVIRONMENT AND HOUSING,HOUSING,16-Apr-18,407106,A McLay & Company Limited,560,Revenue
DIRECT ENVIRONMENT AND HOUSING,HOUSING,16-Apr-18,407150,Corona Energy Retail 4 Limited,576.19,Revenue
DIRECT ENVIRONMENT AND HOUSING,HOUSING,16-Apr-18,407153,Forces Fitness Limited,3335,Revenue
DIRECT ENVIRONMENT AND HOUSING,HOUSING,16-Apr-18,407215,Corona Energy Retail 4 Limited,1380.62,Revenue
DIRECT ENVIRONMENT AND HOUSING,HOUSING,16-Apr-18,407240,Corona Energy Retail 4 Limited,1034.45,Revenue
DIRECT ENVIRONMENT AND HOUSING,HOUSING,16-Apr-18,407245,Corona Energy Retail 4 Limited,883.14,Revenue
DIRECT ENVIRONMENT AND HOUSING,HOUSING,16-Apr-18,407260,Corona Energy Retail 4 Limited,1206.36,Revenue
DIRECT MANAGING DIRECTOR AND RESOURCES,GF RESOURCES,16-Apr-18,422100,Corona Energy Retail 4 Limited,3177.17,Revenue
DIRECT MANAGING DIRECTOR AND RESOURCES,GF RESOURCES,16-Apr-18,422120,Corona Energy Retail 4 Limited,882.01,Revenue
DIRECT MANAGING DIRECTOR AND RESOURCES,GF RESOURCES,16-Apr-18,422201,Corona Energy Retail 4 Limited,1336.73,Revenue
DIRECT CAPITAL VISIBLE AND HOUSING SERVICES,CAPITAL HIGHWAYS,16-Apr-18,831532,Drainforce Limited,11270,Capital
DIRECT SOCIAL SERVICES,GF CHILDREN SERVICES,16-Apr-18,209151,Nicola Varney & Ptn t/a Nifty Kids After School Club,1056,Revenue
DIRECT LEARNING AND SKILLS,SCHOOLS DELEGATED,16-Apr-18,101300,PSC - Helen Bowen Education Consultancy Limited,540,Revenue
DIRECT MANAGING DIRECTOR AND RESOURCES,GF PROPERTY,16-Apr-18,467403,Valuation Office Agency,931.2,Revenue
DIRECT ENVIRONMENT AND HOUSING,BUILDING SERVICES,16-Apr-18,303910,Hays Specialist Recruitment Limited,598.31,Revenue
DIRECT ENVIRONMENT AND HOUSING,HOUSING,16-Apr-18,407106,Building Recruitment Company Limited,729.66,Revenue
DIRECT ENVIRONMENT AND HOUSING,HOUSING,16-Apr-18,407106,James Andrews Recruitment Solutions Limited,558.25,Revenue
DIRECT ENVIRONMENT AND HOUSING,HOUSING,16-Apr-18,407106,James Andrews Recruitment Solutions Limited,502.43,Revenue
DIRECT ENVIRONMENT AND HOUSING,VEHICLES,16-Apr-18,319010,Ceri Williams t/a Mobile Tyre Services,1520.03,Revenue
DIRECT SOCIAL SERVICES,GF ADULT SERVICES,17-Apr-18,215489,Care In Wales Limited T/A Care in the Vale,795.9,Revenue
DIRECT SOCIAL SERVICES,GF ADULT SERVICES,17-Apr-18,215489,Care In Wales Limited T/A Care in the Vale,793.16,Revenue
DIRECT SOCIAL SERVICES,GF ADULT SERVICES,17-Apr-18,215489,Care In Wales Limited T/A Care in the Vale,536.66,Revenue
DIRECT SOCIAL SERVICES,GF ADULT SERVICES,17-Apr-18,215489,Care In Wales Limited T/A Care in the Vale,704.16,Revenue
DIRECT SOCIAL SERVICES,GF ADULT SERVICES,17-Apr-18,215489,Care In Wales Limited T/A Care in the Vale,594.4,Revenue
DIRECT SOCIAL SERVICES,GF ADULT SERVICES,17-Apr-18,215489,Care In Wales Limited T/A Care in the Vale,666.88,Revenue
DIRECT SOCIAL SERVICES,GF ADULT SERVICES,17-Apr-18,215489,Care In Wales Limited T/A Care in the Vale,764.66,Revenue
DIRECT SOCIAL SERVICES,GF ADULT SERVICES,17-Apr-18,215489,Care In Wales Limited T/A Care in the Vale,552.29,Revenue
DIRECT SOCIAL SERVICES,GF ADULT SERVICES,17-Apr-18,215489,Care In Wales Limited T/A Care in the Vale,862.44,Revenue
DIRECT SOCIAL SERVICES,GF ADULT SERVICES,17-Apr-18,215489,Care In Wales Limited T/A Care in the Vale,744.97,Revenue
DIRECT SOCIAL SERVICES,GF ADULT SERVICES,17-Apr-18,218419,Care In Wales Limited T/A Care in the Vale,912,Revenue
DIRECT SOCIAL SERVICES,GF ADULT SERVICES,17-Apr-18,218419,Care In Wales Limited T/A Care in the Vale,837.44,Revenue
DIRECT SOCIAL SERVICES,GF ADULT SERVICES,17-Apr-18,218419,Care In Wales Limited T/A Care in the Vale,743.19,Revenue
DIRECT LEARNING AND SKILLS,SCHOOLS DELEGATED,17-Apr-18,101031,Superstars School Services Limited,672.96,Revenue
DIRECT LEARNING AND SKILLS,SCHOOLS DELEGATED,17-Apr-18,101065,Corona Energy Retail 4 Limited,625.18,Revenue
DIRECT LEARNING AND SKILLS,SCHOOLS DELEGATED,17-Apr-18,101065,Ricoh UK Limited,647.68,Revenue
DIRECT LEARNING AND SKILLS,SCHOOLS DELEGATED,17-Apr-18,101065,Ricoh UK Limited,2464.65,Revenue
DIRECT LEARNING AND SKILLS,SCHOOLS DELEGATED,17-Apr-18,101065,Therapy & Education Limited t/a The Institute for Arts in Therapy,1435.5,Revenue
DIRECT LEARNING AND SKILLS,SCHOOLS DELEGATED,17-Apr-18,101195,WWS 1987 Limited T/A Welsh Window Systems,560,Revenue
DIRECT LEARNING AND SKILLS,SCHOOLS DELEGATED,17-Apr-18,101195,Xerox Finance Limited,620.07,Revenue
DIRECT LEARNING AND SKILLS,SCHOOLS DELEGATED,17-Apr-18,102593,Academia Limited,751.73,Revenue
DIRECT LEARNING AND SKILLS,SCHOOLS DELEGATED,17-Apr-18,102593,Academia Limited,1749.62,Revenue
DIRECT LEARNING AND SKILLS,SCHOOLS DELEGATED,17-Apr-18,102593,Academics Limited,-751.73,Revenue
DIRECT LEARNING AND SKILLS,SCHOOLS DELEGATED,17-Apr-18,102593,Academics Limited,-1749.62,Revenue
DIRECT LEARNING AND SKILLS,ACHIEVEMENT FOR ALL,17-Apr-18,102707,Roberts Audio Solutions Limited,1250,Revenue
DIRECT LEARNING AND SKILLS,SCHOOLS NON DELEGATED,17-Apr-18,103417,EGW Engineering Limited,1918,Revenue
DIRECT SOCIAL SERVICES,GF ADULT SERVICES,17-Apr-18,215489,Innovate Trust Limited,2987,Revenue
DIRECT SOCIAL SERVICES,GF ADULT SERVICES,17-Apr-18,215489,Innovate Trust Limited,1624,Revenue
DIRECT SOCIAL SERVICES,GF ADULT SERVICES,17-Apr-18,215489,Innovate Trust Limited,1624,Revenue
DIRECT SOCIAL SERVICES,GF ADULT SERVICES,17-Apr-18,215489,Innovate Trust Limited,2030,Revenue
DIRECT SOCIAL SERVICES,GF ADULT SERVICES,17-Apr-18,215489,Innovate Trust Limited,1624,Revenue
DIRECT SOCIAL SERVICES,GF ADULT SERVICES,17-Apr-18,215489,Innovate Trust Limited,2030,Revenue
DIRECT SOCIAL SERVICES,GF ADULT SERVICES,17-Apr-18,215489,Innovate Trust Limited,1624,Revenue
DIRECT SOCIAL SERVICES,GF ADULT SERVICES,17-Apr-18,215489,Innovate Trust Limited,1624,Revenue
DIRECT SOCIAL SERVICES,GF ADULT SERVICES,17-Apr-18,215489,Innovate Trust Limited,2030,Revenue
DIRECT SOCIAL SERVICES,GF ADULT SERVICES,17-Apr-18,215489,Innovate Trust Limited,1624,Revenue
DIRECT SOCIAL SERVICES,GF ADULT SERVICES,17-Apr-18,215489,Innovate Trust Limited,812,Revenue
DIRECT SOCIAL SERVICES,GF ADULT SERVICES,17-Apr-18,217909,Care Management Group Limited,928,Revenue
DIRECT SOCIAL SERVICES,GF ADULT SERVICES,17-Apr-18,217909,Care Management Group Limited,3183.6,Revenue
DIRECT SOCIAL SERVICES,GF ADULT SERVICES,17-Apr-18,217909,Innovate Trust Limited,1555.36,Revenue
DIRECT SOCIAL SERVICES,GF ADULT SERVICES,17-Apr-18,217909,Merricks Private Transport Contractors Limited,892.8,Revenue
DIRECT ENVIRONMENT AND HOUSING,GF ENV AND VISIBLE,17-Apr-18,323680,Capita Glamorgan Consultancy Limited,678,Revenue
DIRECT ENVIRONMENT AND HOUSING,GF ENV AND VISIBLE,17-Apr-18,341156,Newsquest Media (Southern) Limited T/A Newsquest Midlands Wales & South West,576,Revenue
DIRECT ENVIRONMENT AND HOUSING,REGENERATION & PLANNING,17-Apr-18,354727,Birchill Access Consultancy Limited,800,Revenue
DIRECT ENVIRONMENT AND HOUSING,REGENERATION & PLANNING,17-Apr-18,354727,Horizon Civil Engineering Limited,2287,Revenue
DIRECT ENVIRONMENT AND HOUSING,VISIBLE SERVICES,17-Apr-18,365902,Wireless CCTV Limited,1729,Revenue
DIRECT ENVIRONMENT AND HOUSING,HOUSING,17-Apr-18,407120,AFT Group (Wales) Limited T/A Advanced Fire Technologies Limited,2486,Revenue
DIRECT ENVIRONMENT AND HOUSING,HOUSING,17-Apr-18,407120,AFT Group (Wales) Limited T/A Advanced Fire Technologies Limited,2620.5,Revenue
DIRECT ENVIRONMENT AND HOUSING,HOUSING,17-Apr-18,407120,AFT Group (Wales) Limited T/A Advanced Fire Technologies Limited,2620.5,Revenue
DIRECT CAPITAL VISIBLE AND HOUSING SERVICES,CAPITAL HIGHWAYS,17-Apr-18,831528,Urbis Schreder Limited,90284.4,Capital
DIRECT CAPITAL VISIBLE AND HOUSING SERVICES,CAPITAL HRA,17-Apr-18,842116,AFT Group (Wales) Limited T/A Advanced Fire Technologies Limited,1570.25,Capital
DIRECT CAPITAL POLICY,CAPITAL POLICY,17-Apr-18,852512,WWS 1987 Limited T/A Welsh Window Systems,1570,Capital
DIRECT SOCIAL SERVICES,GF CHILDREN SERVICES,17-Apr-18,260160,Oxfordshire County Council,18000,Revenue
DIRECT ENVIRONMENT AND HOUSING,GF ENV AND VISIBLE,17-Apr-18,341001,Cardiff County Council,1080,Revenue
DIRECT LEARNING AND SKILLS,SCHOOLS DELEGATED,17-Apr-18,101007,Mark Haycock & Ptn T/A Halo Support,1000,Revenue
DIRECT ENVIRONMENT AND HOUSING,GF HOUSING SERVICES,17-Apr-18,405100,Duncan M Evans,3679.36,Revenue
DIRECT LEARNING AND SKILLS,SCHOOLS DELEGATED,17-Apr-18,101195,New Directions (Education) Limited,877.84,Revenue
DIRECT LEARNING AND SKILLS,SCHOOLS DELEGATED,17-Apr-18,101195,New Directions (Education) Limited,548.16,Revenue
DIRECT LEARNING AND SKILLS,SCHOOLS DELEGATED,17-Apr-18,101195,New Directions (Education) Limited,661.12,Revenue
DIRECT MANAGING DIRECTOR AND RESOURCES,GF HUMAN RESOURCES,17-Apr-18,140119,Acorn Recruitment Limited,1589.2,Revenue
DIRECT MANAGING DIRECTOR AND RESOURCES,GF HUMAN RESOURCES,17-Apr-18,140119,Acorn Recruitment Limited,1612.4,Revenue
DIRECT SOCIAL SERVICES,GF ADULT SERVICES,17-Apr-18,216179,April Complete Care Solutions Limited,599.64,Revenue
DIRECT SOCIAL SERVICES,GF ADULT SERVICES,17-Apr-18,216179,April Complete Care Solutions Limited,724.4,Revenue
DIRECT SOCIAL SERVICES,GF ADULT SERVICES,17-Apr-18,217909,April Complete Care Solutions Limited,875.36,Revenue
DIRECT ENVIRONMENT AND HOUSING,BUILDING SERVICES,17-Apr-18,303910,Hays Specialist Recruitment Limited,598.31,Revenue
DIRECT SOCIAL SERVICES,GF ADULT SERVICES,17-Apr-18,217909,The Cedars Care Services Limited t/a The Willows,3134.28,Revenue
DIRECT SOCIAL SERVICES,GF ADULT SERVICES,17-Apr-18,217909,The Cedars Care Services Limited t/a The Willows,1253.71,Revenue
DIRECT SOCIAL SERVICES,GF ADULT SERVICES,17-Apr-18,217909,The Cedars Care Services Limited t/a The Willows,2507.42,Revenue
DIRECT SOCIAL SERVICES,GF ADULT SERVICES,17-Apr-18,217909,The Cedars Care Services Limited t/a The Willows,2194,Revenue
DIRECT SOCIAL SERVICES,GF ADULT SERVICES,17-Apr-18,217909,The Cedars Care Services Limited t/a The Willows,626.84,Revenue
DIRECT SOCIAL SERVICES,GF ADULT SERVICES,17-Apr-18,217909,The Cedars Care Services Limited t/a The Willows,626.85,Revenue
DIRECT SOCIAL SERVICES,GF ADULT SERVICES,17-Apr-18,217909,The Cedars Care Services Limited t/a The Willows,2507.41,Revenue
DIRECT SOCIAL SERVICES,GF ADULT SERVICES,17-Apr-18,217909,The Cedars Care Services Limited t/a The Willows,2193.99,Revenue
DIRECT SOCIAL SERVICES,GF ADULT SERVICES,17-Apr-18,217909,The Cedars Care Services Limited t/a The Willows,1253.71,Revenue
DIRECT SOCIAL SERVICES,GF ADULT SERVICES,17-Apr-18,217909,The Cedars Care Services Limited t/a The Willows,940.28,Revenue
DIRECT SOCIAL SERVICES,GF ADULT SERVICES,17-Apr-18,217909,The Cedars Care Services Limited t/a The Willows,2194,Revenue
DIRECT SOCIAL SERVICES,GF ADULT SERVICES,17-Apr-18,217909,The Cedars Care Services Limited t/a The Willows,1880.57,Revenue
DIRECT SOCIAL SERVICES,GF ADULT SERVICES,17-Apr-18,217909,The Cedars Care Services Limited t/a The Willows,940.28,Revenue
DIRECT ENVIRONMENT AND HOUSING,VISIBLE SERVICES,17-Apr-18,365784,Andy Smith t/a 1st Class Rider & Driver Training,1500,Revenue
DIRECT SOCIAL SERVICES,GF ADULT SERVICES,17-Apr-18,217909,Freeways Trust,2992,Revenue
DIRECT SOCIAL SERVICES,GF ADULT SERVICES,17-Apr-18,217909,Freeways Trust,2992,Revenue
DIRECT SOCIAL SERVICES,GF ADULT SERVICES,17-Apr-18,217909,Freeways Trust,2992,Revenue
DIRECT SOCIAL SERVICES,GF ADULT SERVICES,17-Apr-18,217909,Freeways Trust,2992,Revenue
DIRECT SOCIAL SERVICES,GF ADULT SERVICES,17-Apr-18,217909,Freeways Trust,2992,Revenue
DIRECT ENVIRONMENT AND HOUSING,REGENERATION & PLANNING,17-Apr-18,359457,RAF St Athan Voluntary Band,500,Revenue
DIRECT SOCIAL SERVICES,GF ADULT SERVICES,18-Apr-18,215489,All Care (South Wales) Limited,604.68,Revenue
DIRECT SOCIAL SERVICES,GF ADULT SERVICES,18-Apr-18,215489,All Care (South Wales) Limited,736.02,Revenue
DIRECT SOCIAL SERVICES,GF ADULT SERVICES,18-Apr-18,215489,All Care (South Wales) Limited,734.18,Revenue
DIRECT SOCIAL SERVICES,GF ADULT SERVICES,18-Apr-18,215489,All Care (South Wales) Limited,554.81,Revenue
DIRECT SOCIAL SERVICES,GF ADULT SERVICES,18-Apr-18,215489,All Care (South Wales) Limited,727.36,Revenue
DIRECT SOCIAL SERVICES,GF ADULT SERVICES,18-Apr-18,215489,All Care (South Wales) Limited,737.42,Revenue
DIRECT SOCIAL SERVICES,GF ADULT SERVICES,18-Apr-18,215489,All Care (South Wales) Limited,927.77,Revenue
DIRECT SOCIAL SERVICES,GF ADULT SERVICES,18-Apr-18,215489,Crossroads in the Vale (EMI) Limited,501.9,Revenue
DIRECT SOCIAL SERVICES,GF ADULT SERVICES,18-Apr-18,216179,All Care (South Wales) Limited,872.73,Revenue
DIRECT SOCIAL SERVICES,GF ADULT SERVICES,18-Apr-18,216179,All Care (South Wales) Limited,641.25,Revenue
DIRECT SOCIAL SERVICES,GF ADULT SERVICES,18-Apr-18,216179,All Care (South Wales) Limited,936.25,Revenue
DIRECT SOCIAL SERVICES,GF ADULT SERVICES,18-Apr-18,218419,All Care (South Wales) Limited,751.52,Revenue
DIRECT SOCIAL SERVICES,GF ADULT SERVICES,18-Apr-18,218419,Parkrow Care Limited,736.18,Revenue
DIRECT LEARNING AND SKILLS,STRATEGY COMMUNITY LEARNING & RESOURCES,18-Apr-18,100603,Capita Business Services Limited,103831.04,Revenue
DIRECT LEARNING AND SKILLS,SCHOOLS NON DELEGATED,18-Apr-18,100680,Filmbank Distributors Limited t/a PVSL,8435.92,Revenue
DIRECT LEARNING AND SKILLS,SCHOOLS NON DELEGATED,18-Apr-18,100680,The Copyright Licensing Agency Limited,47743.62,Revenue
DIRECT LEARNING AND SKILLS,SCHOOLS NON DELEGATED,18-Apr-18,100920,Eteach UK Limited T/A Eteach.com,9400,Revenue
DIRECT LEARNING AND SKILLS,SCHOOLS DELEGATED,18-Apr-18,101315,ParentPay Limited,503.6,Revenue
DIRECT LEARNING AND SKILLS,SCHOOLS DELEGATED,18-Apr-18,101315,The Learning Partnership (Wales) Limited,801.3,Revenue
DIRECT LEARNING AND SKILLS,SCHOOLS DELEGATED,18-Apr-18,102593,Greenpoint IT Limited,715,Revenue
DIRECT LEARNING AND SKILLS,ACHIEVEMENT FOR ALL,18-Apr-18,102636,CSS Electrical Limited,905,Revenue
DIRECT LEARNING AND SKILLS,ACHIEVEMENT FOR ALL,18-Apr-18,102702,Focal Point (Vision) Limited T/A Focal Point UK,1118.02,Revenue
DIRECT LEARNING AND SKILLS,STRATEGY COMMUNITY LEARNING & RESOURCES,18-Apr-18,130041,Adapt Business Services Limited,859.85,Revenue
DIRECT LEARNING AND SKILLS,STRATEGY COMMUNITY LEARNING & RESOURCES,18-Apr-18,130041,Dwr Cymru Cyf,1041.05,Revenue
DIRECT LEARNING AND SKILLS,ACHIEVEMENT FOR ALL,18-Apr-18,130210,Corona Energy Retail 4 Limited,517.6,Revenue
DIRECT ENVIRONMENT AND HOUSING,REGENERATION & PLANNING,18-Apr-18,130511,Cardiff Lock and Safe Co Limited,607.5,Revenue
DIRECT SOCIAL SERVICES,GF ADULT SERVICES,18-Apr-18,215489,Grangelodge Residential Home Limited t/a Grangelodge,513.66,Revenue
DIRECT SOCIAL SERVICES,GF ADULT SERVICES,18-Apr-18,215489,Healthcare Assistants Limited,561.56,Revenue
DIRECT SOCIAL SERVICES,GF ADULT SERVICES,18-Apr-18,216179,Healthcare Assistants Limited,1254.42,Revenue
DIRECT SOCIAL SERVICES,GF ADULT SERVICES,18-Apr-18,217541,Steve Floyd Limited,1848,Revenue
DIRECT SOCIAL SERVICES,GF ADULT SERVICES,18-Apr-18,217541,Steve Floyd Limited,792,Revenue
DIRECT SOCIAL SERVICES,GF ADULT SERVICES,18-Apr-18,217909,Ategi Limited,1583.64,Revenue
DIRECT SOCIAL SERVICES,GF ADULT SERVICES,18-Apr-18,217909,Consensus Support Services Limited t/a Ty Machen,2163.85,Revenue
DIRECT SOCIAL SERVICES,GF CHILDREN SERVICES,18-Apr-18,260050,Dr Alison White & Partners LLP,982.37,Revenue
DIRECT SOCIAL SERVICES,GF CHILDREN SERVICES,18-Apr-18,260050,E4Law Limited t/a Lextox,704.75,Revenue
DIRECT SOCIAL SERVICES,GF CHILDREN SERVICES,18-Apr-18,260050,Llamau Limited,1101.87,Revenue
DIRECT SOCIAL SERVICES,GF CHILDREN SERVICES,18-Apr-18,260050,Llamau Limited,1101.87,Revenue
DIRECT SOCIAL SERVICES,GF CHILDREN SERVICES,18-Apr-18,260130,Llamau Limited,700,Revenue
DIRECT SOCIAL SERVICES,GF CHILDREN SERVICES,18-Apr-18,260140,Llamau Limited,789.4,Revenue
DIRECT SOCIAL SERVICES,GF CHILDREN SERVICES,18-Apr-18,260140,Llamau Limited,640,Revenue
DIRECT ENVIRONMENT AND HOUSING,GF ENV AND VISIBLE,18-Apr-18,325338,British Telecommunications Plc,1647.8,Revenue
DIRECT ENVIRONMENT AND HOUSING,GF ENV AND VISIBLE,18-Apr-18,325562,Amberon Limited,2800,Revenue
DIRECT ENVIRONMENT AND HOUSING,GF ENV AND VISIBLE,18-Apr-18,325600,Calibre Contracting Limited,1234.2,Revenue
DIRECT ENVIRONMENT AND HOUSING,GF ENV AND VISIBLE,18-Apr-18,325790,Calibre Contracting Limited,914.6,Revenue
DIRECT ENVIRONMENT AND HOUSING,REGENERATION & PLANNING,18-Apr-18,349605,BNP Paribas Lease Group (Rentals) Limited T/A Danwood Contract Rentals,1143.54,Revenue
DIRECT ENVIRONMENT AND HOUSING,REGENERATION & PLANNING,18-Apr-18,354037,Infographics Limited,536,Revenue
DIRECT ENVIRONMENT AND HOUSING,REGENERATION & PLANNING,18-Apr-18,354037,PER Consulting Limited,12000,Revenue
DIRECT ENVIRONMENT AND HOUSING,GF LEGAL AND DEMOCRATIC,18-Apr-18,400063,Telefonica UK Limited t/a O2,13738.72,Revenue
DIRECT ENVIRONMENT AND HOUSING,REGULATORY SHARED SERVICES,18-Apr-18,403145,Association of Port Health Authorities Limited,1000,Revenue
DIRECT ENVIRONMENT AND HOUSING,GF HOUSING SERVICES,18-Apr-18,405100,Llamau Limited,575,Revenue
DIRECT ENVIRONMENT AND HOUSING,GF HOUSING SERVICES,18-Apr-18,405100,Llamau Limited,575,Revenue
DIRECT ENVIRONMENT AND HOUSING,GF HOUSING SERVICES,18-Apr-18,405100,Llamau Limited,575,Revenue
DIRECT ENVIRONMENT AND HOUSING,HOUSING,18-Apr-18,407400,Glamorgan Gem Limited,500,Revenue
DIRECT MANAGING DIRECTOR AND RESOURCES,GF RESOURCES,18-Apr-18,422100,Dwr Cymru Cyf,3064.01,Revenue
DIRECT MANAGING DIRECTOR AND RESOURCES,GF RESOURCES,18-Apr-18,422130,Dwr Cymru Cyf,6960.78,Revenue
DIRECT MANAGING DIRECTOR AND RESOURCES,GF CORPORATE AND CUSTOMER SERVICES,18-Apr-18,440530,Virgin Media Business Limited,4678.16,Revenue
DIRECT CAPITAL VISIBLE AND HOUSING SERVICES,CAPITAL HIGHWAYS,18-Apr-18,831534,Alun Griffiths (Contractors) Limited,76538.02,Capital
DIRECT CAPITAL VISIBLE AND HOUSING SERVICES,CAPITAL HIGHWAYS,18-Apr-18,831553,Ove Arup & Partners Limited,59950,Capital
DIRECT CAPITAL VISIBLE AND HOUSING SERVICES,AR CAPITAL WASTE,18-Apr-18,832701,Concrete Repairs Limited,81362.28,Capital
DIRECT CAPITAL DEVELOPMENT,CAPITAL ECO DEV,18-Apr-18,834131,Bradley Associates Limited,2320,Capital
DIRECT CAPITAL VISIBLE AND HOUSING SERVICES,CAPITAL HRA,18-Apr-18,842068,United Living (North) Limited,13974.18,Capital
DIRECT CAPITAL VISIBLE AND HOUSING SERVICES,CAPITAL HRA,18-Apr-18,842068,Willis Construction Limited,323504.69,Capital
DIRECT CAPITAL DEVELOPMENT,CAPITAL PRIV HSG,18-Apr-18,845003,ASW Property Services Limited,5006.78,Capital
DIRECT CAPITAL DEVELOPMENT,CAPITAL PRIV HSG,18-Apr-18,845003,GKR Maintenance & Building Co. Limited,3653.86,Capital
DIRECT CAPITAL DEVELOPMENT,CAPITAL PRIV HSG,18-Apr-18,845003,GKR Maintenance & Building Co. Limited,1992.21,Capital
DIRECT CAPITAL DEVELOPMENT,CAPITAL PRIV HSG,18-Apr-18,845003,Steddy Limited,5050.97,Capital
DIRECT CAPITAL DEVELOPMENT,CAPITAL PRIV HSG,18-Apr-18,845003,Steddy Limited,6991.2,Capital
DIRECT LEARNING AND SKILLS,SCHOOLS NON DELEGATED,18-Apr-18,100400,Cardiff County Council,588.92,Revenue
DIRECT LEARNING AND SKILLS,SCHOOLS NON DELEGATED,18-Apr-18,100401,Cardiff County Council,34102.93,Revenue
DIRECT LEARNING AND SKILLS,SCHOOLS NON DELEGATED,18-Apr-18,100402,Cardiff County Council,30329.28,Revenue
DIRECT LEARNING AND SKILLS,SCHOOLS NON DELEGATED,18-Apr-18,100403,Cardiff County Council,7164.6,Revenue
DIRECT LEARNING AND SKILLS,SCHOOLS NON DELEGATED,18-Apr-18,100404,Cardiff County Council,4764.95,Revenue
DIRECT LEARNING AND SKILLS,SCHOOLS NON DELEGATED,18-Apr-18,100405,Cardiff County Council,883.38,Revenue
DIRECT LEARNING AND SKILLS,SCHOOLS NON DELEGATED,18-Apr-18,100407,Cardiff County Council,24737.95,Revenue
DIRECT LEARNING AND SKILLS,STRATEGY COMMUNITY LEARNING & RESOURCES,18-Apr-18,120080,Cardiff County Council,1076.85,Revenue
DIRECT LEARNING AND SKILLS,ACHIEVEMENT FOR ALL,18-Apr-18,130238,Cardiff County Council,1660.36,Revenue
DIRECT LEARNING AND SKILLS,GF CATERING,18-Apr-18,154401,Cardiff County Council,5214.55,Revenue
DIRECT SOCIAL SERVICES,GF BUSINESS MANAGEMENT & INOVATION,18-Apr-18,239011,Cardiff County Council,5405.76,Revenue
DIRECT SOCIAL SERVICES,GF BUSINESS MANAGEMENT & INOVATION,18-Apr-18,239011,Cardiff County Council,7770.5,Revenue
DIRECT ENVIRONMENT AND HOUSING,BUILDING SERVICES,18-Apr-18,303000,Cardiff County Council,3094.98,Revenue
DIRECT ENVIRONMENT AND HOUSING,GF ENV AND VISIBLE,18-Apr-18,323200,Parking & Traffic Regulations Outside London,633.85,Revenue
DIRECT ENVIRONMENT AND HOUSING,GF ENV AND VISIBLE,18-Apr-18,325000,Cardiff County Council,2948.83,Revenue
DIRECT ENVIRONMENT AND HOUSING,GF PARKS AND GROUNDS,18-Apr-18,333220,Cardiff County Council,893.59,Revenue
DIRECT ENVIRONMENT AND HOUSING,GF PARKS AND GROUNDS,18-Apr-18,333220,Cardiff County Council,811.25,Revenue
DIRECT ENVIRONMENT AND HOUSING,GF ENV AND VISIBLE,18-Apr-18,341123,Cardiff County Council,2655,Revenue
DIRECT ENVIRONMENT AND HOUSING,GF ENV AND VISIBLE,18-Apr-18,341500,Cardiff County Council,2655,Revenue
DIRECT ENVIRONMENT AND HOUSING,REGENERATION & PLANNING,18-Apr-18,349702,Cardiff County Council,8532.4,Revenue
DIRECT ENVIRONMENT AND HOUSING,REGENERATION & PLANNING,18-Apr-18,349702,Cardiff County Council,8910.12,Revenue
DIRECT ENVIRONMENT AND HOUSING,VISIBLE SERVICES,18-Apr-18,360002,Cardiff County Council,569.85,Revenue
DIRECT ENVIRONMENT AND HOUSING,REGULATORY SERVICES (MILES),18-Apr-18,402005,Cardiff County Council,1487.48,Revenue
DIRECT ENVIRONMENT AND HOUSING,REGULATORY SHARED SERVICES,18-Apr-18,403300,Cardiff County Council,629,Revenue
DIRECT ENVIRONMENT AND HOUSING,REGULATORY SHARED SERVICES,18-Apr-18,403300,Cardiff County Council,571,Revenue
DIRECT ENVIRONMENT AND HOUSING,HOUSING,18-Apr-18,407100,Cardiff County Council,1004.8,Revenue
DIRECT MANAGING DIRECTOR AND RESOURCES,GF RESOURCES,18-Apr-18,420201,Cardiff County Council,3058.21,Revenue
DIRECT MANAGING DIRECTOR AND RESOURCES,GF GENERAL EXPENDITURE POLICY,18-Apr-18,471900,Cardiff County Council,13128.47,Revenue
DIRECT MANAGING DIRECTOR AND RESOURCES,GF GENERAL EXPENDITURE POLICY,18-Apr-18,471900,Cardiff County Council,11945.66,Revenue
DIRECT CAPITAL VISIBLE AND HOUSING SERVICES,CAPITAL HIGHWAYS,18-Apr-18,831553,Cardiff County Council,1475,Capital
DIRECT CAPITAL DEVELOPMENT,CAPITAL COMM SAFE,18-Apr-18,846001,Roger North & Ptn t/a Roger North Long & Partners,1300,Capital
DIRECT SOCIAL SERVICES,GF ADULT SERVICES,18-Apr-18,217909,E&G Senior Care Limited t/a Right at Home (Bridgend & Vale of Glamorgan),577.5,Revenue
DIRECT MANAGING DIRECTOR AND RESOURCES,GF GENERAL EXPENDITURE POLICY,18-Apr-18,471900,James Marwick,4200,Revenue
DIRECT SOCIAL SERVICES,GF ADULT SERVICES,18-Apr-18,217901,HM Courts & Tribunal Service - London,500,Revenue
DIRECT SOCIAL SERVICES,GF ADULT SERVICES,18-Apr-18,218315,Purchase Card Direct Debit Payments,550,Revenue
DIRECT SOCIAL SERVICES,GF CHILDREN SERVICES,18-Apr-18,260116,Purchase Card Direct Debit Payments,640,Revenue
DIRECT SOCIAL SERVICES,GF CHILDREN SERVICES,18-Apr-18,260116,Purchase Card Direct Debit Payments,815.4,Revenue
DIRECT SOCIAL SERVICES,GF CHILDREN SERVICES,18-Apr-18,260116,Purchase Card Direct Debit Payments,926.15,Revenue
DIRECT SOCIAL SERVICES,GF CHILDREN SERVICES,18-Apr-18,260235,Purchase Card Direct Debit Payments,706.1,Revenue
DIRECT ENVIRONMENT AND HOUSING,VEHICLES,18-Apr-18,319010,Purchase Card Direct Debit Payments,652.5,Revenue
DIRECT ENVIRONMENT AND HOUSING,VEHICLES,18-Apr-18,319010,Purchase Card Direct Debit Payments,652.5,Revenue
DIRECT ENVIRONMENT AND HOUSING,VEHICLES,18-Apr-18,319010,Purchase Card Direct Debit Payments,652.5,Revenue
DIRECT ENVIRONMENT AND HOUSING,VEHICLES,18-Apr-18,319010,Purchase Card Direct Debit Payments,652.5,Revenue
DIRECT MANAGING DIRECTOR AND RESOURCES,GF GENERAL EXPENDITURE POLICY,18-Apr-18,471900,Welsh Local Government Association,83923.81,Revenue
DIRECT MANAGING DIRECTOR AND RESOURCES,GF GENERAL EXPENDITURE POLICY,18-Apr-18,471900,Welsh Local Government Association,8614.43,Revenue
DIRECT MANAGING DIRECTOR AND RESOURCES,GF HUMAN RESOURCES,18-Apr-18,140119,Acorn Recruitment Limited,1609.5,Revenue
DIRECT ENVIRONMENT AND HOUSING,GF ENV AND VISIBLE,18-Apr-18,323686,Hays Specialist Recruitment Limited,640.64,Revenue
DIRECT ENVIRONMENT AND HOUSING,GF ENV AND VISIBLE,18-Apr-18,325681,Hays Specialist Recruitment Limited,1485.2,Revenue
DIRECT ENVIRONMENT AND HOUSING,GF ENV AND VISIBLE,18-Apr-18,325681,Hays Specialist Recruitment Limited,1143.99,Revenue
DIRECT ENVIRONMENT AND HOUSING,GF ENV AND VISIBLE,18-Apr-18,325681,Hays Specialist Recruitment Limited,772.7,Revenue
DIRECT MANAGING DIRECTOR AND RESOURCES,GF RESOURCES,18-Apr-18,422160,Anderselite Limited,675,Revenue
DIRECT SOCIAL SERVICES,GF ADULT SERVICES,18-Apr-18,215021,Llangoedmor Properties Limited T/A Parkside Residential Home,3200,Revenue
DIRECT SOCIAL SERVICES,GF ADULT SERVICES,18-Apr-18,215489,Anwen Care Limited t/a Anwen Care Home,2588.57,Revenue
DIRECT SOCIAL SERVICES,GF ADULT SERVICES,18-Apr-18,215489,Baltimore Care Limited,650.88,Revenue
DIRECT SOCIAL SERVICES,GF ADULT SERVICES,18-Apr-18,215489,Baltimore Care Limited,516.38,Revenue
DIRECT SOCIAL SERVICES,GF ADULT SERVICES,18-Apr-18,215489,Baltimore Care Limited,516.38,Revenue
DIRECT SOCIAL SERVICES,GF ADULT SERVICES,18-Apr-18,215489,Baltimore Care Limited,526.38,Revenue
DIRECT SOCIAL SERVICES,GF ADULT SERVICES,18-Apr-18,215489,Bellavista Care (Cardiff) Limited T/A Bellavista Nursing Home Cardiff,506.04,Revenue
DIRECT SOCIAL SERVICES,GF ADULT SERVICES,18-Apr-18,215489,Bellavista Nursing Homes (Wales) Limited t/a Bellavista Care Home,645.84,Revenue
DIRECT SOCIAL SERVICES,GF ADULT SERVICES,18-Apr-18,215489,Broadway Care Centre Limited T/A Hazelhurst Nursing Home,516.38,Revenue
DIRECT SOCIAL SERVICES,GF ADULT SERVICES,18-Apr-18,215489,Duffryn Ffrwd Manor Limited,549.49,Revenue
DIRECT SOCIAL SERVICES,GF ADULT SERVICES,18-Apr-18,215489,E & E Homes Limited T/A Cliffhaven Residential Home,503.08,Revenue
DIRECT SOCIAL SERVICES,GF ADULT SERVICES,18-Apr-18,215489,Forge Care Homes Limited t/a The Forge Care Centre,925,Revenue
DIRECT SOCIAL SERVICES,GF ADULT SERVICES,18-Apr-18,215489,Forge Care Homes Limited t/a The Forge Care Centre,671.32,Revenue
DIRECT SOCIAL SERVICES,GF ADULT SERVICES,18-Apr-18,215489,Harrison Care Enterprises Barry Limited t/a Island View,516.38,Revenue
DIRECT SOCIAL SERVICES,GF ADULT SERVICES,18-Apr-18,215489,Hebron Hall Limited,574,Revenue
DIRECT SOCIAL SERVICES,GF ADULT SERVICES,18-Apr-18,215489,June Zehetmayr t/a Tower Hill Residential Home,528.12,Revenue
DIRECT SOCIAL SERVICES,GF ADULT SERVICES,18-Apr-18,215489,Lakeside Homes Limited T/A Lakeside House,518.82,Revenue
DIRECT SOCIAL SERVICES,GF ADULT SERVICES,18-Apr-18,215489,Llangoedmor Properties Limited T/A Parkside Residential Home,500.5,Revenue
DIRECT SOCIAL SERVICES,GF ADULT SERVICES,18-Apr-18,215489,MHA Care Group t/a Morel Court,531.09,Revenue
DIRECT SOCIAL SERVICES,GF ADULT SERVICES,18-Apr-18,215489,MHA Care Group t/a Ty Gwyn Private Nursing Home,599.54,Revenue
DIRECT SOCIAL SERVICES,GF ADULT SERVICES,18-Apr-18,215489,MHA Care Group t/a Ty Gwyn Private Nursing Home,552.58,Revenue
DIRECT SOCIAL SERVICES,GF ADULT SERVICES,18-Apr-18,215489,Middlepatch Limited T/A College Fields Nursing Home,574.12,Revenue
DIRECT SOCIAL SERVICES,GF ADULT SERVICES,18-Apr-18,215489,Middlepatch Limited T/A College Fields Nursing Home,590.99,Revenue
DIRECT SOCIAL SERVICES,GF ADULT SERVICES,18-Apr-18,215489,Middlepatch Limited T/A College Fields Nursing Home,572.59,Revenue
DIRECT SOCIAL SERVICES,GF ADULT SERVICES,18-Apr-18,215489,Middlepatch Limited T/A College Fields Nursing Home,576.54,Revenue
DIRECT SOCIAL SERVICES,GF ADULT SERVICES,18-Apr-18,215489,Middlepatch Limited T/A College Fields Nursing Home,514.35,Revenue
DIRECT SOCIAL SERVICES,GF ADULT SERVICES,18-Apr-18,215489,Middlepatch Limited T/A College Fields Nursing Home,567.84,Revenue
DIRECT SOCIAL SERVICES,GF ADULT SERVICES,18-Apr-18,215489,Middlepatch Limited T/A College Fields Nursing Home,612.02,Revenue
DIRECT SOCIAL SERVICES,GF ADULT SERVICES,18-Apr-18,215489,Middlepatch Limited T/A College Fields Nursing Home,512.87,Revenue
DIRECT SOCIAL SERVICES,GF ADULT SERVICES,18-Apr-18,215489,Middlepatch Limited T/A College Fields Nursing Home,614.52,Revenue
DIRECT SOCIAL SERVICES,GF ADULT SERVICES,18-Apr-18,215489,Middlepatch Limited T/A College Fields Nursing Home,559.95,Revenue
DIRECT SOCIAL SERVICES,GF ADULT SERVICES,18-Apr-18,215489,Middlepatch Limited T/A College Fields Nursing Home,567.84,Revenue
DIRECT SOCIAL SERVICES,GF ADULT SERVICES,18-Apr-18,215489,Middlepatch Limited T/A College Fields Nursing Home,589.85,Revenue
DIRECT SOCIAL SERVICES,GF ADULT SERVICES,18-Apr-18,215489,Northcote Developments Limited,513.38,Revenue
DIRECT SOCIAL SERVICES,GF ADULT SERVICES,18-Apr-18,215489,Northcote Developments Limited,508.15,Revenue
DIRECT SOCIAL SERVICES,GF ADULT SERVICES,18-Apr-18,215489,Northcote Developments Limited,515.73,Revenue
DIRECT SOCIAL SERVICES,GF ADULT SERVICES,18-Apr-18,215489,Oakville Care Limited t/a Romilly Nursing Home,900,Revenue
DIRECT SOCIAL SERVICES,GF ADULT SERVICES,18-Apr-18,215489,Springbank Care Home Limited T/A Springbank Nursing Home,563.34,Revenue
DIRECT SOCIAL SERVICES,GF ADULT SERVICES,18-Apr-18,215489,Springbank Care Home Limited T/A Springbank Nursing Home,612.02,Revenue
DIRECT SOCIAL SERVICES,GF ADULT SERVICES,18-Apr-18,215489,Springbank Care Home Limited T/A Springbank Nursing Home,575.79,Revenue
DIRECT SOCIAL SERVICES,GF ADULT SERVICES,18-Apr-18,215489,Springbank Care Home Limited T/A Springbank Nursing Home,603.34,Revenue
DIRECT SOCIAL SERVICES,GF ADULT SERVICES,18-Apr-18,215489,Springbank Care Home Limited T/A Springbank Nursing Home,509.85,Revenue
DIRECT SOCIAL SERVICES,GF ADULT SERVICES,18-Apr-18,215489,The Manor House St Hilary Limited T/A Milsom House,1400.67,Revenue
DIRECT SOCIAL SERVICES,GF ADULT SERVICES,18-Apr-18,215489,The Manor House St Hilary Limited T/A Milsom House,642.99,Revenue
DIRECT SOCIAL SERVICES,GF ADULT SERVICES,18-Apr-18,215489,The Manor House St Hilary Limited T/A Milsom House,504.17,Revenue
DIRECT SOCIAL SERVICES,GF ADULT SERVICES,18-Apr-18,215489,Waverley Care Centre Limited,500.74,Revenue
DIRECT SOCIAL SERVICES,GF ADULT SERVICES,18-Apr-18,215489,Waverley Care Centre Limited,585.1,Revenue
DIRECT SOCIAL SERVICES,GF ADULT SERVICES,18-Apr-18,215489,Waverley Care Centre Limited,533.61,Revenue
DIRECT SOCIAL SERVICES,GF ADULT SERVICES,18-Apr-18,215489,Waverley Care Centre Limited,596.49,Revenue
DIRECT SOCIAL SERVICES,GF ADULT SERVICES,18-Apr-18,215489,Willowmere Home Care Agency Limited,527.52,Revenue
DIRECT SOCIAL SERVICES,GF ADULT SERVICES,18-Apr-18,215489,Willowmere Home Care Agency Limited,824.95,Revenue
DIRECT SOCIAL SERVICES,GF ADULT SERVICES,18-Apr-18,215489,Willowmere Home Care Agency Limited,690.4,Revenue
DIRECT SOCIAL SERVICES,GF ADULT SERVICES,18-Apr-18,215489,Willowmere Home Care Agency Limited,668.62,Revenue
DIRECT SOCIAL SERVICES,GF ADULT SERVICES,18-Apr-18,215489,Willowmere Home Care Agency Limited,603.12,Revenue
DIRECT SOCIAL SERVICES,GF ADULT SERVICES,18-Apr-18,215489,Willowmere Home Care Agency Limited,727.84,Revenue
DIRECT SOCIAL SERVICES,GF ADULT SERVICES,18-Apr-18,215489,Willowmere Home Care Agency Limited,698.34,Revenue
DIRECT SOCIAL SERVICES,GF ADULT SERVICES,18-Apr-18,215489,Willowmere Home Care Agency Limited,726.27,Revenue
DIRECT SOCIAL SERVICES,GF ADULT SERVICES,18-Apr-18,215489,Willowmere Home Care Agency Limited,566.38,Revenue
DIRECT SOCIAL SERVICES,GF ADULT SERVICES,18-Apr-18,215489,Willowmere Home Care Agency Limited,651.52,Revenue
DIRECT SOCIAL SERVICES,GF ADULT SERVICES,18-Apr-18,215489,Willowmere Home Care Agency Limited,690.4,Revenue
DIRECT SOCIAL SERVICES,GF ADULT SERVICES,18-Apr-18,215489,Willowmere Home Care Agency Limited,742.79,Revenue
DIRECT SOCIAL SERVICES,GF ADULT SERVICES,18-Apr-18,215489,Willowmere Home Care Agency Limited,765.15,Revenue
DIRECT SOCIAL SERVICES,GF ADULT SERVICES,18-Apr-18,216179,Accomplish Group Limited t/a Cedar House,1380.73,Revenue
DIRECT SOCIAL SERVICES,GF ADULT SERVICES,18-Apr-18,216179,Amethyst Healthcare Limited t/a Hillstone House,1770.23,Revenue
DIRECT SOCIAL SERVICES,GF ADULT SERVICES,18-Apr-18,216179,Bellavista Nursing Homes (Wales) Limited t/a Bellavista Care Home,552.23,Revenue
DIRECT SOCIAL SERVICES,GF ADULT SERVICES,18-Apr-18,216179,Care 4 U (Neath) Limited,1754.28,Revenue
DIRECT SOCIAL SERVICES,GF ADULT SERVICES,18-Apr-18,216179,Crusader Medical Care Limited T/A St Saviours Nursing Home,551.35,Revenue
DIRECT SOCIAL SERVICES,GF ADULT SERVICES,18-Apr-18,216179,Leonard Cheshire Disability,970.38,Revenue
DIRECT SOCIAL SERVICES,GF ADULT SERVICES,18-Apr-18,216179,Middlepatch Limited T/A College Fields Nursing Home,618.34,Revenue
DIRECT SOCIAL SERVICES,GF ADULT SERVICES,18-Apr-18,216179,Pontcanna Care Limited T/A Ty Llandaff Care Home,795.32,Revenue
DIRECT SOCIAL SERVICES,GF ADULT SERVICES,18-Apr-18,216179,Springbank Care Home Limited T/A Springbank Nursing Home,572.38,Revenue
DIRECT SOCIAL SERVICES,GF ADULT SERVICES,18-Apr-18,216179,Valebrook Care Homes Limited,1851.35,Revenue
DIRECT SOCIAL SERVICES,GF ADULT SERVICES,18-Apr-18,216179,Voyage 1 Limited t/a Brook Lodge,2528.8,Revenue
DIRECT SOCIAL SERVICES,GF ADULT SERVICES,18-Apr-18,216179,Voyage 1 Limited t/a Falcons Rest & Poachers Cottage,1729.64,Revenue
DIRECT SOCIAL SERVICES,GF ADULT SERVICES,18-Apr-18,217909,Accomplish Group Limited,1821.48,Revenue
DIRECT SOCIAL SERVICES,GF ADULT SERVICES,18-Apr-18,217909,Accomplish Group Limited,2146.47,Revenue
DIRECT SOCIAL SERVICES,GF ADULT SERVICES,18-Apr-18,217909,Accomplish Group Limited t/a Cedar House,1582.7,Revenue
DIRECT SOCIAL SERVICES,GF ADULT SERVICES,18-Apr-18,217909,Amethyst Healthcare Limited t/a Hillstone House,1680.86,Revenue
DIRECT SOCIAL SERVICES,GF ADULT SERVICES,18-Apr-18,217909,Amethyst Healthcare Limited t/a Hillstone House,1462.13,Revenue
DIRECT SOCIAL SERVICES,GF ADULT SERVICES,18-Apr-18,217909,Glasallt Fawr Camphill Centre,995.72,Revenue
DIRECT SOCIAL SERVICES,GF ADULT SERVICES,18-Apr-18,217909,Glasallt Fawr Camphill Centre,1544.9,Revenue
DIRECT SOCIAL SERVICES,GF ADULT SERVICES,18-Apr-18,217909,Heatherleigh Care Limited t/a 106 Splott Road,1563.71,Revenue
DIRECT SOCIAL SERVICES,GF ADULT SERVICES,18-Apr-18,217909,Heatherleigh Care Limited t/a 106 Splott Road,1223.14,Revenue
DIRECT SOCIAL SERVICES,GF ADULT SERVICES,18-Apr-18,217909,Llysywaun Limited t/a Bayview Lodge Nursing Home,1724.9,Revenue
DIRECT SOCIAL SERVICES,GF ADULT SERVICES,18-Apr-18,217909,Ocean Community Services Limited t/a Westminster Court Care Home,1116.27,Revenue
DIRECT SOCIAL SERVICES,GF ADULT SERVICES,18-Apr-18,217909,The Cedars Care Services Limited T/A Ashgrove Care Home,2112.35,Revenue
DIRECT SOCIAL SERVICES,GF ADULT SERVICES,18-Apr-18,217909,The Cedars Care Services Limited T/A Ashgrove Care Home,995.35,Revenue
DIRECT SOCIAL SERVICES,GF ADULT SERVICES,18-Apr-18,217909,The Cedars Care Services Limited T/A Oaklands,1030.35,Revenue
DIRECT SOCIAL SERVICES,GF ADULT SERVICES,18-Apr-18,217909,The Cedars Care Services Limited t/a Sycamore House,2026.35,Revenue
DIRECT SOCIAL SERVICES,GF ADULT SERVICES,18-Apr-18,217909,The Cedars Care Services Limited t/a Sycamore House,1809.35,Revenue
DIRECT SOCIAL SERVICES,GF ADULT SERVICES,18-Apr-18,217909,The Cedars Care Services Limited t/a The Cedars,1576.06,Revenue
DIRECT SOCIAL SERVICES,GF ADULT SERVICES,18-Apr-18,217909,The Cedars Care Services Limited t/a The Cedars,1365.05,Revenue
DIRECT SOCIAL SERVICES,GF ADULT SERVICES,18-Apr-18,217909,Vale Phoenix Limited,1079.73,Revenue
DIRECT SOCIAL SERVICES,GF ADULT SERVICES,18-Apr-18,217909,Vale Phoenix Limited,1116.94,Revenue
DIRECT SOCIAL SERVICES,GF ADULT SERVICES,18-Apr-18,217909,Valebrook Care Homes Limited,1654.39,Revenue
DIRECT SOCIAL SERVICES,GF ADULT SERVICES,18-Apr-18,217909,Valebrook Care Homes Limited,1999.5,Revenue
DIRECT SOCIAL SERVICES,GF ADULT SERVICES,18-Apr-18,217909,Valebrook Care Homes Limited,1420.24,Revenue
DIRECT SOCIAL SERVICES,GF ADULT SERVICES,18-Apr-18,217909,Valebrook Care Homes Limited,1767.35,Revenue
DIRECT SOCIAL SERVICES,GF ADULT SERVICES,18-Apr-18,217909,Valebrook Care Homes Limited,1861.95,Revenue
DIRECT SOCIAL SERVICES,GF ADULT SERVICES,18-Apr-18,217909,Valebrook Care Homes Limited,1390.24,Revenue
DIRECT SOCIAL SERVICES,GF ADULT SERVICES,18-Apr-18,218321,Adriana Limited T/A The Priory Nursing Home,536,Revenue
DIRECT SOCIAL SERVICES,GF ADULT SERVICES,18-Apr-18,218321,Hafod Care Association Limited,619.96,Revenue
DIRECT SOCIAL SERVICES,GF ADULT SERVICES,18-Apr-18,218321,Harrison Care Enterprises Barry Limited t/a Island View,520.91,Revenue
DIRECT SOCIAL SERVICES,GF ADULT SERVICES,18-Apr-18,218321,Isman & Kinze Nessa T/A Haven House,516.38,Revenue
DIRECT SOCIAL SERVICES,GF ADULT SERVICES,18-Apr-18,218321,J and P Residential Homes Limited T/A Monkstone House,578,Revenue
DIRECT SOCIAL SERVICES,GF ADULT SERVICES,18-Apr-18,218321,Northcote Developments Limited,559,Revenue
DIRECT SOCIAL SERVICES,GF ADULT SERVICES,18-Apr-18,218321,Sanda Mitchel & Ptn t/a Canola House Residential Home,578,Revenue
DIRECT SOCIAL SERVICES,GF ADULT SERVICES,18-Apr-18,218321,Waverley Care Centre Limited,909.98,Revenue
DIRECT SOCIAL SERVICES,GF ADULT SERVICES,18-Apr-18,218419,Anwen Care Limited t/a Anwen Care Home,664,Revenue
DIRECT SOCIAL SERVICES,GF ADULT SERVICES,18-Apr-18,218419,Baltimore Care Limited,4342.51,Revenue
DIRECT SOCIAL SERVICES,GF ADULT SERVICES,18-Apr-18,218419,Baltimore Care Limited,527.38,Revenue
DIRECT SOCIAL SERVICES,GF ADULT SERVICES,18-Apr-18,218419,Barchester Healthcare Homes Limited T/A Bushey House Beaumont,1400,Revenue
DIRECT SOCIAL SERVICES,GF ADULT SERVICES,18-Apr-18,218419,Bellavista Care (Cardiff) Limited T/A Bellavista Nursing Home Cardiff,696.38,Revenue
DIRECT SOCIAL SERVICES,GF ADULT SERVICES,18-Apr-18,218419,Bellavista Care (Cardiff) Limited T/A Bellavista Nursing Home Cardiff,516.38,Revenue
DIRECT SOCIAL SERVICES,GF ADULT SERVICES,18-Apr-18,218419,Bellavista Nursing Homes (Wales) Limited t/a Bellavista Care Home,503.15,Revenue
DIRECT SOCIAL SERVICES,GF ADULT SERVICES,18-Apr-18,218419,David Austin t/a Silverdale,663.68,Revenue
DIRECT SOCIAL SERVICES,GF ADULT SERVICES,18-Apr-18,218419,E & E Homes Limited T/A Cliffhaven Residential Home,501.05,Revenue
DIRECT SOCIAL SERVICES,GF ADULT SERVICES,18-Apr-18,218419,E & E Homes Limited T/A Cliffhaven Residential Home,516.38,Revenue
DIRECT SOCIAL SERVICES,GF ADULT SERVICES,18-Apr-18,218419,E & E Homes Limited T/A Cliffhaven Residential Home,503.15,Revenue
DIRECT SOCIAL SERVICES,GF ADULT SERVICES,18-Apr-18,218419,E & E Homes Limited T/A Cliffhaven Residential Home,505.2,Revenue
DIRECT SOCIAL SERVICES,GF ADULT SERVICES,18-Apr-18,218419,Forge Care Homes Limited t/a The Forge Care Centre,699.25,Revenue
DIRECT SOCIAL SERVICES,GF ADULT SERVICES,18-Apr-18,218419,Hallmark Care Homes (Bute Town) Limited t/a Shire Hall Care Home,1215.5,Revenue
DIRECT SOCIAL SERVICES,GF ADULT SERVICES,18-Apr-18,218419,Harrison Care Enterprises Barry Limited t/a Island View,516.38,Revenue
DIRECT SOCIAL SERVICES,GF ADULT SERVICES,18-Apr-18,218419,Harrison Care Enterprises Barry Limited t/a Island View,501.96,Revenue
DIRECT SOCIAL SERVICES,GF ADULT SERVICES,18-Apr-18,218419,Harrison Care Enterprises Barry Limited t/a Island View,618,Revenue
DIRECT SOCIAL SERVICES,GF ADULT SERVICES,18-Apr-18,218419,Harrison Care Enterprises Barry Limited t/a Island View,514.75,Revenue
DIRECT SOCIAL SERVICES,GF ADULT SERVICES,18-Apr-18,218419,Harrison Care Enterprises Barry Limited t/a Island View,544.81,Revenue
DIRECT SOCIAL SERVICES,GF ADULT SERVICES,18-Apr-18,218419,Harrison Care Enterprises Barry Limited t/a Island View,516.38,Revenue
DIRECT SOCIAL SERVICES,GF ADULT SERVICES,18-Apr-18,218419,Harrison Care Enterprises Barry Limited t/a Island View,516.38,Revenue
DIRECT SOCIAL SERVICES,GF ADULT SERVICES,18-Apr-18,218419,Harrison Care Enterprises Barry Limited t/a Island View,503.11,Revenue
DIRECT SOCIAL SERVICES,GF ADULT SERVICES,18-Apr-18,218419,Harrison Care Enterprises Barry Limited t/a Island View,516.38,Revenue
DIRECT SOCIAL SERVICES,GF ADULT SERVICES,18-Apr-18,218419,June Zehetmayr t/a Tower Hill Residential Home,650.88,Revenue
DIRECT SOCIAL SERVICES,GF ADULT SERVICES,18-Apr-18,218419,June Zehetmayr t/a Tower Hill Residential Home,508.38,Revenue
DIRECT SOCIAL SERVICES,GF ADULT SERVICES,18-Apr-18,218419,Llangoedmor Properties Limited T/A Parkside Residential Home,533.19,Revenue
DIRECT SOCIAL SERVICES,GF ADULT SERVICES,18-Apr-18,218419,Llangoedmor Properties Limited T/A Parkside Residential Home,618,Revenue
DIRECT SOCIAL SERVICES,GF ADULT SERVICES,18-Apr-18,218419,Shirwan Al-Mufti & Ptn t/a Pontcanna House,600,Revenue
DIRECT SOCIAL SERVICES,GF ADULT SERVICES,18-Apr-18,218419,Waverley Care Centre Limited,629.59,Revenue
DIRECT SOCIAL SERVICES,GF ADULT SERVICES,18-Apr-18,218419,Waverley Care Centre Limited,574,Revenue
DIRECT SOCIAL SERVICES,GF ADULT SERVICES,18-Apr-18,218419,Waverley Care Centre Limited,576.56,Revenue
DIRECT SOCIAL SERVICES,GF ADULT SERVICES,18-Apr-18,218419,Waverley Care Centre Limited,672.09,Revenue
DIRECT SOCIAL SERVICES,GF ADULT SERVICES,18-Apr-18,218419,Waverley Care Centre Limited,514.18,Revenue
DIRECT SOCIAL SERVICES,GF ADULT SERVICES,18-Apr-18,217909,Susan Heffernan T/A Baruc Guest House,656.2,Revenue
DIRECT SOCIAL SERVICES,GF ADULT SERVICES,18-Apr-18,217909,Susan Heffernan T/A Baruc Guest House,980,Revenue
DIRECT SOCIAL SERVICES,GF ADULT SERVICES,19-Apr-18,215489,Annwyl Limited t/a Bluebird Care,761.08,Revenue
DIRECT SOCIAL SERVICES,GF ADULT SERVICES,19-Apr-18,215489,Annwyl Limited t/a Bluebird Care,746.75,Revenue
DIRECT SOCIAL SERVICES,GF ADULT SERVICES,19-Apr-18,215489,Annwyl Limited t/a Bluebird Care,835.09,Revenue
DIRECT SOCIAL SERVICES,GF ADULT SERVICES,19-Apr-18,215489,Annwyl Limited t/a Bluebird Care,684.51,Revenue
DIRECT SOCIAL SERVICES,GF ADULT SERVICES,19-Apr-18,215489,Care In Wales Limited T/A Care in the Vale,823.76,Revenue
DIRECT SOCIAL SERVICES,GF ADULT SERVICES,19-Apr-18,215489,Care In Wales Limited T/A Care in the Vale,820.93,Revenue
DIRECT SOCIAL SERVICES,GF ADULT SERVICES,19-Apr-18,215489,Care In Wales Limited T/A Care in the Vale,555.45,Revenue
DIRECT SOCIAL SERVICES,GF ADULT SERVICES,19-Apr-18,215489,Care In Wales Limited T/A Care in the Vale,728.81,Revenue
DIRECT SOCIAL SERVICES,GF ADULT SERVICES,19-Apr-18,215489,Care In Wales Limited T/A Care in the Vale,615.21,Revenue
DIRECT SOCIAL SERVICES,GF ADULT SERVICES,19-Apr-18,215489,Care In Wales Limited T/A Care in the Vale,690.23,Revenue
DIRECT SOCIAL SERVICES,GF ADULT SERVICES,19-Apr-18,215489,Care In Wales Limited T/A Care in the Vale,791.43,Revenue
DIRECT SOCIAL SERVICES,GF ADULT SERVICES,19-Apr-18,215489,Care In Wales Limited T/A Care in the Vale,655.29,Revenue
DIRECT SOCIAL SERVICES,GF ADULT SERVICES,19-Apr-18,215489,Care In Wales Limited T/A Care in the Vale,892.63,Revenue
DIRECT SOCIAL SERVICES,GF ADULT SERVICES,19-Apr-18,215489,Care In Wales Limited T/A Care in the Vale,820.93,Revenue
DIRECT SOCIAL SERVICES,GF ADULT SERVICES,19-Apr-18,215489,Care In Wales Limited T/A Care in the Vale,517.33,Revenue
DIRECT SOCIAL SERVICES,GF ADULT SERVICES,19-Apr-18,215489,Cherish Cymru Limited,713.58,Revenue
DIRECT SOCIAL SERVICES,GF ADULT SERVICES,19-Apr-18,215489,Cherish Cymru Limited,664.49,Revenue
DIRECT SOCIAL SERVICES,GF ADULT SERVICES,19-Apr-18,215489,Cherish Cymru Limited,572.58,Revenue
DIRECT SOCIAL SERVICES,GF ADULT SERVICES,19-Apr-18,215489,Cherish Cymru Limited,590.42,Revenue
DIRECT SOCIAL SERVICES,GF ADULT SERVICES,19-Apr-18,215489,Cherish Cymru Limited,587.98,Revenue
DIRECT SOCIAL SERVICES,GF ADULT SERVICES,19-Apr-18,215489,GJ Care & Training Limited,600.84,Revenue
DIRECT SOCIAL SERVICES,GF ADULT SERVICES,19-Apr-18,215489,GJ Care & Training Limited,613.38,Revenue
DIRECT SOCIAL SERVICES,GF ADULT SERVICES,19-Apr-18,215489,GJ Care & Training Limited,608.65,Revenue
DIRECT SOCIAL SERVICES,GF ADULT SERVICES,19-Apr-18,216179,Annwyl Limited t/a Bluebird Care,720,Revenue
DIRECT SOCIAL SERVICES,GF ADULT SERVICES,19-Apr-18,217909,GJ Care & Training Limited,761.08,Revenue
DIRECT SOCIAL SERVICES,GF ADULT SERVICES,19-Apr-18,218321,GJ Care & Training Limited,630.08,Revenue
DIRECT SOCIAL SERVICES,GF ADULT SERVICES,19-Apr-18,218419,Annwyl Limited t/a Bluebird Care,603.88,Revenue
DIRECT SOCIAL SERVICES,GF ADULT SERVICES,19-Apr-18,218419,Annwyl Limited t/a Bluebird Care,625.64,Revenue
DIRECT SOCIAL SERVICES,GF ADULT SERVICES,19-Apr-18,218419,Care In Wales Limited T/A Care in the Vale,943.92,Revenue
DIRECT SOCIAL SERVICES,GF ADULT SERVICES,19-Apr-18,218419,Care In Wales Limited T/A Care in the Vale,925.75,Revenue
DIRECT SOCIAL SERVICES,GF ADULT SERVICES,19-Apr-18,218419,Care In Wales Limited T/A Care in the Vale,769.08,Revenue
DIRECT SOCIAL SERVICES,GF ADULT SERVICES,19-Apr-18,218419,Parkrow Care Limited,625.72,Revenue
DIRECT LEARNING AND SKILLS,SCHOOLS DELEGATED,19-Apr-18,101195,Dwr Cymru Cyf,1729.56,Revenue
DIRECT LEARNING AND SKILLS,SCHOOLS DELEGATED,19-Apr-18,101195,Sprinkler Protection UK Limited,1047,Revenue
DIRECT LEARNING AND SKILLS,SCHOOLS DELEGATED,19-Apr-18,101195,Sprinkler Protection UK Limited,705,Revenue
DIRECT LEARNING AND SKILLS,SCHOOLS DELEGATED,19-Apr-18,102593,The Award Scheme Limited,515,Revenue
DIRECT SOCIAL SERVICES,GF CHILDREN SERVICES,19-Apr-18,201711,Thyssenkrupp Elevator UK Limited,625,Revenue
DIRECT SOCIAL SERVICES,GF ADULT SERVICES,19-Apr-18,217909,Valeplus (Cymru) & Valeplus Extra,1853.28,Revenue
DIRECT SOCIAL SERVICES,GF BUSINESS MANAGEMENT & INOVATION,19-Apr-18,239015,Careworks Limited,18528.75,Revenue
DIRECT SOCIAL SERVICES,GF BUSINESS MANAGEMENT & INOVATION,19-Apr-18,239291,Social Welfare Training Limited,570,Revenue
DIRECT SOCIAL SERVICES,GF CHILDREN SERVICES,19-Apr-18,260115,Llamau Limited,27779.25,Revenue
DIRECT SOCIAL SERVICES,GF CHILDREN SERVICES,19-Apr-18,260115,Llamau Limited,1058.2,Revenue
DIRECT ENVIRONMENT AND HOUSING,VEHICLES,19-Apr-18,319010,NTM - GB Limited,2085.68,Revenue
DIRECT ENVIRONMENT AND HOUSING,GF ENV AND VISIBLE,19-Apr-18,325890,Urbis Schreder Limited,1871.36,Revenue
DIRECT ENVIRONMENT AND HOUSING,GF PARKS AND GROUNDS,19-Apr-18,333013,Ace Site Services (UK) Limited,1230,Revenue
DIRECT ENVIRONMENT AND HOUSING,GF HOUSING SERVICES,19-Apr-18,405100,L Mustoe Limited,1519.56,Revenue
DIRECT MANAGING DIRECTOR AND RESOURCES,GF MISCELLANEOUS POLICY,19-Apr-18,479050,Gallagher Bassett International Limited,100000,Revenue
DIRECT MANAGING DIRECTOR AND RESOURCES,GF MISCELLANEOUS POLICY,19-Apr-18,479050,Marsh Limited,-12229.01,Revenue
DIRECT MANAGING DIRECTOR AND RESOURCES,GF MISCELLANEOUS POLICY,19-Apr-18,479050,Marsh Limited,13696.49,Revenue
DIRECT CAPITAL LEARN AND SKILLS,AR CAPITAL SCHOOLS,19-Apr-18,812272,Schoolscapes Limited,5984,Capital
DIRECT CAPITAL VISIBLE AND HOUSING SERVICES,CAPITAL HRA,19-Apr-18,842170,Lodestone Consulting Engineers Limited,8100,Capital
DIRECT CAPITAL POLICY,CAPITAL POLICY,19-Apr-18,852515,TEC Property Services Limited,16170.88,Capital
DIRECT LEARNING AND SKILLS,ACHIEVEMENT FOR ALL,19-Apr-18,190011,Cardiff County Council,-8413.42,Revenue
DIRECT LEARNING AND SKILLS,ACHIEVEMENT FOR ALL,19-Apr-18,190011,Cardiff County Council,-4345.8,Revenue
DIRECT SOCIAL SERVICES,GF CHILDREN SERVICES,19-Apr-18,209151,Cardiff & Vale University Local Health Board,54670.24,Revenue
DIRECT LEARNING AND SKILLS,SCHOOLS DELEGATED,19-Apr-18,101075,Nancy Evans,2901.31,Revenue
DIRECT SOCIAL SERVICES,GF ADULT SERVICES,19-Apr-18,215489,Willowmere Home Care Agency Limited,647.13,Revenue
DIRECT SOCIAL SERVICES,GF ADULT SERVICES,19-Apr-18,215489,Willowmere Home Care Agency Limited,738.65,Revenue
DIRECT SOCIAL SERVICES,GF ADULT SERVICES,19-Apr-18,215489,Willowmere Home Care Agency Limited,523.89,Revenue
DIRECT SOCIAL SERVICES,GF ADULT SERVICES,19-Apr-18,215489,Willowmere Home Care Agency Limited,527.73,Revenue
DIRECT SOCIAL SERVICES,GF ADULT SERVICES,19-Apr-18,215489,Willowmere Home Care Agency Limited,636.86,Revenue
DIRECT SOCIAL SERVICES,GF ADULT SERVICES,19-Apr-18,215489,Willowmere Home Care Agency Limited,644.83,Revenue
DIRECT SOCIAL SERVICES,GF ADULT SERVICES,19-Apr-18,215489,Willowmere Home Care Agency Limited,570.08,Revenue
DIRECT SOCIAL SERVICES,GF ADULT SERVICES,19-Apr-18,215489,Willowmere Home Care Agency Limited,604.1,Revenue
DIRECT SOCIAL SERVICES,GF ADULT SERVICES,19-Apr-18,215489,Willowmere Home Care Agency Limited,651.81,Revenue
DIRECT SOCIAL SERVICES,GF ADULT SERVICES,19-Apr-18,215489,Willowmere Home Care Agency Limited,678.85,Revenue
DIRECT LEARNING AND SKILLS,SCHOOLS DELEGATED,19-Apr-18,101195,Michael Norman t/a 1st Choice Cleaning Services,870,Revenue
DIRECT SOCIAL SERVICES,GF CHILDREN SERVICES,19-Apr-18,260235,Walter Standen T/A Standens Contract Hire,1728,Revenue
DIRECT SOCIAL SERVICES,GF CHILDREN SERVICES,19-Apr-18,260235,Walter Standen T/A Standens Contract Hire,1848,Revenue
DIRECT SOCIAL SERVICES,GF CHILDREN SERVICES,19-Apr-18,260235,Walter Standen T/A Standens Contract Hire,608,Revenue
DIRECT SOCIAL SERVICES,GF CHILDREN SERVICES,19-Apr-18,260235,Walter Standen T/A Standens Contract Hire,897,Revenue
DIRECT ENVIRONMENT AND HOUSING,VEHICLES,19-Apr-18,319010,Ceri Williams t/a Mobile Tyre Services,1964.05,Revenue
DIRECT ENVIRONMENT AND HOUSING,VEHICLES,19-Apr-18,319010,Jonathan Bailey t/a JB Hydraulics,3370,Revenue
DIRECT SOCIAL SERVICES,GF ADULT SERVICES,19-Apr-18,216181,Sight Cymru,2841.72,Revenue
DIRECT SOCIAL SERVICES,GF ADULT SERVICES,20-Apr-18,215489,All Care (South Wales) Limited,636.44,Revenue
DIRECT SOCIAL SERVICES,GF ADULT SERVICES,20-Apr-18,215489,All Care (South Wales) Limited,737.34,Revenue
DIRECT SOCIAL SERVICES,GF ADULT SERVICES,20-Apr-18,215489,All Care (South Wales) Limited,815.71,Revenue
DIRECT SOCIAL SERVICES,GF ADULT SERVICES,20-Apr-18,215489,Annwyl Limited t/a Bluebird Care,673.32,Revenue
DIRECT SOCIAL SERVICES,GF ADULT SERVICES,20-Apr-18,215489,Annwyl Limited t/a Bluebird Care,655.25,Revenue
DIRECT SOCIAL SERVICES,GF ADULT SERVICES,20-Apr-18,215489,Annwyl Limited t/a Bluebird Care,732.21,Revenue
DIRECT SOCIAL SERVICES,GF ADULT SERVICES,20-Apr-18,215489,Annwyl Limited t/a Bluebird Care,608.8,Revenue
DIRECT SOCIAL SERVICES,GF ADULT SERVICES,20-Apr-18,215489,Care In Wales Limited T/A Care in the Vale,730.93,Revenue
DIRECT SOCIAL SERVICES,GF ADULT SERVICES,20-Apr-18,215489,Care In Wales Limited T/A Care in the Vale,725.68,Revenue
DIRECT SOCIAL SERVICES,GF ADULT SERVICES,20-Apr-18,215489,Care In Wales Limited T/A Care in the Vale,637.71,Revenue
DIRECT SOCIAL SERVICES,GF ADULT SERVICES,20-Apr-18,215489,Care In Wales Limited T/A Care in the Vale,538.31,Revenue
DIRECT SOCIAL SERVICES,GF ADULT SERVICES,20-Apr-18,215489,Care In Wales Limited T/A Care in the Vale,603.95,Revenue
DIRECT SOCIAL SERVICES,GF ADULT SERVICES,20-Apr-18,215489,Care In Wales Limited T/A Care in the Vale,512.63,Revenue
DIRECT SOCIAL SERVICES,GF ADULT SERVICES,20-Apr-18,215489,Care In Wales Limited T/A Care in the Vale,781.05,Revenue
DIRECT SOCIAL SERVICES,GF ADULT SERVICES,20-Apr-18,215489,Care In Wales Limited T/A Care in the Vale,710.6,Revenue
DIRECT SOCIAL SERVICES,GF ADULT SERVICES,20-Apr-18,215489,Hallows Care Limited T/A Hallows Care,787.35,Revenue
DIRECT SOCIAL SERVICES,GF ADULT SERVICES,20-Apr-18,215489,Hallows Care Limited T/A Hallows Care,682.26,Revenue
DIRECT SOCIAL SERVICES,GF ADULT SERVICES,20-Apr-18,215489,Hallows Care Limited T/A Hallows Care,726.08,Revenue
DIRECT SOCIAL SERVICES,GF ADULT SERVICES,20-Apr-18,215489,Hallows Care Limited T/A Hallows Care,692.85,Revenue
DIRECT SOCIAL SERVICES,GF ADULT SERVICES,20-Apr-18,215489,Hallows Care Limited T/A Hallows Care,690.95,Revenue
DIRECT SOCIAL SERVICES,GF ADULT SERVICES,20-Apr-18,215489,Hallows Care Limited T/A Hallows Care,597.76,Revenue
DIRECT SOCIAL SERVICES,GF ADULT SERVICES,20-Apr-18,215489,Hallows Care Limited T/A Hallows Care,635.32,Revenue
DIRECT SOCIAL SERVICES,GF ADULT SERVICES,20-Apr-18,215489,Hallows Care Limited T/A Hallows Care,608.35,Revenue
DIRECT SOCIAL SERVICES,GF ADULT SERVICES,20-Apr-18,216179,Annwyl Limited t/a Bluebird Care,720,Revenue
DIRECT SOCIAL SERVICES,GF ADULT SERVICES,20-Apr-18,216179,Hallows Care Limited T/A Hallows Care,682.29,Revenue
DIRECT SOCIAL SERVICES,GF ADULT SERVICES,20-Apr-18,216179,Hallows Care Limited T/A Hallows Care,597.79,Revenue
DIRECT SOCIAL SERVICES,GF ADULT SERVICES,20-Apr-18,218419,Annwyl Limited t/a Bluebird Care,603.88,Revenue
DIRECT SOCIAL SERVICES,GF ADULT SERVICES,20-Apr-18,218419,Care In Wales Limited T/A Care in the Vale,825.93,Revenue
DIRECT SOCIAL SERVICES,GF ADULT SERVICES,20-Apr-18,218419,Care In Wales Limited T/A Care in the Vale,817.41,Revenue
DIRECT SOCIAL SERVICES,GF ADULT SERVICES,20-Apr-18,218419,Care In Wales Limited T/A Care in the Vale,677.98,Revenue
DIRECT LEARNING AND SKILLS,SCHOOLS DELEGATED,20-Apr-18,101032,The Consortium for Purchasing and Distribution Limited,796.5,Revenue
DIRECT LEARNING AND SKILLS,SCHOOLS DELEGATED,20-Apr-18,101032,Virtual Class Limited T/A Third Space Learning,1690,Revenue
DIRECT LEARNING AND SKILLS,SCHOOLS DELEGATED,20-Apr-18,101213,Dwr Cymru Cyf,1238.81,Revenue
DIRECT LEARNING AND SKILLS,SCHOOLS DELEGATED,20-Apr-18,101213,Llandaff Diocesan Board of Finance,705,Revenue
DIRECT LEARNING AND SKILLS,SCHOOLS DELEGATED,20-Apr-18,101213,Ricoh UK Limited,1163.31,Revenue
DIRECT LEARNING AND SKILLS,SCHOOLS DELEGATED,20-Apr-18,101213,The Consortium for Purchasing and Distribution Limited,614.84,Revenue
DIRECT LEARNING AND SKILLS,SCHOOLS DELEGATED,20-Apr-18,101285,BNP Paribas Lease Group (Rentals) Limited T/A Danwood Contract Rentals,573,Revenue
DIRECT LEARNING AND SKILLS,SCHOOLS DELEGATED,20-Apr-18,101285,Dwr Cymru Cyf,2015.29,Revenue
DIRECT SOCIAL SERVICES,GF ADULT SERVICES,20-Apr-18,217909,Everycare (Cardiff) Limited,941.64,Revenue
DIRECT SOCIAL SERVICES,GF ADULT SERVICES,20-Apr-18,217909,Everycare (Cardiff) Limited,842.56,Revenue
DIRECT SOCIAL SERVICES,GF ADULT SERVICES,20-Apr-18,217909,Valeplus (Cymru) & Valeplus Extra,1621.62,Revenue
DIRECT SOCIAL SERVICES,GF BUSINESS MANAGEMENT & INOVATION,20-Apr-18,239043,Narrative Edge Limited,15445.45,Revenue
DIRECT SOCIAL SERVICES,GF BUSINESS MANAGEMENT & INOVATION,20-Apr-18,239281,PayPoint Network Limited,6000,Revenue
DIRECT SOCIAL SERVICES,GF BUSINESS MANAGEMENT & INOVATION,20-Apr-18,239281,PayPoint Network Limited,2250,Revenue
DIRECT SOCIAL SERVICES,GF CHILDREN SERVICES,20-Apr-18,260050,E4Law Limited t/a Lextox,-816.75,Revenue
DIRECT SOCIAL SERVICES,GF CHILDREN SERVICES,20-Apr-18,260050,E4Law Limited t/a Lextox,-816.75,Revenue
DIRECT SOCIAL SERVICES,GF CHILDREN SERVICES,20-Apr-18,260140,Midway Transitional Solutions Limited,2316,Revenue
DIRECT SOCIAL SERVICES,GF CHILDREN SERVICES,20-Apr-18,260140,Midway Transitional Solutions Limited,2316,Revenue
DIRECT SOCIAL SERVICES,GF CHILDREN SERVICES,20-Apr-18,260140,Midway Transitional Solutions Limited,975,Revenue
DIRECT SOCIAL SERVICES,GF CHILDREN SERVICES,20-Apr-18,260140,Midway Transitional Solutions Limited,2148.09,Revenue
DIRECT SOCIAL SERVICES,GF CHILDREN SERVICES,20-Apr-18,260140,Midway Transitional Solutions Limited,2100,Revenue
DIRECT SOCIAL SERVICES,GF CHILDREN SERVICES,20-Apr-18,260235,E4Law Limited t/a Lextox,2189,Revenue
DIRECT SOCIAL SERVICES,GF CHILDREN SERVICES,20-Apr-18,260235,E4Law Limited t/a Lextox,1865,Revenue
DIRECT ENVIRONMENT AND HOUSING,BUILDING SERVICES,20-Apr-18,303931,G.P.H.I.T (Integrated Services) Limited,2784,Revenue
DIRECT ENVIRONMENT AND HOUSING,BUILDING SERVICES,20-Apr-18,303931,G.P.H.I.T (Integrated Services) Limited,1090,Revenue
DIRECT ENVIRONMENT AND HOUSING,BUILDING SERVICES,20-Apr-18,303931,KS Barry (Plumbing & Heating) Limited,595,Revenue
DIRECT ENVIRONMENT AND HOUSING,BUILDING SERVICES,20-Apr-18,303950,J & D Water Consultants Limited,2160,Revenue
DIRECT ENVIRONMENT AND HOUSING,BUILDING SERVICES,20-Apr-18,304103,SMK Building & Maintenance Limited,2686.14,Revenue
DIRECT ENVIRONMENT AND HOUSING,BUILDING SERVICES,20-Apr-18,305671,G.P.H.I.T (Integrated Services) Limited,10400,Revenue
DIRECT ENVIRONMENT AND HOUSING,BUILDING SERVICES,20-Apr-18,305701,G.P.H.I.T (Integrated Services) Limited,21984.6,Revenue
DIRECT ENVIRONMENT AND HOUSING,BUILDING SERVICES,20-Apr-18,305702,G.P.H.I.T (Integrated Services) Limited,2460,Revenue
DIRECT ENVIRONMENT AND HOUSING,BUILDING CLEANING,20-Apr-18,312160,Chubb Fire & Security Limited,580,Revenue
DIRECT ENVIRONMENT AND HOUSING,BUILDING CLEANING,20-Apr-18,312160,Chubb Fire & Security Limited,700.25,Revenue
DIRECT ENVIRONMENT AND HOUSING,BUILDING CLEANING,20-Apr-18,312160,Chubb Fire & Security Limited,680,Revenue
DIRECT ENVIRONMENT AND HOUSING,BUILDING CLEANING,20-Apr-18,312160,Chubb Fire & Security Limited,561.15,Revenue
DIRECT ENVIRONMENT AND HOUSING,BUILDING CLEANING,20-Apr-18,312160,Chubb Fire & Security Limited,750,Revenue
DIRECT ENVIRONMENT AND HOUSING,BUILDING CLEANING,20-Apr-18,312160,SGD Security Limited,518,Revenue
DIRECT ENVIRONMENT AND HOUSING,BUILDING CLEANING,20-Apr-18,312160,SGD Security Limited,520,Revenue
DIRECT ENVIRONMENT AND HOUSING,GF ENV AND VISIBLE,20-Apr-18,341182,FCC Recycling (UK) Limited,101343.91,Revenue
DIRECT ENVIRONMENT AND HOUSING,GF HOUSING SERVICES,20-Apr-18,405100,Llamau Limited,575,Revenue
DIRECT ENVIRONMENT AND HOUSING,HOUSING,20-Apr-18,407119,M and M Fixings Limited,982.19,Revenue
DIRECT ENVIRONMENT AND HOUSING,HOUSING,20-Apr-18,407142,Tenant Participation Advisory Service (Cymru) Limited,1216.13,Revenue
DIRECT MANAGING DIRECTOR AND RESOURCES,GF CORPORATE AND CUSTOMER SERVICES,20-Apr-18,440530,Abavus Limited,1600,Revenue
DIRECT CAPITAL VISIBLE AND HOUSING SERVICES,CAPITAL HIGHWAYS,20-Apr-18,831528,Urbis Schreder Limited,37497.6,Capital
DIRECT CAPITAL DEVELOPMENT,CAPITAL ECO DEV,20-Apr-18,834231,Alun Griffiths (Contractors) Limited,562810.55,Capital
DIRECT CAPITAL DEVELOPMENT,CAPITAL ECO DEV,20-Apr-18,834231,Bruton Knowles LLP,4185.25,Capital
DIRECT CAPITAL DEVELOPMENT,CAPITAL ECO DEV,20-Apr-18,834231,Capita Property and Infrastructure Limited,30292.88,Capital
DIRECT CAPITAL POLICY,CAPITAL POLICY,20-Apr-18,852232,Tugbury Electrical Services Limited,19875,Capital
DIRECT CAPITAL POLICY,CAPITAL POLICY,20-Apr-18,852232,Tugbury Electrical Services Limited,-19875,Capital
DIRECT SOCIAL SERVICES,GF BUSINESS MANAGEMENT & INOVATION,20-Apr-18,202491,Cardiff & Vale College,500,Revenue
DIRECT SOCIAL SERVICES,GF BUSINESS MANAGEMENT & INOVATION,20-Apr-18,215031,Cardiff & Vale College,1775,Revenue
DIRECT SOCIAL SERVICES,GF BUSINESS MANAGEMENT & INOVATION,20-Apr-18,215031,Rhondda Cynon Taff County Borough Council,2300,Revenue
DIRECT ENVIRONMENT AND HOUSING,GF ENV AND VISIBLE,20-Apr-18,341123,Cardiff County Council,7906.26,Revenue
DIRECT ENVIRONMENT AND HOUSING,GF ENV AND VISIBLE,20-Apr-18,341180,Cardiff County Council,119750.41,Revenue
DIRECT ENVIRONMENT AND HOUSING,GF ENV AND VISIBLE,20-Apr-18,341182,Cardiff County Council,29589.52,Revenue
DIRECT ENVIRONMENT AND HOUSING,GF ENV AND VISIBLE,20-Apr-18,341500,Cardiff County Council,21175.84,Revenue
DIRECT MANAGING DIRECTOR AND RESOURCES,GF CORPORATE AND CUSTOMER SERVICES,20-Apr-18,440531,Cardiff County Council,650.79,Revenue
DIRECT SOCIAL SERVICES,REGIONAL ADOPTION SERVICE,20-Apr-18,260500,Knight Frank LLP - Client,2833.33,Revenue
DIRECT LEARNING AND SKILLS,SCHOOLS DELEGATED,20-Apr-18,101261,Anwen Carlisle,3250,Revenue
DIRECT SOCIAL SERVICES,GF ADULT SERVICES,20-Apr-18,217691,Samantha Wrightson,777.86,Revenue
DIRECT SOCIAL SERVICES,GF ADULT SERVICES,20-Apr-18,217691,Samantha Wrightson,667.48,Revenue
DIRECT SOCIAL SERVICES,GF ADULT SERVICES,20-Apr-18,217909,E&G Senior Care Limited t/a Right at Home (Bridgend & Vale of Glamorgan),548.25,Revenue
DIRECT SOCIAL SERVICES,GF ADULT SERVICES,20-Apr-18,215489,April Complete Care Solutions Limited,609.43,Revenue
DIRECT SOCIAL SERVICES,GF ADULT SERVICES,20-Apr-18,216179,April Complete Care Solutions Limited,703.04,Revenue
DIRECT SOCIAL SERVICES,GF ADULT SERVICES,20-Apr-18,216179,April Complete Care Solutions Limited,1016.52,Revenue
DIRECT SOCIAL SERVICES,GF ADULT SERVICES,20-Apr-18,217909,April Complete Care Solutions Limited,910.38,Revenue
DIRECT ENVIRONMENT AND HOUSING,HOUSING,20-Apr-18,407106,Building Recruitment Company Limited,738.16,Revenue
DIRECT ENVIRONMENT AND HOUSING,HOUSING,20-Apr-18,407106,Building Recruitment Company Limited,732.95,Revenue
DIRECT SOCIAL SERVICES,GF ADULT SERVICES,20-Apr-18,217909,The Cedars Care Services Limited t/a The Willows,940.26,Revenue
DIRECT SOCIAL SERVICES,GF ADULT SERVICES,20-Apr-18,217909,The Cedars Care Services Limited t/a The Willows,626.85,Revenue
DIRECT SOCIAL SERVICES,GF ADULT SERVICES,20-Apr-18,217909,The Cedars Care Services Limited t/a The Willows,2507.42,Revenue
DIRECT SOCIAL SERVICES,GF ADULT SERVICES,20-Apr-18,217909,The Cedars Care Services Limited t/a The Willows,1880.56,Revenue
DIRECT SOCIAL SERVICES,GF ADULT SERVICES,20-Apr-18,217909,The Cedars Care Services Limited t/a The Willows,940.28,Revenue
DIRECT SOCIAL SERVICES,GF CHILDREN SERVICES,20-Apr-18,260140,Cheryl Bird T/A Alexandra Guest House,750,Revenue
DIRECT SOCIAL SERVICES,GF ADULT SERVICES,20-Apr-18,215025,Gofal Cymru,3578.49,Revenue
DIRECT SOCIAL SERVICES,GF ADULT SERVICES,20-Apr-18,215025,Gofal Cymru,3578.49,Revenue
DIRECT SOCIAL SERVICES,GF ADULT SERVICES,20-Apr-18,217909,Vision 21,541.06,Revenue
DIRECT SOCIAL SERVICES,GF ADULT SERVICES,20-Apr-18,217909,Vision 21,874.02,Revenue
DIRECT SOCIAL SERVICES,GF ADULT SERVICES,20-Apr-18,217909,Vision 21,874.02,Revenue
DIRECT SOCIAL SERVICES,GF ADULT SERVICES,20-Apr-18,217909,Vision 21,541.06,Revenue
DIRECT SOCIAL SERVICES,GF ADULT SERVICES,23-Apr-18,215489,Bespoke Senior Care Limited T/A Home Instead Senior Care,575.05,Revenue
DIRECT SOCIAL SERVICES,GF ADULT SERVICES,23-Apr-18,215489,Bespoke Senior Care Limited T/A Home Instead Senior Care,585.51,Revenue
DIRECT SOCIAL SERVICES,GF ADULT SERVICES,23-Apr-18,215489,Cardiff & Vale Caring 4 U Limited T/A Caremark Cardiff & The Vale of Glamorgan,542.5,Revenue
DIRECT SOCIAL SERVICES,GF ADULT SERVICES,23-Apr-18,215489,Cardiff & Vale Caring 4 U Limited T/A Caremark Cardiff & The Vale of Glamorgan,802.92,Revenue
DIRECT SOCIAL SERVICES,GF ADULT SERVICES,23-Apr-18,215489,Cardiff & Vale Caring 4 U Limited T/A Caremark Cardiff & The Vale of Glamorgan,661.28,Revenue
DIRECT SOCIAL SERVICES,GF ADULT SERVICES,23-Apr-18,215489,Cardiff & Vale Caring 4 U Limited T/A Caremark Cardiff & The Vale of Glamorgan,500.38,Revenue
DIRECT SOCIAL SERVICES,GF ADULT SERVICES,23-Apr-18,215489,Cardiff & Vale Caring 4 U Limited T/A Caremark Cardiff & The Vale of Glamorgan,542.5,Revenue
DIRECT SOCIAL SERVICES,GF ADULT SERVICES,23-Apr-18,215489,Cardiff & Vale Caring 4 U Limited T/A Caremark Cardiff & The Vale of Glamorgan,802.92,Revenue
DIRECT SOCIAL SERVICES,GF ADULT SERVICES,23-Apr-18,215489,Cardiff & Vale Caring 4 U Limited T/A Caremark Cardiff & The Vale of Glamorgan,661.28,Revenue
DIRECT SOCIAL SERVICES,GF ADULT SERVICES,23-Apr-18,215489,Cardiff & Vale Caring 4 U Limited T/A Caremark Cardiff & The Vale of Glamorgan,500.38,Revenue
DIRECT SOCIAL SERVICES,GF ADULT SERVICES,23-Apr-18,215489,Cardiff & Vale Caring 4 U Limited T/A Caremark Cardiff & The Vale of Glamorgan,542.5,Revenue
DIRECT SOCIAL SERVICES,GF ADULT SERVICES,23-Apr-18,215489,Cardiff & Vale Caring 4 U Limited T/A Caremark Cardiff & The Vale of Glamorgan,802.92,Revenue
DIRECT SOCIAL SERVICES,GF ADULT SERVICES,23-Apr-18,215489,Cardiff & Vale Caring 4 U Limited T/A Caremark Cardiff & The Vale of Glamorgan,661.28,Revenue
DIRECT SOCIAL SERVICES,GF ADULT SERVICES,23-Apr-18,215489,Cardiff & Vale Caring 4 U Limited T/A Caremark Cardiff & The Vale of Glamorgan,500.38,Revenue
DIRECT SOCIAL SERVICES,GF ADULT SERVICES,23-Apr-18,215489,Heidi Christoforato t/a Churchfields Home Care,549.13,Revenue
DIRECT SOCIAL SERVICES,GF ADULT SERVICES,23-Apr-18,215489,Heidi Christoforato t/a Churchfields Home Care,571.68,Revenue
DIRECT SOCIAL SERVICES,GF ADULT SERVICES,23-Apr-18,215489,Heidi Christoforato t/a Churchfields Home Care,500.22,Revenue
DIRECT SOCIAL SERVICES,GF ADULT SERVICES,23-Apr-18,216179,Heidi Christoforato t/a Churchfields Home Care,664.24,Revenue
DIRECT SOCIAL SERVICES,GF ADULT SERVICES,23-Apr-18,216179,Heidi Christoforato t/a Churchfields Home Care,582.47,Revenue
DIRECT LEARNING AND SKILLS,SCHOOLS DELEGATED,23-Apr-18,100802,iTeach Limited,1495,Revenue
DIRECT LEARNING AND SKILLS,SCHOOLS DELEGATED,23-Apr-18,101004,Superstars School Services Limited,796.44,Revenue
DIRECT LEARNING AND SKILLS,SCHOOLS DELEGATED,23-Apr-18,101047,The Assessment Foundation CIC,1116,Revenue
DIRECT LEARNING AND SKILLS,SCHOOLS DELEGATED,23-Apr-18,101055,Corona Energy Retail 4 Limited,627.6,Revenue
DIRECT LEARNING AND SKILLS,SCHOOLS DELEGATED,23-Apr-18,101055,Dwr Cymru Cyf,4124.92,Revenue
DIRECT LEARNING AND SKILLS,SCHOOLS DELEGATED,23-Apr-18,101063,Academics Limited,673.76,Revenue
DIRECT LEARNING AND SKILLS,SCHOOLS DELEGATED,23-Apr-18,101065,The Assessment Foundation CIC,1116,Revenue
DIRECT LEARNING AND SKILLS,SCHOOLS DELEGATED,23-Apr-18,101141,A & R Contract Cleaning Specialist Limited,1008.42,Revenue
DIRECT LEARNING AND SKILLS,SCHOOLS DELEGATED,23-Apr-18,101173,A & R Contract Cleaning Specialist Limited,553.02,Revenue
DIRECT LEARNING AND SKILLS,SCHOOLS DELEGATED,23-Apr-18,101173,Llandaff Diocesan Board of Finance,2883.88,Revenue
DIRECT LEARNING AND SKILLS,SCHOOLS DELEGATED,23-Apr-18,101173,Llandaff Diocesan Board of Finance,691,Revenue
DIRECT LEARNING AND SKILLS,SCHOOLS DELEGATED,23-Apr-18,101173,The Assessment Foundation CIC,988.5,Revenue
DIRECT LEARNING AND SKILLS,SCHOOLS DELEGATED,23-Apr-18,101173,The Learning Partnership (Wales) Limited,700,Revenue
DIRECT LEARNING AND SKILLS,SCHOOLS DELEGATED,23-Apr-18,101180,PHS Group Plc,1358.48,Revenue
DIRECT LEARNING AND SKILLS,SCHOOLS DELEGATED,23-Apr-18,101180,The Assessment Foundation CIC,798,Revenue
DIRECT LEARNING AND SKILLS,SCHOOLS DELEGATED,23-Apr-18,101202,Corona Energy Retail 4 Limited,717,Revenue
DIRECT LEARNING AND SKILLS,SCHOOLS DELEGATED,23-Apr-18,101202,Dwr Cymru Cyf,2484.43,Revenue
DIRECT LEARNING AND SKILLS,SCHOOLS DELEGATED,23-Apr-18,101202,ParentPay Limited,745.2,Revenue
DIRECT LEARNING AND SKILLS,SCHOOLS DELEGATED,23-Apr-18,101202,Pugh Computers Limited,1029,Revenue
DIRECT LEARNING AND SKILLS,SCHOOLS DELEGATED,23-Apr-18,101261,Biffa Waste Services Limited,564,Revenue
DIRECT LEARNING AND SKILLS,SCHOOLS DELEGATED,23-Apr-18,101261,Dwr Cymru Cyf,775.53,Revenue
DIRECT LEARNING AND SKILLS,SCHOOLS DELEGATED,23-Apr-18,101261,Ricoh UK Limited,1180.02,Revenue
DIRECT LEARNING AND SKILLS,SCHOOLS DELEGATED,23-Apr-18,102593,Business Gas Limited / Electricity,680.62,Revenue
DIRECT LEARNING AND SKILLS,SCHOOLS DELEGATED,23-Apr-18,102593,PHS Group Plc,518.4,Revenue
DIRECT LEARNING AND SKILLS,SCHOOLS DELEGATED,23-Apr-18,102593,WJEC CBAC Limited,581.76,Revenue
DIRECT LEARNING AND SKILLS,ACHIEVEMENT FOR ALL,23-Apr-18,102671,Barnardo Services Limited,56733.33,Revenue
DIRECT LEARNING AND SKILLS,SCHOOLS DELEGATED,23-Apr-18,104381,A & R Contract Cleaning Specialist Limited,1147.3,Revenue
DIRECT LEARNING AND SKILLS,SCHOOLS DELEGATED,23-Apr-18,104381,GL Education Group Limited,535.66,Revenue
DIRECT LEARNING AND SKILLS,SCHOOLS DELEGATED,23-Apr-18,104381,Midshire Business Systems (Northern) Limited,724.95,Revenue
DIRECT LEARNING AND SKILLS,SCHOOLS DELEGATED,23-Apr-18,104381,The Assessment Foundation CIC,798,Revenue
DIRECT LEARNING AND SKILLS,SCHOOLS DELEGATED,23-Apr-18,104385,Llandaff Diocesan Board of Finance,1542.6,Revenue
DIRECT LEARNING AND SKILLS,SCHOOLS DELEGATED,23-Apr-18,104385,iTeach Limited,2495,Revenue
DIRECT SOCIAL SERVICES,GF ADULT SERVICES,23-Apr-18,215489,Healthcare Assistants Limited,2780,Revenue
DIRECT SOCIAL SERVICES,GF CHILDREN SERVICES,23-Apr-18,260060,Care Today (Childrens Services) Limited,17249.33,Revenue
DIRECT SOCIAL SERVICES,GF CHILDREN SERVICES,23-Apr-18,260060,Regional Foster Placements Limited,3255,Revenue
DIRECT ENVIRONMENT AND HOUSING,VEHICLES,23-Apr-18,319010,Dawsonrentals Materials Handling Equipment Limited t/a Dawsonrentals Sweepers,2200,Revenue
DIRECT ENVIRONMENT AND HOUSING,VEHICLES,23-Apr-18,319010,RD Geeson (Derby) Limited T/A Harprule Hire,1750,Revenue
DIRECT ENVIRONMENT AND HOUSING,VEHICLES,23-Apr-18,319010,RD Geeson (Derby) Limited T/A Harprule Hire,1750,Revenue
DIRECT ENVIRONMENT AND HOUSING,GF ENV AND VISIBLE,23-Apr-18,323675,Jeremy Benn Associates Limited,5000,Revenue
DIRECT ENVIRONMENT AND HOUSING,GF ENV AND VISIBLE,23-Apr-18,325338,Calibre Contracting Limited,974.36,Revenue
DIRECT ENVIRONMENT AND HOUSING,GF ENV AND VISIBLE,23-Apr-18,325338,Calibre Contracting Limited,822.12,Revenue
DIRECT ENVIRONMENT AND HOUSING,GF ENV AND VISIBLE,23-Apr-18,325338,Calibre Contracting Limited,2050.2,Revenue
DIRECT ENVIRONMENT AND HOUSING,GF ENV AND VISIBLE,23-Apr-18,325338,Calibre Contracting Limited,729.09,Revenue
DIRECT ENVIRONMENT AND HOUSING,GF ENV AND VISIBLE,23-Apr-18,325338,Garth Plant Hire Limited,1106.25,Revenue
DIRECT ENVIRONMENT AND HOUSING,GF ENV AND VISIBLE,23-Apr-18,325338,Tarmac Trading Limited,532.24,Revenue
DIRECT ENVIRONMENT AND HOUSING,GF ENV AND VISIBLE,23-Apr-18,325340,Calibre Contracting Limited,974.35,Revenue
DIRECT ENVIRONMENT AND HOUSING,GF ENV AND VISIBLE,23-Apr-18,325340,Calibre Contracting Limited,822.12,Revenue
DIRECT ENVIRONMENT AND HOUSING,GF ENV AND VISIBLE,23-Apr-18,325340,Calibre Contracting Limited,1948.71,Revenue
DIRECT ENVIRONMENT AND HOUSING,GF ENV AND VISIBLE,23-Apr-18,325340,Calibre Contracting Limited,1234.2,Revenue
DIRECT ENVIRONMENT AND HOUSING,GF ENV AND VISIBLE,23-Apr-18,325340,Calibre Contracting Limited,729.09,Revenue
DIRECT ENVIRONMENT AND HOUSING,GF ENV AND VISIBLE,23-Apr-18,325340,Garth Plant Hire Limited,1171.25,Revenue
DIRECT ENVIRONMENT AND HOUSING,GF ENV AND VISIBLE,23-Apr-18,325340,Garth Plant Hire Limited,1236.25,Revenue
DIRECT ENVIRONMENT AND HOUSING,GF ENV AND VISIBLE,23-Apr-18,325600,Calibre Contracting Limited,943.8,Revenue
DIRECT ENVIRONMENT AND HOUSING,GF ENV AND VISIBLE,23-Apr-18,325681,WDM Limited,8000,Revenue
DIRECT ENVIRONMENT AND HOUSING,GF ENV AND VISIBLE,23-Apr-18,325750,Standard Signs & Traffic Systems Limited,3291.64,Revenue
DIRECT ENVIRONMENT AND HOUSING,GF ENV AND VISIBLE,23-Apr-18,325790,Calibre Contracting Limited,1028.93,Revenue
DIRECT ENVIRONMENT AND HOUSING,GF PARKS AND GROUNDS,23-Apr-18,333037,Wicksteed Leisure Limited,524.36,Revenue
DIRECT ENVIRONMENT AND HOUSING,VISIBLE SERVICES,23-Apr-18,359363,Vale Tennis Academy Limited,6214.5,Revenue
DIRECT ENVIRONMENT AND HOUSING,REGENERATION & PLANNING,23-Apr-18,365763,Glamorgan Gem Limited,841.5,Revenue
DIRECT ENVIRONMENT AND HOUSING,REGULATORY SHARED SERVICES,23-Apr-18,403205,Air Monitors Limited,15198,Revenue
DIRECT ENVIRONMENT AND HOUSING,HOUSING,23-Apr-18,407151,1TFW Limited T/A Cardiff Furniture Warehouse (CFW),778,Revenue
DIRECT CAPITAL POLICY,CAPITAL POLICY,23-Apr-18,852513,Capita Property and Infrastructure Limited,4500,Capital
DIRECT SOCIAL SERVICES,GF CHILDREN SERVICES,23-Apr-18,260060,Rhondda Cynon Taff County Borough Council,17065.91,Revenue
DIRECT ENVIRONMENT AND HOUSING,VISIBLE SERVICES,23-Apr-18,365784,Rhondda Cynon Taff County Borough Council,980,Revenue
DIRECT MANAGING DIRECTOR AND RESOURCES,GF RESOURCES,23-Apr-18,422003,Western Power Distribution LLP,-11264.47,Revenue
DIRECT MANAGING DIRECTOR AND RESOURCES,GF RESOURCES,23-Apr-18,422003,Western Power Distribution LLP,-1142.43,Revenue
DIRECT MANAGING DIRECTOR AND RESOURCES,GF RESOURCES,23-Apr-18,422003,Western Power Distribution LLP,11264.47,Revenue
DIRECT MANAGING DIRECTOR AND RESOURCES,GF RESOURCES,23-Apr-18,422003,Western Power Distribution LLP,11264.47,Revenue
DIRECT LEARNING AND SKILLS,SCHOOLS DELEGATED,23-Apr-18,101202,Lucy Bateman,1637.25,Revenue
DIRECT ENVIRONMENT AND HOUSING,GF HOUSING SERVICES,23-Apr-18,405100,Lyndon Mustoe,3322.85,Revenue
DIRECT LEARNING AND SKILLS,SCHOOLS DELEGATED,23-Apr-18,101173,Oxford University Press,3055.05,Revenue
DIRECT MANAGING DIRECTOR AND RESOURCES,GF GENERAL EXPENDITURE POLICY,23-Apr-18,471900,HM Revenue and Customs - Glasgow - Chaps,38767,Revenue
DIRECT LEARNING AND SKILLS,SCHOOLS DELEGATED,23-Apr-18,101134,New Directions (Education) Limited,502,Revenue
DIRECT LEARNING AND SKILLS,SCHOOLS DELEGATED,23-Apr-18,101141,Apollo Teaching Services Limited,546,Revenue
DIRECT LEARNING AND SKILLS,SCHOOLS DELEGATED,23-Apr-18,101141,Apollo Teaching Services Limited,560,Revenue
DIRECT LEARNING AND SKILLS,SCHOOLS DELEGATED,23-Apr-18,101141,Celtic Teachers Limited,625,Revenue
DIRECT LEARNING AND SKILLS,SCHOOLS DELEGATED,23-Apr-18,102593,New Directions (Education) Limited,539.92,Revenue
DIRECT MANAGING DIRECTOR AND RESOURCES,GF HUMAN RESOURCES,23-Apr-18,140131,Randstad Solutions Limited,98560.07,Revenue
DIRECT MANAGING DIRECTOR AND RESOURCES,GF HUMAN RESOURCES,23-Apr-18,140131,Randstad Solutions Limited,113817.62,Revenue
DIRECT SOCIAL SERVICES,GF ADULT SERVICES,23-Apr-18,217909,Crosshands Care Limited,6781.6,Revenue
DIRECT SOCIAL SERVICES,GF ADULT SERVICES,23-Apr-18,217909,Crosshands Care Limited,6781.6,Revenue
DIRECT SOCIAL SERVICES,GF ADULT SERVICES,23-Apr-18,217909,Crosshands Care Limited,6781.6,Revenue
DIRECT SOCIAL SERVICES,GF ADULT SERVICES,23-Apr-18,217909,Crosshands Care Limited,6781.6,Revenue
DIRECT SOCIAL SERVICES,GF ADULT SERVICES,23-Apr-18,217909,Crosshands Care Limited,6781.6,Revenue
DIRECT LEARNING AND SKILLS,SCHOOLS DELEGATED,23-Apr-18,101180,Ryan Phillips t/a Optimise Electrics,1042.5,Revenue
DIRECT ENVIRONMENT AND HOUSING,VISIBLE SERVICES,23-Apr-18,365784,Andy Smith t/a 1st Class Rider & Driver Training,1400,Revenue
DIRECT ENVIRONMENT AND HOUSING,GF HOUSING SERVICES,23-Apr-18,405100,Susan Shepherd t/a KKG Properties,830.8,Revenue
DIRECT ENVIRONMENT AND HOUSING,GF HOUSING SERVICES,23-Apr-18,405100,Susan Shepherd t/a KKG Properties,830.8,Revenue
DIRECT SOCIAL SERVICES,GF CHILDREN SERVICES,23-Apr-18,260060,Dudley Lodge,16474.29,Revenue
DIRECT SOCIAL SERVICES,GF CHILDREN SERVICES,23-Apr-18,260060,The Adolescent & Childrens Trust,3037.07,Revenue
DIRECT SOCIAL SERVICES,GF ADULT SERVICES,24-Apr-18,215489,Cardiff & Vale Caring 4 U Limited T/A Caremark Cardiff & The Vale of Glamorgan,542.5,Revenue
DIRECT SOCIAL SERVICES,GF ADULT SERVICES,24-Apr-18,215489,Cardiff & Vale Caring 4 U Limited T/A Caremark Cardiff & The Vale of Glamorgan,794.74,Revenue
DIRECT SOCIAL SERVICES,GF ADULT SERVICES,24-Apr-18,215489,Cardiff & Vale Caring 4 U Limited T/A Caremark Cardiff & The Vale of Glamorgan,742.62,Revenue
DIRECT SOCIAL SERVICES,GF ADULT SERVICES,24-Apr-18,215489,Cardiff & Vale Caring 4 U Limited T/A Caremark Cardiff & The Vale of Glamorgan,500.38,Revenue
DIRECT SOCIAL SERVICES,GF ADULT SERVICES,24-Apr-18,215489,Cardiff & Vale Caring 4 U Limited T/A Caremark Cardiff & The Vale of Glamorgan,542.5,Revenue
DIRECT SOCIAL SERVICES,GF ADULT SERVICES,24-Apr-18,215489,Cardiff & Vale Caring 4 U Limited T/A Caremark Cardiff & The Vale of Glamorgan,794.74,Revenue
DIRECT SOCIAL SERVICES,GF ADULT SERVICES,24-Apr-18,215489,Cardiff & Vale Caring 4 U Limited T/A Caremark Cardiff & The Vale of Glamorgan,500.38,Revenue
DIRECT LEARNING AND SKILLS,STRATEGY COMMUNITY LEARNING & RESOURCES,24-Apr-18,100601,Capita Business Services Limited,83924.43,Revenue
DIRECT LEARNING AND SKILLS,SCHOOLS NON DELEGATED,24-Apr-18,100680,Centre For Education & Finance Management Limited,11681.6,Revenue
DIRECT LEARNING AND SKILLS,SCHOOLS NON DELEGATED,24-Apr-18,100680,Centre For Education & Finance Management Limited,6642.66,Revenue
DIRECT LEARNING AND SKILLS,SCHOOLS NON DELEGATED,24-Apr-18,100680,Centre For Education & Finance Management Limited,7006.06,Revenue
DIRECT LEARNING AND SKILLS,SCHOOLS DELEGATED,24-Apr-18,100805,Dwr Cymru Cyf,583.06,Revenue
DIRECT LEARNING AND SKILLS,SCHOOLS DELEGATED,24-Apr-18,101004,A & R Contract Cleaning Specialist Limited,1558.72,Revenue
DIRECT LEARNING AND SKILLS,SCHOOLS DELEGATED,24-Apr-18,101004,Blue Sky Digital Solutions Limited,966.3,Revenue
DIRECT LEARNING AND SKILLS,SCHOOLS DELEGATED,24-Apr-18,101006,Henry Howard Finance PLC,506.43,Revenue
DIRECT LEARNING AND SKILLS,SCHOOLS DELEGATED,24-Apr-18,101006,ParentPay Limited,529.2,Revenue
DIRECT LEARNING AND SKILLS,SCHOOLS DELEGATED,24-Apr-18,101007,3P Learning Limited,1517.04,Revenue
DIRECT LEARNING AND SKILLS,SCHOOLS DELEGATED,24-Apr-18,101007,The Learning Partnership (Wales) Limited,1790,Revenue
DIRECT LEARNING AND SKILLS,SCHOOLS DELEGATED,24-Apr-18,101013,Glen Cleaning Company Limited,1197.15,Revenue
DIRECT LEARNING AND SKILLS,SCHOOLS DELEGATED,24-Apr-18,101063,Academics Limited,842.2,Revenue
DIRECT LEARNING AND SKILLS,SCHOOLS DELEGATED,24-Apr-18,101063,Academics Limited,842.2,Revenue
DIRECT LEARNING AND SKILLS,SCHOOLS DELEGATED,24-Apr-18,101063,Academics Limited,842.2,Revenue
DIRECT LEARNING AND SKILLS,SCHOOLS DELEGATED,24-Apr-18,101063,EDF Energy Plc,683.66,Revenue
DIRECT LEARNING AND SKILLS,SCHOOLS DELEGATED,24-Apr-18,101063,LDL Engineering Site Services Limited,3672,Revenue
DIRECT LEARNING AND SKILLS,SCHOOLS DELEGATED,24-Apr-18,101063,iTeach Limited,2750,Revenue
DIRECT LEARNING AND SKILLS,SCHOOLS DELEGATED,24-Apr-18,101110,Siemens Financial Services Limited,837.2,Revenue
DIRECT LEARNING AND SKILLS,SCHOOLS DELEGATED,24-Apr-18,101110,Teachers2Parents Limited,1095,Revenue
DIRECT LEARNING AND SKILLS,SCHOOLS DELEGATED,24-Apr-18,101171,Grenke Leasing Limited,814.98,Revenue
DIRECT LEARNING AND SKILLS,SCHOOLS DELEGATED,24-Apr-18,101171,Touchline Marking Systems Limited,2700,Revenue
DIRECT LEARNING AND SKILLS,SCHOOLS DELEGATED,24-Apr-18,101180,Altodigital Networks Limited,517.42,Revenue
DIRECT LEARNING AND SKILLS,SCHOOLS DELEGATED,24-Apr-18,101180,Dwr Cymru Cyf,2729.28,Revenue
DIRECT LEARNING AND SKILLS,SCHOOLS DELEGATED,24-Apr-18,101216,Corona Energy Retail 4 Limited,708.12,Revenue
DIRECT LEARNING AND SKILLS,SCHOOLS DELEGATED,24-Apr-18,101216,Dwr Cymru Cyf,1470.41,Revenue
DIRECT LEARNING AND SKILLS,SCHOOLS DELEGATED,24-Apr-18,101216,EDF Energy Plc,955.79,Revenue
DIRECT LEARNING AND SKILLS,SCHOOLS DELEGATED,24-Apr-18,101216,The Assessment Foundation CIC,798,Revenue
DIRECT LEARNING AND SKILLS,SCHOOLS DELEGATED,24-Apr-18,101221,A & R Contract Cleaning Specialist Limited,2034.2,Revenue
DIRECT LEARNING AND SKILLS,SCHOOLS DELEGATED,24-Apr-18,101221,Chubb Fire & Security Limited,715.68,Revenue
DIRECT LEARNING AND SKILLS,SCHOOLS DELEGATED,24-Apr-18,101221,Llandaff Diocesan Board of Finance,866.57,Revenue
DIRECT LEARNING AND SKILLS,SCHOOLS DELEGATED,24-Apr-18,101221,Llandaff Diocesan Board of Finance,565,Revenue
DIRECT LEARNING AND SKILLS,SCHOOLS DELEGATED,24-Apr-18,101221,The Assessment Foundation CIC,666,Revenue
DIRECT LEARNING AND SKILLS,SCHOOLS DELEGATED,24-Apr-18,101229,Glen Cleaning Company Limited,2433.14,Revenue
DIRECT LEARNING AND SKILLS,SCHOOLS DELEGATED,24-Apr-18,101229,The Assessment Foundation CIC,1116,Revenue
DIRECT LEARNING AND SKILLS,SCHOOLS DELEGATED,24-Apr-18,101241,Capita Specialist Insurance Solutions Limited t/a Schoolsafe & Educare,4832.71,Revenue
DIRECT LEARNING AND SKILLS,SCHOOLS DELEGATED,24-Apr-18,101241,Dwr Cymru Cyf,634.5,Revenue
DIRECT LEARNING AND SKILLS,SCHOOLS DELEGATED,24-Apr-18,101241,PGL Travel Limited,1888,Revenue
DIRECT LEARNING AND SKILLS,SCHOOLS DELEGATED,24-Apr-18,101308,Shire Integrated Systems Limited,3267.51,Revenue
DIRECT LEARNING AND SKILLS,SCHOOLS DELEGATED,24-Apr-18,101308,Sovereign Risk Management Limited T/A Schools Advisory Service,4995,Revenue
DIRECT LEARNING AND SKILLS,SCHOOLS DELEGATED,24-Apr-18,101308,Teachers2Parents Limited,711.55,Revenue
DIRECT LEARNING AND SKILLS,SCHOOLS DELEGATED,24-Apr-18,101308,The Assessment Foundation CIC,798,Revenue
DIRECT LEARNING AND SKILLS,ACHIEVEMENT FOR ALL,24-Apr-18,102636,Empowering Learning Limited,760,Revenue
DIRECT LEARNING AND SKILLS,ACHIEVEMENT FOR ALL,24-Apr-18,102636,Merricks Private Transport Contractors Limited,1090,Revenue
DIRECT LEARNING AND SKILLS,SCHOOLS NON DELEGATED,24-Apr-18,103593,Reed Specialist Recruitment Limited,700,Revenue
DIRECT LEARNING AND SKILLS,SCHOOLS NON DELEGATED,24-Apr-18,103593,Reed Specialist Recruitment Limited,700,Revenue
DIRECT LEARNING AND SKILLS,STRATEGY COMMUNITY LEARNING & RESOURCES,24-Apr-18,130030,WJEC CBAC Limited,926,Revenue
DIRECT LEARNING AND SKILLS,CATERING,24-Apr-18,150401,Brake Bros Limited,3649.95,Revenue
DIRECT LEARNING AND SKILLS,CATERING,24-Apr-18,150401,Castell Howell Foods Limited,2884.91,Revenue
DIRECT LEARNING AND SKILLS,CATERING,24-Apr-18,150671,Brake Bros Limited,2385.82,Revenue
DIRECT LEARNING AND SKILLS,CATERING,24-Apr-18,150671,Castell Howell Foods Limited,1800.31,Revenue
DIRECT LEARNING AND SKILLS,CATERING,24-Apr-18,150671,Peter's Food Service Limited,697.52,Revenue
DIRECT SOCIAL SERVICES,GF BUSINESS MANAGEMENT & INOVATION,24-Apr-18,201851,Computacenter (UK) Limited,1028.61,Revenue
DIRECT SOCIAL SERVICES,GF ADULT SERVICES,24-Apr-18,212781,Castell Howell Foods Limited,625.18,Revenue
DIRECT SOCIAL SERVICES,GF ADULT SERVICES,24-Apr-18,215025,Vale People First Limited,3755.36,Revenue
DIRECT SOCIAL SERVICES,GF ADULT SERVICES,24-Apr-18,215489,Grangelodge Residential Home Limited t/a Grangelodge,513.66,Revenue
DIRECT SOCIAL SERVICES,GF ADULT SERVICES,24-Apr-18,215489,Healthcare Assistants Limited,673.76,Revenue
DIRECT SOCIAL SERVICES,GF ADULT SERVICES,24-Apr-18,216179,Healthcare Assistants Limited,1354.42,Revenue
DIRECT SOCIAL SERVICES,GF ADULT SERVICES,24-Apr-18,216179,Healthcare Assistants Limited,1254.42,Revenue
DIRECT SOCIAL SERVICES,GF ADULT SERVICES,24-Apr-18,217541,Care Management Group Limited,61992.83,Revenue
DIRECT SOCIAL SERVICES,GF ADULT SERVICES,24-Apr-18,217541,Cartrefi Cymru Co-Operative Limited,58334.23,Revenue
DIRECT SOCIAL SERVICES,GF ADULT SERVICES,24-Apr-18,217909,Cartrefi Cymru Co-Operative Limited,733.88,Revenue
DIRECT SOCIAL SERVICES,GF ADULT SERVICES,24-Apr-18,217909,Cartrefi Cymru Co-Operative Limited,2294.25,Revenue
DIRECT SOCIAL SERVICES,GF ADULT SERVICES,24-Apr-18,217909,Consensus Support Services Limited t/a Ty Machen,2163.85,Revenue
DIRECT SOCIAL SERVICES,GF ADULT SERVICES,24-Apr-18,217909,Everycare (Cardiff) Limited,651.9,Revenue
DIRECT SOCIAL SERVICES,GF ADULT SERVICES,24-Apr-18,217909,Valeplus (Cymru) & Valeplus Extra,24542.7,Revenue
DIRECT SOCIAL SERVICES,GF ADULT SERVICES,24-Apr-18,218315,Legacy Leisure Limited,540,Revenue
DIRECT SOCIAL SERVICES,GF BUSINESS MANAGEMENT & INOVATION,24-Apr-18,239030,Promo Cymru Trading Limited,4166.67,Revenue
DIRECT SOCIAL SERVICES,GF BUSINESS MANAGEMENT & INOVATION,24-Apr-18,239053,Care Management Group Limited,8823.66,Revenue
DIRECT SOCIAL SERVICES,GF CHILDREN SERVICES,24-Apr-18,260060,Foster Care Associates Limited,3735.5,Revenue
DIRECT SOCIAL SERVICES,GF CHILDREN SERVICES,24-Apr-18,260060,Foster Care Associates Limited,8370,Revenue
DIRECT SOCIAL SERVICES,GF CHILDREN SERVICES,24-Apr-18,260060,Foster Care Associates Limited,6417,Revenue
DIRECT SOCIAL SERVICES,GF CHILDREN SERVICES,24-Apr-18,260060,Foster Care Associates Limited,3623.28,Revenue
DIRECT SOCIAL SERVICES,GF CHILDREN SERVICES,24-Apr-18,260060,Foster Care Associates Limited,3735.5,Revenue
DIRECT SOCIAL SERVICES,GF CHILDREN SERVICES,24-Apr-18,260060,Foster Care Associates Limited,8370,Revenue
DIRECT SOCIAL SERVICES,GF CHILDREN SERVICES,24-Apr-18,260060,Fostering Solutions Limited,7500,Revenue
DIRECT SOCIAL SERVICES,GF CHILDREN SERVICES,24-Apr-18,260090,Llamau Limited,13900.75,Revenue
DIRECT ENVIRONMENT AND HOUSING,GF ENV AND VISIBLE,24-Apr-18,300600,Back Care Solutions Limited,553.85,Revenue
DIRECT ENVIRONMENT AND HOUSING,BUILDING SERVICES,24-Apr-18,301062,G.P.H.I.T (Integrated Services) Limited,550,Revenue
DIRECT ENVIRONMENT AND HOUSING,VEHICLES,24-Apr-18,319010,S & K Haulage Glamorgan Limited,703,Revenue
DIRECT ENVIRONMENT AND HOUSING,GF ENV AND VISIBLE,24-Apr-18,325338,G.P.H.I.T (Integrated Services) Limited,540,Revenue
DIRECT ENVIRONMENT AND HOUSING,GF ENV AND VISIBLE,24-Apr-18,325338,Garth Plant Hire Limited,1106.25,Revenue
DIRECT ENVIRONMENT AND HOUSING,GF ENV AND VISIBLE,24-Apr-18,325340,G.P.H.I.T (Integrated Services) Limited,570,Revenue
DIRECT ENVIRONMENT AND HOUSING,GF ENV AND VISIBLE,24-Apr-18,325340,Garth Plant Hire Limited,1236.25,Revenue
DIRECT ENVIRONMENT AND HOUSING,GF ENV AND VISIBLE,24-Apr-18,325340,Garth Plant Hire Limited,1236.25,Revenue
DIRECT ENVIRONMENT AND HOUSING,GF ENV AND VISIBLE,24-Apr-18,341001,Fabmec Limited,2460,Revenue
DIRECT ENVIRONMENT AND HOUSING,GF ENV AND VISIBLE,24-Apr-18,341120,Dwr Cymru Cyf,550.82,Revenue
DIRECT ENVIRONMENT AND HOUSING,VISIBLE SERVICES,24-Apr-18,359340,Parkwood Leisure Limited,7467.88,Revenue
DIRECT ENVIRONMENT AND HOUSING,VISIBLE SERVICES,24-Apr-18,359454,Parkwood Leisure Limited,964.7,Revenue
DIRECT ENVIRONMENT AND HOUSING,VISIBLE SERVICES,24-Apr-18,360234,Parkwood Leisure Limited,3386.34,Revenue
DIRECT ENVIRONMENT AND HOUSING,VISIBLE SERVICES,24-Apr-18,360530,Parkwood Leisure Limited,3572.94,Revenue
DIRECT ENVIRONMENT AND HOUSING,GF LEGAL AND DEMOCRATIC,24-Apr-18,400050,Computacenter (UK) Limited,833.59,Revenue
DIRECT ENVIRONMENT AND HOUSING,HOUSING,24-Apr-18,407147,Dwr Cymru Cyf,819.49,Revenue
DIRECT ENVIRONMENT AND HOUSING,HOUSING,24-Apr-18,407260,Corona Energy Retail 4 Limited,797.1,Revenue
DIRECT MANAGING DIRECTOR AND RESOURCES,GF RESOURCES,24-Apr-18,421230,Computacenter (UK) Limited,13831.39,Revenue
DIRECT MANAGING DIRECTOR AND RESOURCES,GF RESOURCES,24-Apr-18,422003,Corona Energy Retail 4 Limited,1612,Revenue
DIRECT MANAGING DIRECTOR AND RESOURCES,GF ELECTIONS,24-Apr-18,463051,Critiqom Limited,2550.24,Revenue
DIRECT CAPITAL DEVELOPMENT,CAPITAL ECO DEV,24-Apr-18,834207,Jones Lang Lasalle Limited,1930,Capital
DIRECT CAPITAL DEVELOPMENT,CAPITAL ECO DEV,24-Apr-18,834207,Jones Lang Lasalle Limited,1295,Capital
DIRECT CAPITAL VISIBLE AND HOUSING SERVICES,CAPITAL HRA,24-Apr-18,842166,Atec Drainage Systems Limited,944,Capital
DIRECT CAPITAL VISIBLE AND HOUSING SERVICES,CAPITAL HRA,24-Apr-18,842166,Tony King Architects Limited,9750,Capital
DIRECT CAPITAL POLICY,CAPITAL POLICY,24-Apr-18,852232,Tugbury Electrical Services Limited,20150,Capital
DIRECT MANAGING DIRECTOR AND RESOURCES,GF TOWN/COMMUNITY COUNCIL PRECEPTS,24-Apr-18,476972,Barry Town Council,348316,Revenue
DIRECT MANAGING DIRECTOR AND RESOURCES,GF TOWN/COMMUNITY COUNCIL PRECEPTS,24-Apr-18,476973,Colwinston Community Council,3000,Revenue
DIRECT MANAGING DIRECTOR AND RESOURCES,GF TOWN/COMMUNITY COUNCIL PRECEPTS,24-Apr-18,476974,Cowbridge with Llanblethian Town Council,56193,Revenue
DIRECT MANAGING DIRECTOR AND RESOURCES,GF TOWN/COMMUNITY COUNCIL PRECEPTS,24-Apr-18,476975,Dinas Powys Community Council,33151,Revenue
DIRECT MANAGING DIRECTOR AND RESOURCES,GF TOWN/COMMUNITY COUNCIL PRECEPTS,24-Apr-18,476976,Ewenny Community Council,5458,Revenue
DIRECT MANAGING DIRECTOR AND RESOURCES,GF TOWN/COMMUNITY COUNCIL PRECEPTS,24-Apr-18,476977,Llancarfan Community Council,3526,Revenue
DIRECT MANAGING DIRECTOR AND RESOURCES,GF TOWN/COMMUNITY COUNCIL PRECEPTS,24-Apr-18,476978,Llandough Community Council,12891,Revenue
DIRECT MANAGING DIRECTOR AND RESOURCES,GF TOWN/COMMUNITY COUNCIL PRECEPTS,24-Apr-18,476979,Llandow Community Council,3100,Revenue
DIRECT MANAGING DIRECTOR AND RESOURCES,GF TOWN/COMMUNITY COUNCIL PRECEPTS,24-Apr-18,476980,Llanfair Community Council,1536,Revenue
DIRECT MANAGING DIRECTOR AND RESOURCES,GF TOWN/COMMUNITY COUNCIL PRECEPTS,24-Apr-18,476981,Llangan Community Council,3420,Revenue
DIRECT MANAGING DIRECTOR AND RESOURCES,GF TOWN/COMMUNITY COUNCIL PRECEPTS,24-Apr-18,476982,Llanmaes Community Council,3800,Revenue
DIRECT MANAGING DIRECTOR AND RESOURCES,GF TOWN/COMMUNITY COUNCIL PRECEPTS,24-Apr-18,476983,Llantwit Major Town Council,79003,Revenue
DIRECT MANAGING DIRECTOR AND RESOURCES,GF TOWN/COMMUNITY COUNCIL PRECEPTS,24-Apr-18,476984,Michaelston Le Pitt with Leckwith Community Council,1995,Revenue
DIRECT MANAGING DIRECTOR AND RESOURCES,GF TOWN/COMMUNITY COUNCIL PRECEPTS,24-Apr-18,476985,Penarth Town Council,256438,Revenue
DIRECT MANAGING DIRECTOR AND RESOURCES,GF TOWN/COMMUNITY COUNCIL PRECEPTS,24-Apr-18,476986,Pendoylan Community Council,2100,Revenue
DIRECT MANAGING DIRECTOR AND RESOURCES,GF TOWN/COMMUNITY COUNCIL PRECEPTS,24-Apr-18,476987,Penllyn Community Council,3350,Revenue
DIRECT MANAGING DIRECTOR AND RESOURCES,GF TOWN/COMMUNITY COUNCIL PRECEPTS,24-Apr-18,476988,Peterston-super-Ely Community Council,5333,Revenue
DIRECT MANAGING DIRECTOR AND RESOURCES,GF TOWN/COMMUNITY COUNCIL PRECEPTS,24-Apr-18,476989,St Athan Community Council,9278,Revenue
DIRECT MANAGING DIRECTOR AND RESOURCES,GF TOWN/COMMUNITY COUNCIL PRECEPTS,24-Apr-18,476990,St Brides Major Community Council,8947,Revenue
DIRECT MANAGING DIRECTOR AND RESOURCES,GF TOWN/COMMUNITY COUNCIL PRECEPTS,24-Apr-18,476991,St Donats Community Council,1016,Revenue
DIRECT MANAGING DIRECTOR AND RESOURCES,GF TOWN/COMMUNITY COUNCIL PRECEPTS,24-Apr-18,476993,St Nicholas & Bonvilston Community Council,3032,Revenue
DIRECT MANAGING DIRECTOR AND RESOURCES,GF TOWN/COMMUNITY COUNCIL PRECEPTS,24-Apr-18,476994,Sully & Lavernock Community Council,29705,Revenue
DIRECT MANAGING DIRECTOR AND RESOURCES,GF TOWN/COMMUNITY COUNCIL PRECEPTS,24-Apr-18,476995,Welsh St Donats Community Council,1733,Revenue
DIRECT MANAGING DIRECTOR AND RESOURCES,GF TOWN/COMMUNITY COUNCIL PRECEPTS,24-Apr-18,476996,Wenvoe Community Council,10917,Revenue
DIRECT MANAGING DIRECTOR AND RESOURCES,GF TOWN/COMMUNITY COUNCIL PRECEPTS,24-Apr-18,476997,Wick Community Council,1417,Revenue
DIRECT CAPITAL LEARN AND SKILLS,AR CAPITAL SCHOOLS,24-Apr-18,812251,Western Power Distribution LLP,3050.58,Capital
